Workbook

Sheet README
B6: Landscape Monetisation Workbook
B8: TAG and VfM references
B9: TAG Unit A3 - Environmental Impact Appraisal
B10: Supplementary VfM Guidance on Landscape Monetisation
B12: Notes
B13: This tool should be used to derive indicative monetary estimates of a scheme's landscape impacts, in accordance with supplementary VfM guidance.
B14: The Landscape Values worksheet provides present value and annual per-hectare values for a range of broad land types to be used for landscape monetisation. Users are advised to check that the selected appraisal year is correct before applying the values in an appraisal.
B15: The Ecosystem Services worksheets - Inputs (ESS), Calculations (ESS) and Outputs (ESS) - should be used to derive indicative monetary estimates of impacts associated with (i) air quality regulation by vegetation and (ii) carbon sequestration.
B16: Users should refer to the supplementary landscape VfM guidance for further details on the scheme information required for the valuation of these services.
B18: Version Control
B19: Date | C19: Description
B20: 2024-05-01 | C20: Updated GDP Deflator, GDP per capita and population in line with latest TAG Data book (v1.23, May 2024)
B21: 2023-11-01 | C21: Updated carbon values (incl. market price adjustment), GDP deflator, GDP per capita and population in line with TAG Data Book v1.22.
B22: 2023-05-01 | C22: Updated GDP Deflator, GDP per capita and population in line with latest TAG Data book (v1.21, May 2023)
B23: 2022-11-01 | C23: Updated GDP Deflator, GDP per capita and population in line with latest TAG Data book (v1.20.1, November 2022)
B24: 2022-05-01 | C24: Updated GDP Deflator, GDP per capita and population in line with latest TAG Data book (v1.18, May 2022)
B25: 2021-11-01 | C25: Updated GDP Deflator, GDP per capita and population in line with latest TAG Data book (v1.17, November 2021)
B26: 2021-07-01 | C26: Initial release
B28: Contact
B29: Transport Appraisal and Strategic Modelling (TASM) Division
B30: Department for Transport
B31: Zone 2/25 Great Minster House
B32: 33 Horseferry Road
B33: London
B34: SW1P 4DR
B35: tasm@dft.gov.uk

Sheet Inputs (values)
B3: Appraisal assumptions
C5: Year values
C6: Source: NA
C8: Appraisal year | H8: ='Landscape Values'!G5 -> 2021
C10: Value base year | H10: 2010
C11: Price base year | H11: 2010
C12: Desired price year | H12: 2010
C15: Discount rates
C16: Source: TAG Data Book v1.21 (May 2023)
C19: Year | H19: STPR
C20: 0 | H20: 0.035
C21: 31 | H21: 0.03
C22: 76 | H22: 0.025
C23: 126 | H23: 0.02
C24: 201 | H24: 0.015
C25: 301 | H25: 0.01
B28: Published landscape value per land type
C30: Land type £/ha/year (2010 prices)
C31: Source: | E31: DfT supplementary VfM guidance on landscape monetisation (May 2017)
C34: Urban Core (City Park) | H34: 75153
C35: Urban Fringe (Greenbelt) | H35: 1237
C36: Urban Fringe (forested Land) | H36: 3758
C37: Rural (forested amenity land) | H37: 9222
C38: Agricultural land (extensive) | H38: 4384
C39: Agricultural land (intensive) | H39: 143
C40: Natural and semi-natural land (wetlands) | H40: 9208
C43: Land type perpetual present value (2010 prices)
C44: Source: | E44: DfT supplementary VfM guidance on landscape monetisation (May 2017)
C47: Urban Core (City Park) | H47: 15031000
C48: Urban Fringe (Greenbelt) | H48: 247000
C49: Urban Fringe (forested Land) | H49: 752000
C50: Rural (forested amenity land) | H50: 1844000
C51: Agricultural land (extensive) | H51: 877000
C52: Agricultural land (intensive) | H52: 29000
C53: Natural and semi-natural land (wetlands) | H53: 1842000
B56: Key Parameters
C58: Annual parameters
C59: Source: TAG Data Book v1.23 (May 2024)
H60: Year | DD60: .
H61: 2000 | I61: 2001 | J61: 2002 | K61: 2003 | L61: 2004 | M61: 2005 | N61: 2006 | O61: 2007 | P61: 2008 | Q61: 2009 | R61: 2010 | S61: 2011 | T61: 2012 | U61: 2013 | V61: 2014 | W61: 2015 | X61: 2016 | Y61: 2017 | Z61: 2018 | AA61: 2019 | AB61: 2020 | AC61: 2021 | AD61: 2022 | AE61: 2023 | AF61: 2024 | AG61: 2025 | AH61: 2026 | AI61: 2027 | AJ61: 2028 | AK61: 2029 | AL61: 2030 | AM61: 2031 | AN61: 2032 | AO61: 2033 | AP61: 2034 | AQ61: 2035 | AR61: 2036 | AS61: 2037 | AT61: 2038 | AU61: 2039 | AV61: 2040 | AW61: 2041 | AX61: 2042 | AY61: 2043 | AZ61: 2044 | BA61: 2045 | BB61: 2046 | BC61: 2047 | BD61: 2048 | BE61: 2049 | BF61: 2050 | BG61: 2051 | BH61: 2052 | BI61: 2053 | BJ61: 2054 | BK61: 2055 | BL61: 2056 | BM61: 2057 | BN61: 2058 | BO61: 2059 | BP61: 2060 | BQ61: 2061 | BR61: 2062 | BS61: 2063 | BT61: 2064 | BU61: 2065 | BV61: 2066 | BW61: 2067 | BX61: 2068 | BY61: 2069 | BZ61: 2070 | CA61: 2071 | CB61: 2072 | CC61: 2073 | CD61: 2074 | CE61: 2075 | CF61: 2076 | CG61: 2077 | CH61: 2078 | CI61: 2079 | CJ61: 2080 | CK61: 2081 | CL61: 2082 | CM61: 2083 | CN61: 2084 | CO61: 2085 | CP61: 2086 | CQ61: 2087 | CR61: 2088 | CS61: 2089 | CT61: 2090 | CU61: 2091 | CV61: 2092 | CW61: 2093 | CX61: 2094 | CY61: 2095 | CZ61: 2096 | DA61: 2097 | DB61: 2098 | DC61: 2099 | DD61: 2100 | DE61: 2101 | DF61: 2102 | DG61: 2103 | DH61: 2104 | DI61: 2105 | DJ61: 2106 | DK61: 2107 | DL61: 2108 | DM61: 2109 | DN61: 2110 | DO61: 2111 | DP61: 2112 | DQ61: 2113 | DR61: 2114 | DS61: 2115 | DT61: 2116 | DU61: 2117 | DV61: 2118 | DW61: 2119 | DX61: 2120 | DY61: 2121 | DZ61: 2122 | EA61: 2123 | EB61: 2124 | EC61: 2125 | ED61: 2126 | EE61: 2127 | EF61: 2128 | EG61: 2129 | EH61: 2130 | EI61: 2131 | EJ61: 2132 | EK61: 2133 | EL61: 2134 | EM61: 2135 | EN61: 2136 | EO61: 2137 | EP61: 2138 | EQ61: 2139 | ER61: 2140 | ES61: 2141 | ET61: 2142 | EU61: 2143 | EV61: 2144 | EW61: 2145 | EX61: 2146 | EY61: 2147 | EZ61: 2148 | FA61: 2149 | FB61: 2150 | FC61: 2151 | FD61: 2152 | FE61: 2153 | FF61: 2154 | FG61: 2155 | FH61: 2156 | FI61: 2157 | FJ61: 2158 | FK61: 2159 | FL61: 2160 | FM61: 2161 | FN61: 2162 | FO61: 2163 | FP61: 2164 | FQ61: 2165 | FR61: 2166 | FS61: 2167 | FT61: 2168 | FU61: 2169 | FV61: 2170 | FW61: 2171 | FX61: 2172 | FY61: 2173 | FZ61: 2174 | GA61: 2175 | GB61: 2176 | GC61: 2177 | GD61: 2178 | GE61: 2179 | GF61: 2180 | GG61: 2181 | GH61: 2182 | GI61: 2183 | GJ61: 2184 | GK61: 2185 | GL61: 2186 | GM61: 2187 | GN61: 2188 | GO61: 2189 | GP61: 2190 | GQ61: 2191 | GR61: 2192 | GS61: 2193 | GT61: 2194 | GU61: 2195 | GV61: 2196 | GW61: 2197 | GX61: 2198 | GY61: 2199 | GZ61: 2200 | HA61: 2201 | HB61: 2202 | HC61: 2203 | HD61: 2204 | HE61: 2205 | HF61: 2206 | HG61: 2207 | HH61: 2208 | HI61: 2209 | HJ61: 2210 | HK61: 2211 | HL61: 2212 | HM61: 2213 | HN61: 2214 | HO61: 2215 | HP61: 2216 | HQ61: 2217 | HR61: 2218 | HS61: 2219 | HT61: 2220 | HU61: 2221 | HV61: 2222 | HW61: 2223 | HX61: 2224 | HY61: 2225 | HZ61: 2226 | IA61: 2227 | IB61: 2228 | IC61: 2229 | ID61: 2230 | IE61: 2231 | IF61: 2232 | IG61: 2233 | IH61: 2234 | II61: 2235 | IJ61: 2236 | IK61: 2237 | IL61: 2238 | IM61: 2239 | IN61: 2240 | IO61: 2241 | IP61: 2242 | IQ61: 2243 | IR61: 2244 | IS61: 2245 | IT61: 2246 | IU61: 2247 | IV61: 2248 | IW61: 2249 | IX61: 2250 | IY61: 2251 | IZ61: 2252 | JA61: 2253 | JB61: 2254 | JC61: 2255 | JD61: 2256 | JE61: 2257 | JF61: 2258 | JG61: 2259 | JH61: 2260 | JI61: 2261 | JJ61: 2262 | JK61: 2263 | JL61: 2264 | JM61: 2265 | JN61: 2266 | JO61: 2267 | JP61: 2268 | JQ61: 2269 | JR61: 2270 | JS61: 2271 | JT61: 2272 | JU61: 2273 | JV61: 2274 | JW61: 2275 | JX61: 2276 | JY61: 2277 | JZ61: 2278 | KA61: 2279 | KB61: 2280 | KC61: 2281 | KD61: 2282 | KE61: 2283 | KF61: 2284 | KG61: 2285 | KH61: 2286 | KI61: 2287 | KJ61: 2288 | KK61: 2289 | KL61: 2290 | KM61: 2291 | KN61: 2292 | KO61: 2293 | KP61: 2294 | KQ61: 2295 | KR61: 2296 | KS61: 2297 | KT61: 2298 | KU61: 2299 | KV61: 2300
C62: GDP Deflator | H62: 79.29052789 | I62: 80.48385158 | J62: 82.18885632 | K62: 84.1552979 | L62: 86.35954749 | M62: 88.89473851 | N62: 91.37479567 | O62: 93.43119251 | P62: 96.63600449 | Q62: 98.44326254 | R62: 100 | S62: 102.1905698 | T62: 103.7620925 | U62: 105.9569458 | V62: 107.353118 | W62: 108.0648839 | X62: 110.1849818 | Y62: 112.2323969 | Z62: 114.3906325 | AA62: 116.8093377 | AB62: 123.0040915 | AC62: 122.6116599 | AD62: 128.9119834 | AE62: 138.1801399 | AF62: 140.2868344 | AG62: 141.9385795 | AH62: 144.3160239 | AI62: 146.9891027 | AJ62: 149.8158064 | AK62: 153.2615699 | AL62: 156.7865861 | AM62: 160.3926775 | AN62: 164.0817091 | AO62: 167.8555884 | AP62: 171.716267 | AQ62: 175.6657411 | AR62: 179.7060531 | AS62: 183.8392924 | AT62: 188.0675961 | AU62: 192.3931508 | AV62: 196.8181933 | AW62: 201.3450117 | AX62: 205.975947 | AY62: 210.7133938 | AZ62: 215.5598018 | BA62: 220.5176773 | BB62: 225.5895838 | BC62: 230.7781443 | BD62: 236.0860416 | BE62: 241.5160205 | BF62: 247.070889 | BG62: 252.7535195 | BH62: 258.5668504 | BI62: 264.513888 | BJ62: 270.5977074 | BK62: 276.8214547 | BL62: 283.1883481 | BM62: 289.7016801 | BN62: 296.3648188 | BO62: 303.1812096 | BP62: 310.1543774 | BQ62: 317.2879281 | BR62: 324.5855504 | BS62: 332.0510181 | BT62: 339.6881915 | BU62: 347.5010199 | BV62: 355.4935434 | BW62: 363.6698949 | BX62: 372.0343025 | BY62: 380.5910914 | BZ62: 389.3446865 | CA62: 398.2996143 | CB62: 407.4605054 | CC62: 416.8320971 | CD62: 426.4192353 | CE62: 436.2268777 | CF62: 446.2600959 | CG62: 456.5240781 | CH62: 467.0241319 | CI62: 477.7656869 | CJ62: 488.7542977 | CK62: 499.9956466 | CL62: 511.4955465 | CM62: 523.259944 | CN62: 535.2949227 | CO62: 547.606706 | CP62: 560.2016602 | CQ62: 573.0862984 | CR62: 586.2672832 | CS62: 599.7514308 | CT62: 613.5457137 | CU62: 627.6572651 | CV62: 642.0933822 | CW62: 656.86153 | CX62: 671.9693452 | CY62: 687.4246401 | CZ62: 703.2354068 | DA62: 719.4098212 | DB62: 735.9562471 | DC62: 752.8832408 | DD62: 770.1995553 | DE62: =DD62*($DD62/$DC62) -> 787.9141451 | DF62: =DE62*($DD62/$DC62) -> 806.0361704 | DG62: =DF62*($DD62/$DC62) -> 824.5750023 | DH62: =DG62*($DD62/$DC62) -> 843.5402274 | DI62: 862.9416526 | DJ62: 882.7893106 | DK62: 903.0934648 | DL62: 923.8646144 | DM62: 945.1135006 | DN62: 966.8511111 | DO62: 989.0886866 | DP62: 1011.837726 | DQ62: 1035.109994 | DR62: 1058.917524 | DS62: 1083.272627 | DT62: 1108.187897 | DU62: 1133.676219 | DV62: 1159.750772 | DW62: 1186.42504 | DX62: 1213.712816 | DY62: 1241.628211 | DZ62: 1270.185659 | EA62: 1299.39993 | EB62: 1329.286128 | EC62: 1359.859709 | ED62: 1391.136482 | EE62: 1423.132621 | EF62: 1455.864672 | EG62: 1489.349559 | EH62: 1523.604599 | EI62: 1558.647505 | EJ62: 1594.496397 | EK62: 1631.169814 | EL62: 1668.68672 | EM62: 1707.066515 | EN62: 1746.329045 | EO62: 1786.494613 | EP62: 1827.583989 | EQ62: 1869.61842 | ER62: 1912.619644 | ES62: 1956.609896 | ET62: 2001.611924 | EU62: 2047.648998 | EV62: 2094.744925 | EW62: 2142.924058 | EX62: 2192.211311 | EY62: 2242.632171 | EZ62: 2294.212711 | FA62: 2346.979604 | FB62: 2400.960135 | FC62: 2456.182218 | FD62: 2512.674409 | FE62: 2570.46592 | FF62: 2629.586636 | FG62: 2690.067129 | FH62: 2751.938673 | FI62: 2815.233262 | FJ62: 2879.983627 | FK62: 2946.223251 | FL62: 3013.986386 | FM62: 3083.308073 | FN62: 3154.224158 | FO62: 3226.771314 | FP62: 3300.987054 | FQ62: 3376.909756 | FR62: 3454.578681 | FS62: 3534.03399 | FT62: =FS62*($DD62/$DC62) -> 3615.316772 | FU62: 3698.469058 | FV62: 3783.533846 | FW62: 3870.555125 | FX62: 3959.577893 | FY62: 4050.648184 | FZ62: 4143.813092 | GA62: 4239.120793 | GB62: 4336.620572 | GC62: 4436.362845 | GD62: 4538.39919 | GE62: 4642.782372 | GF62: 4749.566366 | GG62: 4858.806393 | GH62: 4970.55894 | GI62: 5084.881795 | GJ62: 5201.834077 | GK62: 5321.47626 | GL62: 5443.870214 | GM62: 5569.079229 | GN62: 5697.168052 | GO62: 5828.202917 | GP62: 5962.251584 | GQ62: 6099.38337 | GR62: 6239.669188 | GS62: 6383.181579 | GT62: 6529.994755 | GU62: 6680.184635 | GV62: 6833.828881 | GW62: 6991.006946 | GX62: 7151.800105 | GY62: 7316.291508 | GZ62: 7484.566212 | HA62: 7656.711235 | HB62: 7832.815594 | HC62: 8012.970352 | HD62: 8197.268671 | HE62: 8385.80585 | HF62: 8578.679385 | HG62: 8775.98901 | HH62: 8977.836758 | HI62: 9184.327003 | HJ62: 9395.566524 | HK62: 9611.664554 | HL62: 9832.732839 | HM62: 10058.88569 | HN62: 10290.24007 | HO62: 10526.91559 | HP62: 10769.03465 | HQ62: 11016.72244 | HR62: 11270.10706 | HS62: 11529.31952 | HT62: 11794.49387 | HU62: 12065.76723 | HV62: 12343.27987 | HW62: 12627.17531 | HX62: 12917.60034 | HY62: 13214.70515 | HZ62: 13518.64337 | IA62: 13829.57217 | IB62: 14147.65233 | IC62: 14473.04833 | ID62: 14805.92844 | IE62: 15146.4648 | IF62: =IE62*($DD62/$DC62) -> 15494.83349 | IG62: 15851.21466 | IH62: 16215.79259 | II62: 16588.75582 | IJ62: 16970.29721 | IK62: 17360.61404 | IL62: 17759.90817 | IM62: 18168.38606 | IN62: 18586.25893 | IO62: 19013.74289 | IP62: 19451.05898 | IQ62: 19898.43333 | IR62: 20356.0973 | IS62: 20824.28754 | IT62: 21303.24615 | IU62: 21793.22081 | IV62: 22294.46489 | IW62: 22807.23758 | IX62: 23331.80405 | IY62: 23868.43554 | IZ62: 24417.40956 | JA62: 24979.00998 | JB62: 25553.52721 | JC62: 26141.25833 | JD62: 26742.50728 | JE62: 27357.58494 | JF62: 27986.8094 | JG62: 28630.50601 | JH62: 29289.00765 | JI62: 29962.65483 | JJ62: 30651.79589 | JK62: 31356.78719 | JL62: 32077.9933 | JM62: 32815.78714 | JN62: 33570.55025 | JO62: 34342.6729 | JP62: 35132.55438 | JQ62: 35940.60313 | JR62: 36767.237 | JS62: =JR62*($DD62/$DC62) -> 37612.88345 | JT62: =JS62*($DD62/$DC62) -> 38477.97977 | JU62: =JT62*($DD62/$DC62) -> 39362.97331 | JV62: =JU62*($DD62/$DC62) -> 40268.3217 | JW62: =JV62*($DD62/$DC62) -> 41194.49309 | JX62: =JW62*($DD62/$DC62) -> 42141.96644 | JY62: =JX62*($DD62/$DC62) -> 43111.23166 | JZ62: =JY62*($DD62/$DC62) -> 44102.78999 | KA62: =JZ62*($DD62/$DC62) -> 45117.15416 | KB62: =KA62*($DD62/$DC62) -> 46154.84871 | KC62: =KB62*($DD62/$DC62) -> 47216.41023 | KD62: =KC62*($DD62/$DC62) -> 48302.38766 | KE62: =KD62*($DD62/$DC62) -> 49413.34258 | KF62: =KE62*($DD62/$DC62) -> 50549.84946 | KG62: =KF62*($DD62/$DC62) -> 51712.496 | KH62: =KG62*($DD62/$DC62) -> 52901.8834 | KI62: =KH62*($DD62/$DC62) -> 54118.62672 | KJ62: =KI62*($DD62/$DC62) -> 55363.35514 | KK62: =KJ62*($DD62/$DC62) -> 56636.7123 | KL62: =KK62*($DD62/$DC62) -> 57939.35669 | KM62: =KL62*($DD62/$DC62) -> 59271.96189 | KN62: =KM62*($DD62/$DC62) -> 60635.21702 | KO62: =KN62*($DD62/$DC62) -> 62029.82701 | KP62: =KO62*($DD62/$DC62) -> 63456.51303 | KQ62: =KP62*($DD62/$DC62) -> 64916.01283 | KR62: =KQ62*($DD62/$DC62) -> 66409.08112 | KS62: =KR62*($DD62/$DC62) -> 67936.48999 | KT62: =KS62*($DD62/$DC62) -> 69499.02926 | KU62: =KT62*($DD62/$DC62) -> 71097.50693 | KV62: =KU62*($DD62/$DC62) -> 72732.74959
C63: GDP per capita growth (index) | H63: 124.4814423 | I63: 127.2013639 | J63: 128.9296375 | K63: 132.3821872 | L63: 134.884917 | M63: 137.5173779 | N63: 139.8410818 | O63: 142.3539514 | P63: 140.8731336 | Q63: 133.4294035 | R63: 135.3318267 | S63: 135.7446753 | T63: 136.8901331 | U63: 138.472662 | V63: 141.8115591 | W63: 143.8175596 | X63: 145.3789057 | Y63: 148.3527424 | Z63: 149.5399714 | AA63: 151.1729324 | AB63: 134.9374489 | AC63: 146.7628182 | AD63: 151.8486586 | AE63: 150.6660278 | AF63: 150.5139849 | AG63: 152.3917254 | AH63: 154.6730829 | AI63: 156.682888 | AJ63: 158.5206537 | AK63: 160.9366565 | AL63: 163.4893312 | AM63: 166.014411 | AN63: 168.5489797 | AO63: 171.1058657 | AP63: 173.6738724 | AQ63: 176.2677585 | AR63: 179.1384439 | AS63: 182.0107552 | AT63: 184.8582076 | AU63: 187.6909632 | AV63: 190.4920143 | AW63: 193.2777953 | AX63: 196.0361325 | AY63: 198.7647862 | AZ63: 201.4735956 | BA63: 204.1879155 | BB63: 206.930733 | BC63: 209.6741048 | BD63: 212.4205366 | BE63: 215.1667142 | BF63: 217.9427029 | BG63: 220.7622774 | BH63: 223.6276925 | BI63: 226.5424508 | BJ63: 229.5123511 | BK63: 232.5607006 | BL63: 235.6760861 | BM63: 238.8593274 | BN63: 242.1056236 | BO63: 245.4147265 | BP63: 248.7879876 | BQ63: 252.2314295 | BR63: 255.7363129 | BS63: 259.3131959 | BT63: 262.9534594 | BU63: 266.6600504 | BV63: 270.4331758 | BW63: 274.2654194 | BX63: 278.1626114 | BY63: 282.1523482 | BZ63: 286.3286909 | CA63: 290.7621105 | CB63: 295.0763426 | CC63: 299.0221723 | CD63: 302.8129593 | CE63: 306.5289552 | CF63: 310.0974168 | CG63: 313.7258126 | CH63: 317.3234799 | CI63: 320.8519869 | CJ63: 324.3303236 | CK63: 328.0109277 | CL63: 331.8556486 | CM63: 335.7896544 | CN63: 339.7610164 | CO63: 343.9415497 | CP63: 348.3308393 | CQ63: 352.9675963 | CR63: 357.8654004 | CS63: 363.0981683 | CT63: 368.5137809 | CU63: 374.0605917 | CV63: 379.6811396 | CW63: 385.3930012 | CX63: 391.2136596 | CY63: 397.1374791 | CZ63: 403.1594986 | DA63: 409.2740179 | DB63: 415.4758239 | DC63: 421.7570775 | DD63: 428.1098643 | DE63: =DD63*($DD63/$DC63) -> 434.5583411 | DF63: =DE63*($DD63/$DC63) -> 441.1039491 | DG63: 447.7481515 | DH63: 454.4924333 | DI63: 461.3383019 | DJ63: 468.2872876 | DK63: 475.3409436 | DL63: 482.5008464 | DM63: 489.7685965 | DN63: 497.1458183 | DO63: 504.6341607 | DP63: 512.2352975 | DQ63: 519.9509278 | DR63: 527.782776 | DS63: 535.7325928 | DT63: 543.802155 | DU63: 551.9932663 | DV63: 560.3077576 | DW63: 568.7474874 | DX63: 577.314342 | DY63: 586.0102363 | DZ63: 594.8371139 | EA63: 603.7969479 | EB63: 612.8917409 | EC63: 622.1235257 | ED63: 631.4943659 | EE63: 641.0063559 | EF63: 650.6616218 | EG63: 660.4623218 | EH63: 670.4106465 | EI63: 680.5088196 | EJ63: 690.759098 | EK63: 701.163773 | EL63: 711.7251702 | EM63: 722.4456501 | EN63: 733.3276091 | EO63: 744.3734795 | EP63: 755.5857301 | EQ63: 766.9668671 | ER63: 778.5194344 | ES63: 790.2460142 | ET63: 802.1492276 | EU63: 814.2317351 | EV63: 826.4962375 | EW63: 838.9454759 | EX63: 851.5822331 | EY63: 864.4093336 | EZ63: 877.4296445 | FA63: 890.6460759 | FB63: 904.0615821 | FC63: 917.6791616 | FD63: 931.5018582 | FE63: 945.5327614 | FF63: 959.7750075 | FG63: 974.2317799 | FH63: 988.9063098 | FI63: 1003.801877 | FJ63: 1018.921812 | FK63: 1034.269493 | FL63: 1049.848351 | FM63: 1065.661868 | FN63: 1081.713579 | FO63: 1098.007071 | FP63: 1114.545987 | FQ63: 1131.334024 | FR63: 1148.374933 | FS63: 1165.672523 | FT63: 1183.230661 | FU63: 1201.053272 | FV63: 1219.144339 | FW63: 1237.507905 | FX63: 1256.148076 | FY63: 1275.069017 | FZ63: 1294.274959 | GA63: 1313.770193 | GB63: 1333.559077 | GC63: 1353.646035 | GD63: 1374.035555 | GE63: 1394.732197 | GF63: 1415.740585 | GG63: 1437.065415 | GH63: 1458.711455 | GI63: 1480.683541 | GJ63: 1502.986586 | GK63: 1525.625574 | GL63: 1548.605565 | GM63: 1571.931697 | GN63: 1595.609182 | GO63: 1619.643314 | GP63: 1644.039463 | GQ63: 1668.803084 | GR63: 1693.939711 | GS63: 1719.454962 | GT63: 1745.354542 | GU63: 1771.644238 | GV63: 1798.329927 | GW63: 1825.417573 | GX63: 1852.913232 | GY63: 1880.823049 | GZ63: 1909.153263 | HA63: 1937.910204 | HB63: 1967.100302 | HC63: 1996.730081 | HD63: 2026.806164 | HE63: 2057.335272 | HF63: 2088.32423 | HG63: 2119.779965 | HH63: 2151.709507 | HI63: 2184.119993 | HJ63: 2217.018667 | HK63: 2250.412884 | HL63: 2284.310106 | HM63: 2318.717911 | HN63: 2353.643989 | HO63: 2389.096147 | HP63: 2425.082309 | HQ63: 2461.610519 | HR63: 2498.688941 | HS63: 2536.325863 | HT63: 2574.529697 | HU63: 2613.308984 | HV63: 2652.672389 | HW63: 2692.628713 | HX63: 2733.186885 | HY63: 2774.355972 | HZ63: 2816.145175 | IA63: 2858.563835 | IB63: 2901.621433 | IC63: 2945.327594 | ID63: 2989.692085 | IE63: 3034.724825 | IF63: 3080.435877 | IG63: 3126.83546 | IH63: 3173.933945 | II63: 3221.741858 | IJ63: 3270.269887 | IK63: 3319.528876 | IL63: 3369.529838 | IM63: 3420.283947 | IN63: 3471.802549 | IO63: 3524.097158 | IP63: 3577.179464 | IQ63: 3631.061331 | IR63: 3685.754802 | IS63: 3741.272103 | IT63: 3797.625643 | IU63: 3854.828017 | IV63: 3912.892012 | IW63: 3971.830605 | IX63: 4031.656971 | IY63: 4092.384482 | IZ63: 4154.026711 | JA63: 4216.597436 | JB63: 4280.110644 | JC63: 4344.580529 | JD63: 4410.021504 | JE63: 4476.448194 | JF63: 4543.875447 | JG63: 4612.318334 | JH63: 4681.792154 | JI63: 4752.312435 | JJ63: 4823.89494 | JK63: 4896.555668 | JL63: 4970.31086 | JM63: 5045.177003 | JN63: 5121.170829 | JO63: 5198.309326 | JP63: 5276.609733 | JQ63: 5356.089554 | JR63: 5436.766553 | JS63: 5518.658763 | JT63: 5601.784488 | JU63: 5686.162308 | JV63: 5771.811083 | JW63: 5858.749957 | JX63: 5946.998363 | JY63: 6036.576025 | JZ63: 6127.502966 | KA63: 6219.799509 | KB63: 6313.486284 | KC63: 6408.584232 | KD63: 6505.114609 | KE63: 6603.098991 | KF63: 6702.559279 | KG63: 6803.517705 | KH63: 6905.996834 | KI63: 7010.019571 | KJ63: 7115.609169 | KK63: 7222.789228 | KL63: 7331.583704 | KM63: 7442.016916 | KN63: 7554.113546 | KO63: 7667.898651 | KP63: 7783.397663 | KQ63: 7900.636398 | KR63: 8019.641061 | KS63: 8140.438252 | KT63: 8263.054971 | KU63: 8387.518625 | KV63: 8513.857034
C64: GDP per capita % change | I64: =(I63-H63)/H63 -> 0.02185001694 | J64: =(J63-I63)/I63 -> 0.01358691072 | K64: 0.02677855756 | L64: 0.01890533635 | M64: 0.01951634739 | N64: 0.01689752956 | O64: 0.01796946623 | P64: -0.01040236523 | Q64: -0.05283995552 | R64: 0.01425790083 | S64: 0.003050639163 | T64: 0.008438325734 | U64: 0.01156057681 | V64: 0.02411232023 | W64: 0.01414553554 | X64: 0.01085643566 | Y64: 0.02045576502 | Z64: 0.008002743918 | AA64: 0.0109198963 | AB64: -0.1073967626 | AC64: 0.08763593406 | AD64: 0.03465346634 | AE64: -0.007788220115 | AF64: -0.001009138747 | AG64: 0.01247552169 | AH64: 0.01497035027 | AI64: 0.01299389056 | AJ64: 0.01172920464 | AK64: 0.01524093406 | AL64: 0.01586136317 | AM64: 0.01544492076 | AN64: 0.01526716043 | AO64: 0.01516998835 | AP64: 0.0150082911 | AQ64: 0.01493538516 | AR64: 0.01628593573 | AS64: 0.01603403065 | AT64: 0.01564441802 | AU64: 0.01532393778 | AV64: 0.01492373949 | AW64: 0.01462413574 | AX64: 0.01427136071 | AY64: 0.01391913672 | AZ64: 0.01362821555 | BA64: 0.0134723359 | BB64: 0.01343281012 | BC64: 0.01325744021 | BD64: 0.01309857385 | BE64: 0.01292802327 | BF64: 0.01290157106 | BG64: 0.01293722845 | BH64: 0.01297964102 | BI64: 0.01303397727 | BJ64: 0.0131096855 | BK64: 0.01328185388 | BL64: 0.01339601015 | BM64: 0.01350684922 | BN64: 0.01359082866 | BO64: 0.01366801336 | BP64: 0.01374514535 | BQ64: 0.01384086889 | BR64: 0.01389550622 | BS64: 0.01398660576 | BT64: 0.01403809574 | BU64: 0.01409599637 | BV64: =(BV63-BU63)/BU63 -> 0.01414957114 | BW64: 0.01417075988 | BX64: 0.01420956417 | BY64: 0.01434318148 | BZ64: 0.01480172932 | CA64: 0.01548367223 | CB64: 0.01483766953 | CC64: 0.01337223333 | CD64: 0.01267727729 | CE64: 0.01227158795 | CF64: 0.01164151546 | CG64: 0.01170082581 | CH64: 0.01146755258 | CI64: 0.01111959005 | CJ64: 0.01084093881 | CK64: 0.01134831937 | CL64: 0.01172131938 | CM64: 0.01185456931 | CN64: 0.01182693397 | CO64: 0.01230433479 | CP64: 0.01276173114 | CQ64: 0.01331135924 | CR64: 0.01387607313 | CS64: 0.01462216757 | CT64: 0.0149150095 | CU64: 0.01505184094 | CV64: 0.0150257686 | CW64: 0.01504383803 | CX64: 0.01510317626 | CY64: 0.01514215923 | CZ64: 0.01516356363 | DA64: 0.01516650182 | DB64: 0.01515318767 | DC64: 0.01511821693 | DD64: 0.01506266804 | DE64: =(DE63-DD63)/DD63 -> 0.01506266804 | DF64: =(DF63-DE63)/DE63 -> 0.01506266804 | DG64: =(DG63-DF63)/DF63 -> 0.01506266804 | DH64: =(DH63-DG63)/DG63 -> 0.01506266804 | DI64: =(DI63-DH63)/DH63 -> 0.01506266804 | DJ64: =(DJ63-DI63)/DI63 -> 0.01506266804 | DK64: =(DK63-DJ63)/DJ63 -> 0.01506266804 | DL64: =(DL63-DK63)/DK63 -> 0.01506266804 | DM64: =(DM63-DL63)/DL63 -> 0.01506266804 | DN64: =(DN63-DM63)/DM63 -> 0.01506266804 | DO64: =(DO63-DN63)/DN63 -> 0.01506266804 | DP64: =(DP63-DO63)/DO63 -> 0.01506266804 | DQ64: =(DQ63-DP63)/DP63 -> 0.01506266804 | DR64: =(DR63-DQ63)/DQ63 -> 0.01506266804 | DS64: =(DS63-DR63)/DR63 -> 0.01506266804 | DT64: =(DT63-DS63)/DS63 -> 0.01506266804 | DU64: =(DU63-DT63)/DT63 -> 0.01506266804 | DV64: =(DV63-DU63)/DU63 -> 0.01506266804 | DW64: =(DW63-DV63)/DV63 -> 0.01506266804 | DX64: =(DX63-DW63)/DW63 -> 0.01506266804 | DY64: =(DY63-DX63)/DX63 -> 0.01506266804 | DZ64: =(DZ63-DY63)/DY63 -> 0.01506266804 | EA64: =(EA63-DZ63)/DZ63 -> 0.01506266804 | EB64: =(EB63-EA63)/EA63 -> 0.01506266804 | EC64: =(EC63-EB63)/EB63 -> 0.01506266804 | ED64: =(ED63-EC63)/EC63 -> 0.01506266804 | EE64: =(EE63-ED63)/ED63 -> 0.01506266804 | EF64: =(EF63-EE63)/EE63 -> 0.01506266804 | EG64: =(EG63-EF63)/EF63 -> 0.01506266804 | EH64: =(EH63-EG63)/EG63 -> 0.01506266804 | EI64: =(EI63-EH63)/EH63 -> 0.01506266804 | EJ64: =(EJ63-EI63)/EI63 -> 0.01506266804 | EK64: =(EK63-EJ63)/EJ63 -> 0.01506266804 | EL64: =(EL63-EK63)/EK63 -> 0.01506266804 | EM64: =(EM63-EL63)/EL63 -> 0.01506266804 | EN64: =(EN63-EM63)/EM63 -> 0.01506266804 | EO64: =(EO63-EN63)/EN63 -> 0.01506266804 | EP64: =(EP63-EO63)/EO63 -> 0.01506266804 | EQ64: =(EQ63-EP63)/EP63 -> 0.01506266804 | ER64: =(ER63-EQ63)/EQ63 -> 0.01506266804 | ES64: =(ES63-ER63)/ER63 -> 0.01506266804 | ET64: =(ET63-ES63)/ES63 -> 0.01506266804 | EU64: =(EU63-ET63)/ET63 -> 0.01506266804 | EV64: =(EV63-EU63)/EU63 -> 0.01506266804 | EW64: =(EW63-EV63)/EV63 -> 0.01506266804 | EX64: =(EX63-EW63)/EW63 -> 0.01506266804 | EY64: =(EY63-EX63)/EX63 -> 0.01506266804 | EZ64: =(EZ63-EY63)/EY63 -> 0.01506266804 | FA64: =(FA63-EZ63)/EZ63 -> 0.01506266804 | FB64: =(FB63-FA63)/FA63 -> 0.01506266804 | FC64: =(FC63-FB63)/FB63 -> 0.01506266804 | FD64: =(FD63-FC63)/FC63 -> 0.01506266804 | FE64: =(FE63-FD63)/FD63 -> 0.01506266804 | FF64: =(FF63-FE63)/FE63 -> 0.01506266804 | FG64: =(FG63-FF63)/FF63 -> 0.01506266804 | FH64: =(FH63-FG63)/FG63 -> 0.01506266804 | FI64: =(FI63-FH63)/FH63 -> 0.01506266804 | FJ64: =(FJ63-FI63)/FI63 -> 0.01506266804 | FK64: =(FK63-FJ63)/FJ63 -> 0.01506266804 | FL64: =(FL63-FK63)/FK63 -> 0.01506266804 | FM64: =(FM63-FL63)/FL63 -> 0.01506266804 | FN64: =(FN63-FM63)/FM63 -> 0.01506266804 | FO64: =(FO63-FN63)/FN63 -> 0.01506266804 | FP64: =(FP63-FO63)/FO63 -> 0.01506266804 | FQ64: =(FQ63-FP63)/FP63 -> 0.01506266804 | FR64: =(FR63-FQ63)/FQ63 -> 0.01506266804 | FS64: =(FS63-FR63)/FR63 -> 0.01506266804 | FT64: =(FT63-FS63)/FS63 -> 0.01506266804 | FU64: =(FU63-FT63)/FT63 -> 0.01506266804 | FV64: =(FV63-FU63)/FU63 -> 0.01506266804 | FW64: =(FW63-FV63)/FV63 -> 0.01506266804 | FX64: =(FX63-FW63)/FW63 -> 0.01506266804 | FY64: =(FY63-FX63)/FX63 -> 0.01506266804 | FZ64: =(FZ63-FY63)/FY63 -> 0.01506266804 | GA64: =(GA63-FZ63)/FZ63 -> 0.01506266804 | GB64: =(GB63-GA63)/GA63 -> 0.01506266804 | GC64: =(GC63-GB63)/GB63 -> 0.01506266804 | GD64: =(GD63-GC63)/GC63 -> 0.01506266804 | GE64: =(GE63-GD63)/GD63 -> 0.01506266804 | GF64: =(GF63-GE63)/GE63 -> 0.01506266804 | GG64: =(GG63-GF63)/GF63 -> 0.01506266804 | GH64: =(GH63-GG63)/GG63 -> 0.01506266804 | GI64: =(GI63-GH63)/GH63 -> 0.01506266804 | GJ64: =(GJ63-GI63)/GI63 -> 0.01506266804 | GK64: =(GK63-GJ63)/GJ63 -> 0.01506266804 | GL64: =(GL63-GK63)/GK63 -> 0.01506266804 | GM64: =(GM63-GL63)/GL63 -> 0.01506266804 | GN64: =(GN63-GM63)/GM63 -> 0.01506266804 | GO64: =(GO63-GN63)/GN63 -> 0.01506266804 | GP64: =(GP63-GO63)/GO63 -> 0.01506266804 | GQ64: =(GQ63-GP63)/GP63 -> 0.01506266804 | GR64: =(GR63-GQ63)/GQ63 -> 0.01506266804 | GS64: =(GS63-GR63)/GR63 -> 0.01506266804 | GT64: =(GT63-GS63)/GS63 -> 0.01506266804 | GU64: =(GU63-GT63)/GT63 -> 0.01506266804 | GV64: =(GV63-GU63)/GU63 -> 0.01506266804 | GW64: =(GW63-GV63)/GV63 -> 0.01506266804 | GX64: =(GX63-GW63)/GW63 -> 0.01506266804 | GY64: =(GY63-GX63)/GX63 -> 0.01506266804 | GZ64: =(GZ63-GY63)/GY63 -> 0.01506266804 | HA64: =(HA63-GZ63)/GZ63 -> 0.01506266804 | HB64: =(HB63-HA63)/HA63 -> 0.01506266804 | HC64: =(HC63-HB63)/HB63 -> 0.01506266804 | HD64: =(HD63-HC63)/HC63 -> 0.01506266804 | HE64: =(HE63-HD63)/HD63 -> 0.01506266804 | HF64: =(HF63-HE63)/HE63 -> 0.01506266804 | HG64: =(HG63-HF63)/HF63 -> 0.01506266804 | HH64: =(HH63-HG63)/HG63 -> 0.01506266804 | HI64: =(HI63-HH63)/HH63 -> 0.01506266804 | HJ64: =(HJ63-HI63)/HI63 -> 0.01506266804 | HK64: =(HK63-HJ63)/HJ63 -> 0.01506266804 | HL64: =(HL63-HK63)/HK63 -> 0.01506266804 | HM64: =(HM63-HL63)/HL63 -> 0.01506266804 | HN64: =(HN63-HM63)/HM63 -> 0.01506266804 | HO64: =(HO63-HN63)/HN63 -> 0.01506266804 | HP64: =(HP63-HO63)/HO63 -> 0.01506266804 | HQ64: =(HQ63-HP63)/HP63 -> 0.01506266804 | HR64: =(HR63-HQ63)/HQ63 -> 0.01506266804 | HS64: =(HS63-HR63)/HR63 -> 0.01506266804 | HT64: =(HT63-HS63)/HS63 -> 0.01506266804 | HU64: =(HU63-HT63)/HT63 -> 0.01506266804 | HV64: =(HV63-HU63)/HU63 -> 0.01506266804 | HW64: =(HW63-HV63)/HV63 -> 0.01506266804 | HX64: =(HX63-HW63)/HW63 -> 0.01506266804 | HY64: =(HY63-HX63)/HX63 -> 0.01506266804 | HZ64: =(HZ63-HY63)/HY63 -> 0.01506266804 | IA64: =(IA63-HZ63)/HZ63 -> 0.01506266804 | IB64: =(IB63-IA63)/IA63 -> 0.01506266804 | IC64: =(IC63-IB63)/IB63 -> 0.01506266804 | ID64: =(ID63-IC63)/IC63 -> 0.01506266804 | IE64: =(IE63-ID63)/ID63 -> 0.01506266804 | IF64: =(IF63-IE63)/IE63 -> 0.01506266804 | IG64: =(IG63-IF63)/IF63 -> 0.01506266804 | IH64: =(IH63-IG63)/IG63 -> 0.01506266804 | II64: =(II63-IH63)/IH63 -> 0.01506266804 | IJ64: =(IJ63-II63)/II63 -> 0.01506266804 | IK64: =(IK63-IJ63)/IJ63 -> 0.01506266804 | IL64: =(IL63-IK63)/IK63 -> 0.01506266804 | IM64: =(IM63-IL63)/IL63 -> 0.01506266804 | IN64: =(IN63-IM63)/IM63 -> 0.01506266804 | IO64: =(IO63-IN63)/IN63 -> 0.01506266804 | IP64: =(IP63-IO63)/IO63 -> 0.01506266804 | IQ64: =(IQ63-IP63)/IP63 -> 0.01506266804 | IR64: =(IR63-IQ63)/IQ63 -> 0.01506266804 | IS64: =(IS63-IR63)/IR63 -> 0.01506266804 | IT64: =(IT63-IS63)/IS63 -> 0.01506266804 | IU64: =(IU63-IT63)/IT63 -> 0.01506266804 | IV64: =(IV63-IU63)/IU63 -> 0.01506266804 | IW64: =(IW63-IV63)/IV63 -> 0.01506266804 | IX64: =(IX63-IW63)/IW63 -> 0.01506266804 | IY64: =(IY63-IX63)/IX63 -> 0.01506266804 | IZ64: =(IZ63-IY63)/IY63 -> 0.01506266804 | JA64: =(JA63-IZ63)/IZ63 -> 0.01506266804 | JB64: =(JB63-JA63)/JA63 -> 0.01506266804 | JC64: =(JC63-JB63)/JB63 -> 0.01506266804 | JD64: =(JD63-JC63)/JC63 -> 0.01506266804 | JE64: =(JE63-JD63)/JD63 -> 0.01506266804 | JF64: =(JF63-JE63)/JE63 -> 0.01506266804 | JG64: =(JG63-JF63)/JF63 -> 0.01506266804 | JH64: =(JH63-JG63)/JG63 -> 0.01506266804 | JI64: =(JI63-JH63)/JH63 -> 0.01506266804 | JJ64: =(JJ63-JI63)/JI63 -> 0.01506266804 | JK64: =(JK63-JJ63)/JJ63 -> 0.01506266804 | JL64: =(JL63-JK63)/JK63 -> 0.01506266804 | JM64: =(JM63-JL63)/JL63 -> 0.01506266804 | JN64: =(JN63-JM63)/JM63 -> 0.01506266804 | JO64: =(JO63-JN63)/JN63 -> 0.01506266804 | JP64: =(JP63-JO63)/JO63 -> 0.01506266804 | JQ64: =(JQ63-JP63)/JP63 -> 0.01506266804 | JR64: =(JR63-JQ63)/JQ63 -> 0.01506266804 | JS64: =(JS63-JR63)/JR63 -> 0.01506266804 | JT64: =(JT63-JS63)/JS63 -> 0.01506266804 | JU64: =(JU63-JT63)/JT63 -> 0.01506266804 | JV64: =(JV63-JU63)/JU63 -> 0.01506266804 | JW64: =(JW63-JV63)/JV63 -> 0.01506266804 | JX64: =(JX63-JW63)/JW63 -> 0.01506266804 | JY64: =(JY63-JX63)/JX63 -> 0.01506266804 | JZ64: =(JZ63-JY63)/JY63 -> 0.01506266804 | KA64: =(KA63-JZ63)/JZ63 -> 0.01506266804 | KB64: =(KB63-KA63)/KA63 -> 0.01506266804 | KC64: =(KC63-KB63)/KB63 -> 0.01506266804 | KD64: =(KD63-KC63)/KC63 -> 0.01506266804 | KE64: =(KE63-KD63)/KD63 -> 0.01506266804 | KF64: =(KF63-KE63)/KE63 -> 0.01506266804 | KG64: =(KG63-KF63)/KF63 -> 0.01506266804 | KH64: =(KH63-KG63)/KG63 -> 0.01506266804 | KI64: =(KI63-KH63)/KH63 -> 0.01506266804 | KJ64: =(KJ63-KI63)/KI63 -> 0.01506266804 | KK64: =(KK63-KJ63)/KJ63 -> 0.01506266804 | KL64: =(KL63-KK63)/KK63 -> 0.01506266804 | KM64: =(KM63-KL63)/KL63 -> 0.01506266804 | KN64: =(KN63-KM63)/KM63 -> 0.01506266804 | KO64: =(KO63-KN63)/KN63 -> 0.01506266804 | KP64: =(KP63-KO63)/KO63 -> 0.01506266804 | KQ64: =(KQ63-KP63)/KP63 -> 0.01506266804 | KR64: =(KR63-KQ63)/KQ63 -> 0.01506266804 | KS64: =(KS63-KR63)/KR63 -> 0.01506266804 | KT64: =(KT63-KS63)/KS63 -> 0.01506266804 | KU64: =(KU63-KT63)/KT63 -> 0.01506266804 | KV64: =(KV63-KU63)/KU63 -> 0.01506266804
C65: Population growth (index) | H65: 102.8802795 | I65: 103.276698 | J65: 103.7181917 | K65: 104.1916576 | L65: 104.7397248 | M65: 105.5484604 | N65: 106.271413 | O65: 107.1309893 | P65: 108.0127539 | Q65: 108.7757152 | R65: 109.6475213 | S65: 110.5658004 | T65: 111.2994104 | U65: 111.9994759 | V65: 112.8574798 | W65: 113.7540948 | X65: 114.6942127 | Y65: 115.3792531 | Z65: 116.070059 | AA65: 116.7011138 | AB65: 117.1976414 | AC65: 117.1020747 | AD65: 118.0979253 | AE65: 119.1971573 | AF65: 120.2145568 | AG65: 120.9350912 | AH65: 121.5500065 | AI65: 122.1834824 | AJ65: 122.818976 | AK65: 123.2030503 | AL65: 123.5702905 | AM65: 123.9216658 | AN65: 124.2585361 | AO65: 124.5817627 | AP65: 124.8926011 | AQ65: 125.1931453 | AR65: 125.4874981 | AS65: 125.7798932 | AT65: 126.0720849 | AU65: 126.3651344 | AV65: 126.6597082 | AW65: 126.9551857 | AX65: 127.2503626 | AY65: 127.5445386 | AZ65: 127.8366454 | BA65: 128.123392 | BB65: 128.4014537 | BC65: 128.6688143 | BD65: 128.9233093 | BE65: 129.1628502 | BF65: 129.3857958 | BG65: 129.5914262 | BH65: 129.7796161 | BI65: 129.9504484 | BJ65: 130.1044944 | BK65: 130.2431724 | BL65: 130.3685162 | BM65: 130.4828548 | BN65: 130.5885438 | BO65: 130.6879317 | BP65: 130.7833494 | BQ65: 130.8768873 | BR65: 130.9705507 | BS65: 131.0661364 | BT65: 131.1651795 | BU65: 131.2688153 | BV65: 131.3777336 | BW65: 131.4921287 | BX65: 131.6120097 | BY65: 131.7370263 | BZ65: 131.8665649 | CA65: 131.9996545 | CB65: 132.1351369 | CC65: 132.2717953 | CD65: 132.4083123 | CE65: 132.5434269 | CF65: 132.6759807 | CG65: 132.8048826 | CH65: 132.9293138 | CI65: 133.0485351 | CJ65: 133.1620779 | CK65: 133.2696079 | CL65: 133.3709411 | CM65: 133.46606 | CN65: 133.5550706 | CO65: 133.6381515 | CP65: 133.715644 | CQ65: 133.7878948 | CR65: 133.8553141 | CS65: 133.9183388 | CT65: 133.9775012 | CU65: 134.0331885 | CV65: 134.0858694 | CW65: 134.1359365 | CX65: 134.1837877 | CY65: 134.2297202 | CZ65: 134.2737886 | DA65: 134.3160462 | DB65: 134.3564504 | DC65: 134.3949128 | DD65: 134.431315 | DE65: =DD65*($DD65/$DC65) -> 134.467727 | DF65: 134.5041489 | DG65: 134.5405807 | DH65: 134.5770223 | DI65: 134.6134738 | DJ65: 134.6499351 | DK65: 134.6864064 | DL65: 134.7228875 | DM65: 134.7593785 | DN65: 134.7958794 | DO65: 134.8323902 | DP65: 134.8689108 | DQ65: 134.9054414 | DR65: 134.9419818 | DS65: 134.9785322 | DT65: 135.0150924 | DU65: 135.0516626 | DV65: 135.0882426 | DW65: 135.1248326 | DX65: 135.1614324 | DY65: 135.1980422 | DZ65: 135.2346619 | EA65: 135.2712915 | EB65: 135.3079311 | EC65: 135.3445806 | ED65: 135.3812399 | EE65: 135.4179093 | EF65: 135.4545885 | EG65: 135.4912777 | EH65: 135.5279768 | EI65: 135.5646859 | EJ65: 135.6014049 | EK65: 135.6381339 | EL65: 135.6748728 | EM65: 135.7116216 | EN65: 135.7483804 | EO65: 135.7851492 | EP65: 135.8219279 | EQ65: 135.8587166 | ER65: 135.8955153 | ES65: 135.9323239 | ET65: 135.9691425 | EU65: 136.005971 | EV65: 136.0428096 | EW65: 136.0796581 | EX65: 136.1165166 | EY65: 136.1533851 | EZ65: 136.1902635 | FA65: 136.227152 | FB65: 136.2640504 | FC65: 136.3009589 | FD65: 136.3378773 | FE65: 136.3748057 | FF65: 136.4117442 | FG65: 136.4486926 | FH65: 136.4856511 | FI65: 136.5226195 | FJ65: 136.559598 | FK65: 136.5965865 | FL65: 136.633585 | FM65: 136.6705935 | FN65: 136.7076121 | FO65: 136.7446407 | FP65: 136.7816793 | FQ65: =FP65*($DD65/$DC65) -> 136.8187279 | FR65: 136.8557866 | FS65: 136.8928553 | FT65: 136.9299341 | FU65: 136.9670229 | FV65: 137.0041217 | FW65: 137.0412306 | FX65: 137.0783496 | FY65: 137.1154786 | FZ65: 137.1526176 | GA65: 137.1897668 | GB65: 137.2269259 | GC65: 137.2640952 | GD65: 137.3012745 | GE65: 137.3384639 | GF65: 137.3756633 | GG65: 137.4128729 | GH65: 137.4500925 | GI65: 137.4873222 | GJ65: 137.5245619 | GK65: 137.5618118 | GL65: 137.5990718 | GM65: 137.6363418 | GN65: 137.6736219 | GO65: 137.7109122 | GP65: 137.7482125 | GQ65: 137.7855229 | GR65: 137.8228435 | GS65: 137.8601741 | GT65: 137.8975149 | GU65: 137.9348658 | GV65: 137.9722268 | GW65: 138.0095979 | GX65: 138.0469791 | GY65: 138.0843705 | GZ65: 138.121772 | HA65: 138.1591836 | HB65: 138.1966054 | HC65: 138.2340373 | HD65: 138.2714793 | HE65: 138.3089315 | HF65: 138.3463938 | HG65: 138.3838662 | HH65: 138.4213489 | HI65: 138.4588416 | HJ65: 138.4963445 | HK65: 138.5338576 | HL65: 138.5713809 | HM65: 138.6089143 | HN65: 138.6464578 | HO65: 138.6840116 | HP65: 138.7215755 | HQ65: 138.7591496 | HR65: 138.7967338 | HS65: 138.8343283 | HT65: 138.8719329 | HU65: 138.9095477 | HV65: 138.9471727 | HW65: 138.9848079 | HX65: 139.0224533 | HY65: 139.0601088 | HZ65: 139.0977746 | IA65: 139.1354506 | IB65: 139.1731368 | IC65: =IB65*($DD65/$DC65) -> 139.2108332 | ID65: 139.2485398 | IE65: 139.2862566 | IF65: 139.3239836 | IG65: 139.3617209 | IH65: 139.3994684 | II65: 139.4372261 | IJ65: 139.474994 | IK65: 139.5127722 | IL65: 139.5505605 | IM65: 139.5883592 | IN65: 139.626168 | IO65: 139.6639871 | IP65: 139.7018165 | IQ65: 139.7396561 | IR65: 139.7775059 | IS65: 139.815366 | IT65: 139.8532363 | IU65: 139.891117 | IV65: 139.9290078 | IW65: 139.9669089 | IX65: 140.0048203 | IY65: 140.042742 | IZ65: 140.0806739 | JA65: 140.1186161 | JB65: 140.1565686 | JC65: 140.1945314 | JD65: 140.2325045 | JE65: 140.2704878 | JF65: 140.3084814 | JG65: 140.3464853 | JH65: 140.3844995 | JI65: 140.422524 | JJ65: 140.4605588 | JK65: 140.4986039 | JL65: 140.5366593 | JM65: 140.5747251 | JN65: 140.6128011 | JO65: 140.6508874 | JP65: 140.6889841 | JQ65: 140.7270911 | JR65: 140.7652084 | JS65: =JR65*($DD65/$DC65) -> 140.803336 | JT65: =JS65*($DD65/$DC65) -> 140.8414739 | JU65: =JT65*($DD65/$DC65) -> 140.8796222 | JV65: =JU65*($DD65/$DC65) -> 140.9177808 | JW65: =JV65*($DD65/$DC65) -> 140.9559498 | JX65: =JW65*($DD65/$DC65) -> 140.9941291 | JY65: =JX65*($DD65/$DC65) -> 141.0323187 | JZ65: =JY65*($DD65/$DC65) -> 141.0705187 | KA65: =JZ65*($DD65/$DC65) -> 141.108729 | KB65: =KA65*($DD65/$DC65) -> 141.1469496 | KC65: =KB65*($DD65/$DC65) -> 141.1851807 | KD65: =KC65*($DD65/$DC65) -> 141.223422 | KE65: =KD65*($DD65/$DC65) -> 141.2616738 | KF65: =KE65*($DD65/$DC65) -> 141.2999359 | KG65: =KF65*($DD65/$DC65) -> 141.3382083 | KH65: =KG65*($DD65/$DC65) -> 141.3764912 | KI65: =KH65*($DD65/$DC65) -> 141.4147843 | KJ65: =KI65*($DD65/$DC65) -> 141.4530879 | KK65: =KJ65*($DD65/$DC65) -> 141.4914019 | KL65: =KK65*($DD65/$DC65) -> 141.5297262 | KM65: =KL65*($DD65/$DC65) -> 141.5680609 | KN65: =KM65*($DD65/$DC65) -> 141.606406 | KO65: =KN65*($DD65/$DC65) -> 141.6447614 | KP65: =KO65*($DD65/$DC65) -> 141.6831273 | KQ65: =KP65*($DD65/$DC65) -> 141.7215035 | KR65: =KQ65*($DD65/$DC65) -> 141.7598902 | KS65: =KR65*($DD65/$DC65) -> 141.7982872 | KT65: =KS65*($DD65/$DC65) -> 141.8366947 | KU65: =KT65*($DD65/$DC65) -> 141.8751125 | KV65: =KU65*($DD65/$DC65) -> 141.9135408
C68: Key assumptions
C69: Sources: Temple, eftec and TRL (2019); Simetrica (2019)
C70: Link to Temple, eftec and TRL (2019)
C71: Link to Simetrica (2019)
H72: Landscape values
H73: Central | I73: Low sensitivity | J73: High sensitivity
C74: Appraisal period | H74: 100 yrs | I74: 60 yrs | J74: 250 yrs
C75: Income elasticity of willingness-to-pay for landscape | H75: 1 | I75: 0.8 | J75: 1.2
C76: Long-term income growth rate (pa) | H76: =$JR$63/$JQ$63-1 -> 0.01506266804 | I76: =$JR$63/$JQ$63-1 -> 0.01506266804 | J76: 0.01506266804 | K76: =C59 -> Source: TAG Data Book v1.23 (May 2024)
C77: Long term population growth rate (pa) | H77: =$JR$65/$JQ$65-1 -> 0.0002708597 | I77: =$JR$65/$JQ$65-1 -> 0.0002708597 | J77: 0.0002708597 | K77: =C59 -> Source: TAG Data Book v1.23 (May 2024)
C80: Combined growth factors
H82: Year
H83: 2000 | I83: 2001 | J83: 2002 | K83: 2003 | L83: 2004 | M83: 2005 | N83: 2006 | O83: 2007 | P83: 2008 | Q83: 2009 | R83: 2010 | S83: 2011 | T83: 2012 | U83: 2013 | V83: 2014 | W83: 2015 | X83: 2016 | Y83: 2017 | Z83: 2018 | AA83: 2019 | AB83: 2020 | AC83: 2021 | AD83: 2022 | AE83: 2023 | AF83: 2024 | AG83: 2025 | AH83: 2026 | AI83: 2027 | AJ83: 2028 | AK83: 2029 | AL83: 2030 | AM83: 2031 | AN83: 2032 | AO83: 2033 | AP83: 2034 | AQ83: 2035 | AR83: 2036 | AS83: 2037 | AT83: 2038 | AU83: 2039 | AV83: 2040 | AW83: 2041 | AX83: 2042 | AY83: 2043 | AZ83: 2044 | BA83: 2045 | BB83: 2046 | BC83: 2047 | BD83: 2048 | BE83: 2049 | BF83: 2050 | BG83: 2051 | BH83: 2052 | BI83: 2053 | BJ83: 2054 | BK83: 2055 | BL83: 2056 | BM83: 2057 | BN83: 2058 | BO83: 2059 | BP83: 2060 | BQ83: 2061 | BR83: 2062 | BS83: 2063 | BT83: 2064 | BU83: 2065 | BV83: 2066 | BW83: 2067 | BX83: 2068 | BY83: 2069 | BZ83: 2070 | CA83: 2071 | CB83: 2072 | CC83: 2073 | CD83: 2074 | CE83: 2075 | CF83: 2076 | CG83: 2077 | CH83: 2078 | CI83: 2079 | CJ83: 2080 | CK83: 2081 | CL83: 2082 | CM83: 2083 | CN83: 2084 | CO83: 2085 | CP83: 2086 | CQ83: 2087 | CR83: 2088 | CS83: 2089 | CT83: 2090 | CU83: 2091 | CV83: 2092 | CW83: 2093 | CX83: 2094 | CY83: 2095 | CZ83: 2096 | DA83: 2097 | DB83: 2098 | DC83: 2099 | DD83: 2100 | DE83: 2101 | DF83: 2102 | DG83: 2103 | DH83: 2104 | DI83: 2105 | DJ83: 2106 | DK83: 2107 | DL83: 2108 | DM83: 2109 | DN83: 2110 | DO83: 2111 | DP83: 2112 | DQ83: 2113 | DR83: 2114 | DS83: 2115 | DT83: 2116 | DU83: 2117 | DV83: 2118 | DW83: 2119 | DX83: 2120 | DY83: 2121 | DZ83: 2122 | EA83: 2123 | EB83: 2124 | EC83: 2125 | ED83: 2126 | EE83: 2127 | EF83: 2128 | EG83: 2129 | EH83: 2130 | EI83: 2131 | EJ83: 2132 | EK83: 2133 | EL83: 2134 | EM83: 2135 | EN83: 2136 | EO83: 2137 | EP83: 2138 | EQ83: 2139 | ER83: 2140 | ES83: 2141 | ET83: 2142 | EU83: 2143 | EV83: 2144 | EW83: 2145 | EX83: 2146 | EY83: 2147 | EZ83: 2148 | FA83: 2149 | FB83: 2150 | FC83: 2151 | FD83: 2152 | FE83: 2153 | FF83: 2154 | FG83: 2155 | FH83: 2156 | FI83: 2157 | FJ83: 2158 | FK83: 2159 | FL83: 2160 | FM83: 2161 | FN83: 2162 | FO83: 2163 | FP83: 2164 | FQ83: 2165 | FR83: 2166 | FS83: 2167 | FT83: 2168 | FU83: 2169 | FV83: 2170 | FW83: 2171 | FX83: 2172 | FY83: 2173 | FZ83: 2174 | GA83: 2175 | GB83: 2176 | GC83: 2177 | GD83: 2178 | GE83: 2179 | GF83: 2180 | GG83: 2181 | GH83: 2182 | GI83: 2183 | GJ83: 2184 | GK83: 2185 | GL83: 2186 | GM83: 2187 | GN83: 2188 | GO83: 2189 | GP83: 2190 | GQ83: 2191 | GR83: 2192 | GS83: 2193 | GT83: 2194 | GU83: 2195 | GV83: 2196 | GW83: 2197 | GX83: 2198 | GY83: 2199 | GZ83: 2200 | HA83: 2201 | HB83: 2202 | HC83: 2203 | HD83: 2204 | HE83: 2205 | HF83: 2206 | HG83: 2207 | HH83: 2208 | HI83: 2209 | HJ83: 2210 | HK83: 2211 | HL83: 2212 | HM83: 2213 | HN83: 2214 | HO83: 2215 | HP83: 2216 | HQ83: 2217 | HR83: 2218 | HS83: 2219 | HT83: 2220 | HU83: 2221 | HV83: 2222 | HW83: 2223 | HX83: 2224 | HY83: 2225 | HZ83: 2226 | IA83: 2227 | IB83: 2228 | IC83: 2229 | ID83: 2230 | IE83: 2231 | IF83: 2232 | IG83: 2233 | IH83: 2234 | II83: 2235 | IJ83: 2236 | IK83: 2237 | IL83: 2238 | IM83: 2239 | IN83: 2240 | IO83: 2241 | IP83: 2242 | IQ83: 2243 | IR83: 2244 | IS83: 2245 | IT83: 2246 | IU83: 2247 | IV83: 2248 | IW83: 2249 | IX83: 2250 | IY83: 2251 | IZ83: 2252 | JA83: 2253 | JB83: 2254 | JC83: 2255 | JD83: 2256 | JE83: 2257 | JF83: 2258 | JG83: 2259 | JH83: 2260 | JI83: 2261 | JJ83: 2262 | JK83: 2263 | JL83: 2264 | JM83: 2265 | JN83: 2266 | JO83: 2267 | JP83: 2268 | JQ83: 2269 | JR83: 2270 | JS83: 2271 | JT83: 2272 | JU83: 2273 | JV83: 2274 | JW83: 2275 | JX83: 2276 | JY83: 2277 | JZ83: 2278 | KA83: 2279 | KB83: 2280 | KC83: 2281 | KD83: 2282 | KE83: 2283 | KF83: 2284 | KG83: 2285 | KH83: 2286 | KI83: 2287 | KJ83: 2288 | KK83: 2289 | KL83: 2290 | KM83: 2291 | KN83: 2292 | KO83: 2293 | KP83: 2294 | KQ83: 2295 | KR83: 2296 | KS83: 2297 | KT83: 2298 | KU83: 2299 | KV83: 2300
C84: Central values | H84: =(H$63/$H$63)^$H$75*(H$65/$H$65) -> 1 | I84: 1.025787411 | J84: 1.044169374 | K84: 1.07702492 | L84: 1.103158893 | M84: 1.133372676 | N84: 1.16041807 | O84: 1.190824867 | P84: 1.188136854 | Q84: 1.133304844 | R84: 1.15867601 | S84: 1.171944027 | T84: 1.189674799 | U84: 1.210997605 | V84: 1.249698454 | W84: 1.277444988 | X84: 1.301985516 | Y84: 1.336554139 | Z84: 1.35531658 | AA84: 1.377565606 | AB84: 1.234851176 | AC84: 1.341973331 | AD84: 1.400285143 | AE84: 1.402311481 | AF84: 1.412853612 | AG84: 1.439053618 | AH84: 1.468023409 | AI84: 1.494848982 | AJ84: 1.520248486 | AK84: 1.548245005 | AL84: 1.577490447 | AM84: 1.606409577 | AN84: 1.635368445 | AO84: 1.664495488 | AP84: 1.693692059 | AQ84: 1.723124611 | AR84: 1.755304681 | AS84: 1.787604858 | AT84: 1.819788539 | AU84: 1.851969711 | AV84: 1.883989639 | AW84: 1.91600069 | AX84: 1.947862997 | AY84: 1.979541294 | AZ84: 2.011114307 | BA84: 2.04278056 | BB84: 2.074713771 | BC84: 2.106596457 | BD84: 2.138411096 | BE84: 2.170081081 | BF84: 2.201872598 | BG84: 2.233903395 | BH84: 2.266184791 | BI84: 2.298744111 | BJ84: 2.331640627 | BK84: 2.365127436 | BL84: 2.399117356 | BM84: 2.433654418 | BN84: 2.468727809 | BO84: 2.504374986 | BP84: 2.540651609 | BQ84: 2.57765869 | BR84: 2.615346925 | BS84: 2.653862196 | BT84: =(BT$63/$H$63)^$H$75*(BT$65/$H$65) -> 2.693150972 | BU84: 2.733271517 | BV84: 2.774246115 | BW84: 2.816009155 | BX84: 2.858627245 | BY84: 2.902383376 | BZ84: 2.94823986 | CA84: 2.996911098 | CB84: 3.044499898 | CC84: 3.088402487 | CD84: 3.130782953 | CE84: 3.172436608 | CF84: 3.212578197 | CG84: 3.25332573 | CH84: 3.293716565 | CI84: 3.333328252 | CJ84: 3.372340139 | CK84: 3.413364641 | CL84: 3.455999595 | CM84: 3.499462986 | CN84: 3.543212352 | CO84: 3.589040477 | CP84: 3.636950577 | CQ84: 3.687354651 | CR84: 3.740404595 | CS84: 3.796884309 | CT84: 3.855217278 | CU84: 3.914871923 | CV84: 3.975257719 | CW84: 4.036567527 | CX84: 4.098994259 | CY84: 4.162486255 | CZ84: 4.226991673 | DA84: 4.292450811 | DB84: 4.358805921 | DC84: 4.425969961 | DD84: 4.493853751 | DE84: 4.562778717 | DF84: 4.632760826 | DG84: 4.703816294 | DH84: 4.775961582 | DI84: 4.849213407 | DJ84: 4.92358874 | DK84: 4.999104812 | DL84: 5.07577912 | DM84: 5.153629428 | DN84: 5.232673774 | DO84: 5.312930471 | DP84: 5.394418114 | DQ84: 5.477155582 | DR84: 5.561162045 | DS84: 5.646456967 | DT84: 5.733060108 | DU84: 5.820991534 | DV84: 5.910271618 | DW84: 6.000921045 | DX84: 6.092960817 | DY84: 6.18641226 | DZ84: 6.281297023 | EA84: 6.377637092 | EB84: 6.475454788 | EC84: 6.574772772 | ED84: 6.675614057 | EE84: 6.778002006 | EF84: =(EF$63/$H$63)^$H$75*(EF$65/$H$65) -> 6.881960341 | EG84: 6.987513148 | EH84: 7.094684883 | EI84: 7.203500376 | EJ84: 7.313984838 | EK84: 7.426163868 | EL84: 7.540063455 | EM84: 7.65570999 | EN84: 7.773130266 | EO84: 7.892351487 | EP84: 8.013401278 | EQ84: 8.136307682 | ER84: 8.261099177 | ES84: 8.387804674 | ET84: 8.516453531 | EU84: 8.647075554 | EV84: 8.779701005 | EW84: 8.914360614 | EX84: 9.051085579 | EY84: 9.189907578 | EZ84: 9.330858775 | FA84: 9.473971825 | FB84: 9.619279888 | FC84: 9.766816628 | FD84: 9.916616229 | FE84: 10.0687134 | FF84: 10.22314337 | FG84: 10.37994193 | FH84: 10.53914541 | FI84: 10.70079069 | FJ84: 10.86491522 | FK84: 11.03155702 | FL84: 11.20075472 | FM84: 11.3725475 | FN84: 11.54697517 | FO84: 11.72407814 | FP84: 11.90389745 | FQ84: 12.08647476 | FR84: 12.27185237 | FS84: 12.46007322 | FT84: 12.65118094 | FU84: 12.84521979 | FV84: 13.04223473 | FW84: 13.24227141 | FX84: 13.44537617 | FY84: 13.65159607 | FZ84: 13.8609789 | GA84: 14.07357315 | GB84: 14.28942809 | GC84: 14.50859373 | GD84: 14.73112085 | GE84: 14.957061 | GF84: 15.18646654 | GG84: 15.4193906 | GH84: 15.65588716 | GI84: 15.89601102 | GJ84: 16.1398178 | GK84: 16.38736399 | GL84: 16.63870695 | GM84: 16.89390491 | GN84: 17.15301699 | GO84: 17.41610323 | GP84: 17.68322459 | GQ84: 17.95444295 | GR84: =(GR$63/$H$63)^$H$75*(GR$65/$H$65) -> 18.22982115 | GS84: 18.509423 | GT84: 18.79331326 | GU84: 19.08155773 | GV84: 19.37422317 | GW84: 19.6713774 | GX84: 19.97308927 | GY84: 20.27942868 | GZ84: 20.5904666 | HA84: 20.9062751 | HB84: 21.22692734 | HC84: 21.55249762 | HD84: 21.88306137 | HE84: 22.21869518 | HF84: 22.55947681 | HG84: 22.90548521 | HH84: 23.25680056 | HI84: 23.61350424 | HJ84: 23.9756789 | HK84: 24.34340846 | HL84: 24.7167781 | HM84: 25.09587435 | HN84: 25.48078502 | HO84: 25.8715993 | HP84: 26.26840774 | HQ84: 26.67130227 | HR84: 27.08037624 | HS84: 27.49572442 | HT84: 27.91744306 | HU84: 28.34562984 | HV84: 28.78038399 | HW84: 29.22180623 | HX84: 29.66999882 | HY84: 30.12506562 | HZ84: 30.58711206 | IA84: 31.05624518 | IB84: 31.53257368 | IC84: 32.01620793 | ID84: 32.50725996 | IE84: 33.00584356 | IF84: 33.51207424 | IG84: 34.02606928 | IH84: 34.54794778 | II84: 35.07783065 | IJ84: 35.61584065 | IK84: 36.16210244 | IL84: 36.71674257 | IM84: 37.27988956 | IN84: 37.85167388 | IO84: 38.432228 | IP84: 39.02168644 | IQ84: 39.62018575 | IR84: 40.22786461 | IS84: 40.84486382 | IT84: 41.47132631 | IU84: 42.10739724 | IV84: 42.75322398 | IW84: 43.40895615 | IX84: 44.07474569 | IY84: 44.75074684 | IZ84: 45.43711624 | JA84: 46.1340129 | JB84: 46.84159828 | JC84: 47.56003634 | JD84: =(JD$63/$H$63)^$H$75*(JD$65/$H$65) -> 48.28949351 | JE84: 49.03013881 | JF84: 49.78214384 | JG84: 50.54568283 | JH84: 51.32093268 | JI84: 52.10807301 | JJ84: 52.90728619 | JK84: 53.71875738 | JL84: 54.5426746 | JM84: 55.37922874 | JN84: 56.22861362 | JO84: 57.09102604 | JP84: 57.96666579 | JQ84: 58.85573577 | JR84: 59.75844195 | JS84: =(JS$63/$H$63)^$H$75*(JS$65/$H$65) -> 60.67499348 | JT84: 61.60560272 | JU84: 62.55048528 | JV84: 63.50986008 | JW84: 64.4839494 | JX84: 65.47297891 | JY84: 66.47717777 | JZ84: 67.49677864 | KA84: 68.53201774 | KB84: 69.58313494 | KC84: 70.65037376 | KD84: 71.73398147 | KE84: 72.83420913 | KF84: 73.95131165 | KG84: 75.08554785 | KH84: 76.23718052 | KI84: 77.40647648 | KJ84: 78.59370664 | KK84: 79.79914607 | KL84: 81.02307406 | KM84: 82.26577418 | KN84: 83.52753434 | KO84: 84.80864689 | KP84: 86.10940864 | KQ84: 87.43012096 | KR84: 88.77108985 | KS84: 90.13262599 | KT84: 91.51504484 | KU84: 92.91866669 | KV84: 94.34381674
C85: Low sensitivity | H85: =(H$63/$H$63)^$I$75*(H$65/$H$65) -> 1 | I85: 1.021362559 | J85: 1.036862866 | K85: 1.063850897 | L85: 1.085591202 | M85: 1.111020683 | N85: 1.133726897 | O85: 1.159297534 | P85: 1.159102265 | Q85: 1.117679688 | R85: 1.13947014 | S85: 1.151816331 | T85: 1.167279223 | U85: 1.185472266 | V85: 1.217541655 | W85: 1.241082769 | X85: 1.26219599 | Y85: 1.290471334 | Z85: 1.306502409 | AA85: 1.325068732 | AB85: 1.215091668 | AC85: 1.298498938 | AD85: 1.345721563 | AE85: 1.349777997 | AF85: 1.360199835 | AG85: 1.381992292 | AH85: 1.405629797 | AI85: 1.42762429 | AJ85: 1.448499437 | AK85: 1.470718702 | AL85: 1.493790787 | AM85: 1.516519675 | AN85: 1.539186729 | AO85: 1.561890433 | AP85: 1.584559225 | AQ85: 1.607322527 | AR85: 1.63205832 | AS85: 1.656811263 | AT85: 1.681411837 | AU85: 1.705949336 | AV85: 1.730310637 | AW85: 1.754608346 | AX85: 1.778738497 | AY85: 1.802675677 | AZ85: 1.826476339 | BA85: 1.850276494 | BB85: 1.874192142 | BC85: 1.897987344 | BD85: 1.9216435 | BE85: 1.945099693 | BF85: 1.968541807 | BG85: 1.99205047 | BH85: 2.015631451 | BI85: 2.039302413 | BJ85: 2.063104964 | BK85: 2.087219881 | BL85: 2.111588613 | BM85: 2.136246623 | BN85: 2.161191028 | BO85: 2.186453048 | BP85: 2.212076574 | BQ85: 2.238136107 | BR85: 2.26460128 | BS85: 2.291576537 | BT85: =(BT$63/$H$63)^$I$75*(BT$65/$H$65) -> 2.319027209 | BU85: 2.346994688 | BV85: 2.375493876 | BW85: 2.404477813 | BX85: 2.433989497 | BY85: 2.464217096 | BZ85: 2.495805643 | CA85: 2.529223567 | CB85: 2.561828234 | CC85: 2.591875505 | CD85: 2.620830844 | CE85: 2.649229449 | CF85: 2.676547778 | CG85: 2.704197579 | CH85: 2.731534591 | CI85: 2.758278149 | CJ85: 2.784548476 | CK85: 2.812068821 | CL85: 2.840565201 | CM85: 2.869517412 | CN85: 2.898567338 | CO85: 2.928885203 | CP85: 2.960465037 | CQ85: 2.993566189 | CR85: 3.028276748 | CS85: 3.065091721 | CT85: 3.102980421 | CU85: 3.141594221 | CV85: 3.180551316 | CW85: 3.21997411 | CX85: 3.259983713 | CY85: 3.300544251 | CZ85: 3.341619029 | DA85: 3.383166832 | DB85: 3.425147692 | DC85: 3.467503503 | DD85: 3.510175332 | DE85: 3.55337229 | DF85: 3.597100839 | DG85: 3.64136752 | DH85: 3.686178957 | DI85: 3.731541853 | DJ85: 3.777462993 | DK85: 3.82394925 | DL85: 3.871007576 | DM85: 3.918645011 | DN85: 3.966868683 | DO85: 4.015685806 | DP85: 4.065103682 | DQ85: 4.115129705 | DR85: 4.165771359 | DS85: 4.21703622 | DT85: 4.268931957 | DU85: 4.321466334 | DV85: 4.37464721 | DW85: 4.428482541 | DX85: 4.482980381 | DY85: 4.538148883 | DZ85: 4.5939963 | EA85: 4.650530987 | EB85: 4.707761402 | EC85: 4.765696107 | ED85: 4.824343768 | EE85: 4.88371316 | EF85: =(EF$63/$H$63)^$I$75*(EF$65/$H$65) -> 4.943813164 | EG85: 5.004652772 | EH85: 5.066241084 | EI85: 5.128587315 | EJ85: 5.191700792 | EK85: 5.255590957 | EL85: 5.320267368 | EM85: 5.3857397 | EN85: 5.452017748 | EO85: 5.519111428 | EP85: 5.587030778 | EQ85: 5.655785957 | ER85: 5.725387251 | ES85: 5.795845074 | ET85: 5.867169966 | EU85: 5.939372597 | EV85: 6.012463768 | EW85: 6.086454416 | EX85: 6.161355607 | EY85: 6.237178549 | EZ85: 6.313934583 | FA85: 6.391635194 | FB85: 6.470292004 | FC85: 6.549916782 | FD85: 6.630521439 | FE85: 6.712118034 | FF85: 6.794718774 | FG85: 6.878336016 | FH85: 6.96298227 | FI85: 7.048670198 | FJ85: 7.13541262 | FK85: 7.223222513 | FL85: 7.312113012 | FM85: 7.402097417 | FN85: 7.493189189 | FO85: 7.585401955 | FP85: 7.678749511 | FQ85: 7.773245822 | FR85: 7.868905024 | FS85: 7.965741429 | FT85: 8.063769523 | FU85: 8.163003971 | FV85: 8.263459619 | FW85: 8.365151496 | FX85: 8.468094814 | FY85: 8.572304975 | FZ85: 8.677797568 | GA85: 8.784588374 | GB85: 8.892693372 | GC85: 9.002128731 | GD85: 9.112910826 | GE85: 9.225056228 | GF85: 9.338581716 | GG85: 9.453504272 | GH85: 9.569841089 | GI85: 9.687609571 | GJ85: 9.806827338 | GK85: 9.927512223 | GL85: 10.04968228 | GM85: 10.17335579 | GN85: 10.29855125 | GO85: 10.4252874 | GP85: 10.55358318 | GQ85: 10.6834578 | GR85: =(GR$63/$H$63)^$I$75*(GR$65/$H$65) -> 10.81493069 | GS85: 10.9480215 | GT85: 11.08275017 | GU85: 11.21913683 | GV85: 11.35720189 | GW85: 11.49696601 | GX85: 11.6384501 | GY85: 11.78167532 | GZ85: 11.9266631 | HA85: 12.07343513 | HB85: 12.22201337 | HC85: 12.37242005 | HD85: 12.52467766 | HE85: 12.67880898 | HF85: 12.83483708 | HG85: 12.99278529 | HH85: 13.15267725 | HI85: 13.31453687 | HJ85: 13.47838836 | HK85: 13.64425625 | HL85: 13.81216535 | HM85: 13.98214077 | HN85: 14.15420794 | HO85: 14.32839261 | HP85: 14.50472083 | HQ85: 14.68321898 | HR85: 14.86391377 | HS85: 15.04683223 | HT85: 15.23200172 | HU85: 15.41944995 | HV85: 15.60920495 | HW85: 15.80129512 | HX85: 15.99574919 | HY85: 16.19259625 | HZ85: 16.39186575 | IA85: 16.59358751 | IB85: 16.7977917 | IC85: 17.00450886 | ID85: 17.21376994 | IE85: 17.42560622 | IF85: 17.6400494 | IG85: 17.85713157 | IH85: 18.0768852 | II85: 18.29934316 | IJ85: 18.52453874 | IK85: 18.75250562 | IL85: 18.98327791 | IM85: 19.21689013 | IN85: 19.45337723 | IO85: 19.69277459 | IP85: 19.93511803 | IQ85: 20.1804438 | IR85: 20.42878859 | IS85: 20.68018957 | IT85: 20.93468435 | IU85: 21.19231099 | IV85: 21.45310804 | IW85: 21.71711451 | IX85: 21.9843699 | IY85: 22.25491419 | IZ85: 22.52878786 | JA85: 22.80603187 | JB85: 23.08668771 | JC85: 23.37079736 | JD85: =(JD$63/$H$63)^$I$75*(JD$65/$H$65) -> 23.65840332 | JE85: 23.94954862 | JF85: 24.24427681 | JG85: 24.542632 | JH85: 24.8446588 | JI85: 25.15040241 | JJ85: 25.45990857 | JK85: 25.77322357 | JL85: 26.0903943 | JM85: 26.41146819 | JN85: 26.73649329 | JO85: 27.06551821 | JP85: 27.39859219 | JQ85: 27.73576504 | JR85: 28.07708721 | JS85: =(JS$63/$H$63)^$I$75*(JS$65/$H$65) -> 28.42260977 | JT85: 28.7723844 | JU85: 29.12646343 | JV85: 29.48489983 | JW85: 29.84774723 | JX85: 30.2150599 | JY85: 30.5868928 | JZ85: 30.96330155 | KA85: 31.34434247 | KB85: 31.73007256 | KC85: 32.12054952 | KD85: 32.51583178 | KE85: 32.91597846 | KF85: 33.32104943 | KG85: 33.73110529 | KH85: 34.14620739 | KI85: 34.56641782 | KJ85: 34.99179945 | KK85: 35.42241591 | KL85: 35.85833163 | KM85: 36.29961182 | KN85: 36.7463225 | KO85: 37.19853049 | KP85: 37.65630345 | KQ85: 38.11970986 | KR85: 38.58881905 | KS85: 39.0637012 | KT85: 39.54442734 | KU85: 40.0310694 | KV85: 40.52370019
C86: High sensitivity | H86: =(H$63/$H$63)^$J$75*(H$65/$H$65) -> 1 | I86: 1.030231432 | J86: 1.051527369 | K86: 1.090362082 | L86: 1.121010875 | M86: 1.156174356 | N86: 1.187737629 | O86: 1.223209592 | P86: 1.217898736 | Q86: 1.149148439 | R86: 1.178205598 | S86: 1.19242345 | T86: 1.21250006 | U86: 1.23707255 | V86: 1.282704554 | W86: 1.314872576 | X86: 1.343029369 | Y86: 1.384282564 | Z86: 1.405954569 | AA86: 1.432142313 | AB86: 1.254932008 | AC86: 1.386903268 | AD86: 1.457061056 | AE86: 1.456889574 | AF86: 1.467545634 | AG86: 1.498470959 | AH86: 1.533186572 | AI86: 1.565239183 | AJ86: 1.595551505 | AK86: 1.629857969 | AL86: 1.665879942 | AM86: 1.701627596 | AN86: 1.737560426 | AO86: 1.773840962 | AP86: 1.810341164 | AQ86: 1.84726984 | AR86: 1.887858102 | AS86: 1.928723687 | AT86: 1.969553358 | AU86: 2.010488669 | AV86: 2.051317772 | AW86: 2.092238221 | AX86: 2.133068048 | AY86: 2.173759698 | AZ86: 2.214417275 | BA86: 2.255312885 | BB86: 2.296689402 | BC86: 2.338133942 | BD86: 2.379630778 | BE86: 2.421085105 | BF86: 2.462860032 | BG86: 2.50511945 | BH86: 2.547883197 | BI86: 2.591192192 | BJ86: 2.635129143 | BK86: 2.680037613 | BL86: 2.725798032 | BM86: 2.772467262 | BN86: 2.820026973 | BO86: 2.868524471 | BP86: 2.918032166 | BQ86: 2.968686445 | BR86: 3.020416705 | BS86: 3.073423229 | BT86: =(BT$63/$H$63)^$J$75*(BT$65/$H$65) -> 3.127631332 | BU86: 3.183123176 | BV86: 3.239933213 | BW86: 3.297974936 | BX86: 3.357347982 | BY86: 3.418460684 | BZ86: 3.482690368 | CA86: 3.551080359 | CB86: 3.618111279 | CC86: 3.680049409 | CD86: 3.739959761 | CE86: 3.798974088 | CF86: 3.855959067 | CG86: 3.913962643 | CH86: 3.971602207 | CI86: 4.028265692 | CJ86: 4.084209023 | CK86: 4.143233653 | CL86: 4.204773471 | CM86: 4.267700604 | CN86: 4.331227226 | CO86: 4.397991268 | CP86: 4.468017468 | CQ86: 4.541935425 | CR86: 4.619996025 | CS86: 4.70339284 | CT86: 4.789814386 | CU86: 4.8784856 | CV86: 4.968532925 | CW86: 5.06025106 | CX86: 5.153937999 | CY86: 5.249525686 | CZ86: 5.346946631 | DA86: 5.446120419 | DB86: 5.546969289 | DC86: 5.64936995 | DD86: 5.753194534 | DE86: 5.858927215 | DF86: 5.96660306 | DG86: 6.07625778 | DH86: 6.187927744 | DI86: 6.301649987 | DJ86: 6.417462227 | DK86: 6.535402874 | DL86: 6.655511044 | DM86: 6.777826572 | DN86: 6.902390024 | DO86: 7.029242714 | DP86: 7.158426713 | DQ86: 7.289984866 | DR86: 7.423960805 | DS86: 7.560398966 | DT86: 7.699344598 | DU86: 7.840843784 | DV86: 7.984943454 | DW86: 8.131691399 | DX86: 8.281136291 | DY86: 8.433327692 | DZ86: 8.58831608 | EA86: 8.746152857 | EB86: 8.906890371 | EC86: 9.070581933 | ED86: 9.237281831 | EE86: 9.407045354 | EF86: =(EF$63/$H$63)^$J$75*(EF$65/$H$65) -> 9.579928805 | EG86: 9.755989522 | EH86: 9.935285897 | EI86: 10.1178774 | EJ86: 10.30382458 | EK86: 10.49318911 | EL86: 10.6860338 | EM86: 10.8824226 | EN86: 11.08242066 | EO86: 11.28609429 | EP86: 11.49351106 | EQ86: 11.70473975 | ER86: 11.91985042 | ES86: 12.1389144 | ET86: 12.36200437 | EU86: 12.5891943 | EV86: 12.82055954 | EW86: 13.05617684 | EX86: 13.29612433 | EY86: 13.54048159 | EZ86: 13.78932967 | FA86: 14.0427511 | FB86: 14.30082993 | FC86: 14.56365176 | FD86: 14.83130374 | FE86: 15.10387466 | FF86: 15.38145491 | FG86: 15.66413654 | FH86: 15.95201333 | FI86: 16.24518074 | FJ86: 16.543736 | FK86: 16.84777814 | FL86: 17.15740799 | FM86: 17.47272824 | FN86: 17.79384347 | FO86: 18.12086018 | FP86: 18.45388684 | FQ86: 18.79303388 | FR86: 19.1384138 | FS86: 19.49014114 | FT86: 19.84833255 | FU86: 20.21310683 | FV86: 20.58458497 | FW86: 20.96289016 | FX86: 21.34814787 | FY86: 21.74048588 | FZ86: 22.14003432 | GA86: 22.54692568 | GB86: 22.96129493 | GC86: 23.38327949 | GD86: 23.81301932 | GE86: 24.25065694 | GF86: 24.6963375 | GG86: 25.15020882 | GH86: 25.61242142 | GI86: 26.0831286 | GJ86: 26.56248647 | GK86: 27.05065403 | GL86: 27.54779317 | GM86: 28.05406877 | GN86: 28.56964874 | GO86: 29.09470409 | GP86: 29.62940895 | GQ86: 30.17394065 | GR86: =(GR$63/$H$63)^$J$75*(GR$65/$H$65) -> 30.72847981 | GS86: 31.29321033 | GT86: 31.86831951 | GU86: 32.4539981 | GV86: 33.05044034 | GW86: 33.65784404 | GX86: 34.27641066 | GY86: 34.90634535 | GZ86: 35.54785702 | HA86: 36.20115845 | HB86: 36.86646631 | HC86: 37.54400125 | HD86: 38.23398798 | HE86: 38.93665535 | HF86: 39.65223639 | HG86: 40.38096845 | HH86: 41.1230932 | HI86: 41.87885677 | HJ86: 42.64850984 | HK86: 43.43230765 | HL86: 44.23051016 | HM86: 45.0433821 | HN86: 45.87119307 | HO86: 46.71421762 | HP86: 47.57273534 | HQ86: 48.44703097 | HR86: 49.33739447 | HS86: 50.24412116 | HT86: 51.16751173 | HU86: 52.10787246 | HV86: 53.06551521 | HW86: 54.0407576 | HX86: 55.03392307 | HY86: 56.04534102 | HZ86: 57.0753469 | IA86: 58.1242823 | IB86: 59.19249513 | IC86: 60.28033965 | ID86: 61.38817668 | IE86: 62.51637362 | IF86: 63.66530466 | IG86: 64.83535085 | IH86: 66.02690025 | II86: 67.24034803 | IJ86: 68.47609666 | IK86: 69.73455598 | IL86: 71.01614337 | IM86: 72.32128387 | IN86: 73.65041036 | IO86: 75.00396364 | IP86: 76.38239263 | IQ86: 77.7861545 | IR86: 79.21571483 | IS86: 80.67154773 | IT86: 82.15413605 | IU86: 83.66397149 | IV86: 85.20155482 | IW86: 86.76739598 | IX86: 88.3620143 | IY86: 89.98593864 | IZ86: 91.6397076 | JA86: 93.32386966 | JB86: 95.03898339 | JC86: 96.78561762 | JD86: =(JD$63/$H$63)^$J$75*(JD$65/$H$65) -> 98.56435163 | JE86: 100.3757754 | JF86: 102.2204896 | JG86: 104.0991061 | JH86: 106.012248 | JI86: 107.9605498 | JJ86: 109.9446577 | JK86: 111.9652296 | JL86: 114.0229358 | JM86: 116.1184586 | JN86: 118.2524932 | JO86: 120.4257472 | JP86: 122.6389414 | JQ86: 124.89281 | JR86: 127.1881003 | JS86: =(JS$63/$H$63)^$J$75*(JS$65/$H$65) -> 129.5255736 | JT86: 131.9060052 | JU86: 134.3301846 | JV86: 136.7989157 | JW86: 139.3130174 | JX86: 141.8733235 | JY86: 144.4806831 | JZ86: 147.1359609 | KA86: 149.8400376 | KB86: 152.5938101 | KC86: 155.3981917 | KD86: 158.2541124 | KE86: 161.1625195 | KF86: 164.1243775 | KG86: 167.1406687 | KH86: 170.2123936 | KI86: 173.340571 | KJ86: 176.5262382 | KK86: 179.7704519 | KL86: 183.074288 | KM86: 186.4388422 | KN86: 189.8652306 | KO86: 193.3545893 | KP86: 196.9080758 | KQ86: 200.5268686 | KR86: 204.2121678 | KS86: 207.9651958 | KT86: 211.7871972 | KU86: 215.6794397 | KV86: 219.6432141
B89: END

Sheet Calculations (values)
B2: Uprating indices
C4: Discount rates
H6: Year
H7: ='Inputs (values)'!$H$8 -> 2021 | I7: =H7+1 -> 2022 | J7: =I7+1 -> 2023 | K7: 2024 | L7: 2025 | M7: 2026 | N7: 2027 | O7: 2028 | P7: 2029 | Q7: 2030 | R7: 2031 | S7: 2032 | T7: 2033 | U7: 2034 | V7: 2035 | W7: 2036 | X7: 2037 | Y7: 2038 | Z7: 2039 | AA7: 2040 | AB7: 2041 | AC7: 2042 | AD7: 2043 | AE7: 2044 | AF7: 2045 | AG7: 2046 | AH7: 2047 | AI7: 2048 | AJ7: 2049 | AK7: 2050 | AL7: 2051 | AM7: 2052 | AN7: 2053 | AO7: 2054 | AP7: 2055 | AQ7: 2056 | AR7: 2057 | AS7: 2058 | AT7: 2059 | AU7: 2060 | AV7: 2061 | AW7: 2062 | AX7: 2063 | AY7: 2064 | AZ7: 2065 | BA7: 2066 | BB7: 2067 | BC7: 2068 | BD7: 2069 | BE7: 2070 | BF7: 2071 | BG7: 2072 | BH7: 2073 | BI7: 2074 | BJ7: 2075 | BK7: 2076 | BL7: 2077 | BM7: 2078 | BN7: 2079 | BO7: 2080 | BP7: 2081 | BQ7: 2082 | BR7: 2083 | BS7: 2084 | BT7: 2085 | BU7: 2086 | BV7: =BU7+1 -> 2087 | BW7: 2088 | BX7: 2089 | BY7: 2090 | BZ7: 2091 | CA7: 2092 | CB7: 2093 | CC7: 2094 | CD7: 2095 | CE7: 2096 | CF7: 2097 | CG7: 2098 | CH7: 2099 | CI7: 2100 | CJ7: 2101 | CK7: 2102 | CL7: 2103 | CM7: 2104 | CN7: 2105 | CO7: 2106 | CP7: 2107 | CQ7: 2108 | CR7: 2109 | CS7: 2110 | CT7: 2111 | CU7: 2112 | CV7: 2113 | CW7: 2114 | CX7: 2115 | CY7: 2116 | CZ7: 2117 | DA7: 2118 | DB7: 2119 | DC7: 2120 | DD7: 2121 | DE7: 2122 | DF7: 2123 | DG7: 2124 | DH7: 2125 | DI7: 2126 | DJ7: 2127 | DK7: 2128 | DL7: 2129 | DM7: 2130 | DN7: 2131 | DO7: 2132 | DP7: 2133 | DQ7: 2134 | DR7: 2135 | DS7: 2136 | DT7: 2137 | DU7: 2138 | DV7: 2139 | DW7: 2140 | DX7: 2141 | DY7: 2142 | DZ7: 2143 | EA7: 2144 | EB7: 2145 | EC7: 2146 | ED7: 2147 | EE7: 2148 | EF7: 2149 | EG7: 2150 | EH7: =EG7+1 -> 2151 | EI7: 2152 | EJ7: 2153 | EK7: 2154 | EL7: 2155 | EM7: 2156 | EN7: 2157 | EO7: 2158 | EP7: 2159 | EQ7: 2160 | ER7: 2161 | ES7: 2162 | ET7: 2163 | EU7: 2164 | EV7: 2165 | EW7: 2166 | EX7: 2167 | EY7: 2168 | EZ7: 2169 | FA7: 2170 | FB7: 2171 | FC7: 2172 | FD7: 2173 | FE7: 2174 | FF7: 2175 | FG7: 2176 | FH7: 2177 | FI7: 2178 | FJ7: 2179 | FK7: 2180 | FL7: 2181 | FM7: 2182 | FN7: 2183 | FO7: 2184 | FP7: 2185 | FQ7: 2186 | FR7: 2187 | FS7: 2188 | FT7: 2189 | FU7: 2190 | FV7: 2191 | FW7: 2192 | FX7: 2193 | FY7: 2194 | FZ7: 2195 | GA7: 2196 | GB7: 2197 | GC7: 2198 | GD7: 2199 | GE7: 2200 | GF7: 2201 | GG7: 2202 | GH7: 2203 | GI7: 2204 | GJ7: 2205 | GK7: 2206 | GL7: 2207 | GM7: 2208 | GN7: 2209 | GO7: 2210 | GP7: 2211 | GQ7: 2212 | GR7: 2213 | GS7: 2214 | GT7: =GS7+1 -> 2215 | GU7: 2216 | GV7: 2217 | GW7: 2218 | GX7: 2219 | GY7: 2220 | GZ7: 2221 | HA7: 2222 | HB7: 2223 | HC7: 2224 | HD7: 2225 | HE7: 2226 | HF7: 2227 | HG7: 2228 | HH7: 2229 | HI7: 2230 | HJ7: 2231 | HK7: 2232 | HL7: 2233 | HM7: 2234 | HN7: 2235 | HO7: 2236 | HP7: 2237 | HQ7: 2238 | HR7: 2239 | HS7: 2240 | HT7: 2241 | HU7: 2242 | HV7: 2243 | HW7: 2244 | HX7: 2245 | HY7: 2246 | HZ7: 2247 | IA7: 2248 | IB7: 2249 | IC7: 2250 | ID7: 2251 | IE7: 2252 | IF7: 2253 | IG7: 2254 | IH7: 2255 | II7: 2256 | IJ7: 2257 | IK7: 2258 | IL7: 2259 | IM7: 2260 | IN7: 2261 | IO7: 2262 | IP7: 2263 | IQ7: 2264 | IR7: 2265 | IS7: 2266 | IT7: 2267 | IU7: 2268 | IV7: 2269 | IW7: 2270 | IX7: 2271 | IY7: 2272 | IZ7: 2273 | JA7: 2274 | JB7: 2275 | JC7: 2276 | JD7: 2277 | JE7: 2278 | JF7: =JE7+1 -> 2279 | JG7: 2280 | JH7: 2281 | JI7: 2282 | JJ7: 2283 | JK7: 2284 | JL7: 2285 | JM7: 2286 | JN7: 2287 | JO7: 2288 | JP7: 2289 | JQ7: 2290 | JR7: 2291 | JS7: 2292 | JT7: 2293 | JU7: 2294 | JV7: 2295 | JW7: 2296 | JX7: 2297 | JY7: 2298 | JZ7: 2299 | KA7: 2300
C8: Discount rates | H8: =LOOKUP(H7-'Inputs (values)'!$H$8,'Inputs (values)'!$C$20:$C$25,'Inputs (values)'!$H$20:$H$25) -> 0.035 | I8: =LOOKUP(I7-'Inputs (values)'!$H$8,'Inputs (values)'!$C$20:$C$25,'Inputs (values)'!$H$20:$H$25) -> 0.035 | J8: =LOOKUP(J7-'Inputs (values)'!$H$8,'Inputs (values)'!$C$20:$C$25,'Inputs (values)'!$H$20:$H$25) -> 0.035 | K8: =LOOKUP(K7-'Inputs (values)'!$H$8,'Inputs (values)'!$C$20:$C$25,'Inputs (values)'!$H$20:$H$25) -> 0.035 | L8: =LOOKUP(L7-'Inputs (values)'!$H$8,'Inputs (values)'!$C$20:$C$25,'Inputs (values)'!$H$20:$H$25) -> 0.035 | M8: =LOOKUP(M7-'Inputs (values)'!$H$8,'Inputs (values)'!$C$20:$C$25,'Inputs (values)'!$H$20:$H$25) -> 0.035 | N8: =LOOKUP(N7-'Inputs (values)'!$H$8,'Inputs (values)'!$C$20:$C$25,'Inputs (values)'!$H$20:$H$25) -> 0.035 | O8: =LOOKUP(O7-'Inputs (values)'!$H$8,'Inputs (values)'!$C$20:$C$25,'Inputs (values)'!$H$20:$H$25) -> 0.035 | P8: =LOOKUP(P7-'Inputs (values)'!$H$8,'Inputs (values)'!$C$20:$C$25,'Inputs (values)'!$H$20:$H$25) -> 0.035 | Q8: =LOOKUP(Q7-'Inputs (values)'!$H$8,'Inputs (values)'!$C$20:$C$25,'Inputs (values)'!$H$20:$H$25) -> 0.035 | R8: =LOOKUP(R7-'Inputs (values)'!$H$8,'Inputs (values)'!$C$20:$C$25,'Inputs (values)'!$H$20:$H$25) -> 0.035 | S8: =LOOKUP(S7-'Inputs (values)'!$H$8,'Inputs (values)'!$C$20:$C$25,'Inputs (values)'!$H$20:$H$25) -> 0.035 | T8: =LOOKUP(T7-'Inputs (values)'!$H$8,'Inputs (values)'!$C$20:$C$25,'Inputs (values)'!$H$20:$H$25) -> 0.035 | U8: =LOOKUP(U7-'Inputs (values)'!$H$8,'Inputs (values)'!$C$20:$C$25,'Inputs (values)'!$H$20:$H$25) -> 0.035 | V8: =LOOKUP(V7-'Inputs (values)'!$H$8,'Inputs (values)'!$C$20:$C$25,'Inputs (values)'!$H$20:$H$25) -> 0.035 | W8: =LOOKUP(W7-'Inputs (values)'!$H$8,'Inputs (values)'!$C$20:$C$25,'Inputs (values)'!$H$20:$H$25) -> 0.035 | X8: =LOOKUP(X7-'Inputs (values)'!$H$8,'Inputs (values)'!$C$20:$C$25,'Inputs (values)'!$H$20:$H$25) -> 0.035 | Y8: =LOOKUP(Y7-'Inputs (values)'!$H$8,'Inputs (values)'!$C$20:$C$25,'Inputs (values)'!$H$20:$H$25) -> 0.035 | Z8: =LOOKUP(Z7-'Inputs (values)'!$H$8,'Inputs (values)'!$C$20:$C$25,'Inputs (values)'!$H$20:$H$25) -> 0.035 | AA8: =LOOKUP(AA7-'Inputs (values)'!$H$8,'Inputs (values)'!$C$20:$C$25,'Inputs (values)'!$H$20:$H$25) -> 0.035 | AB8: =LOOKUP(AB7-'Inputs (values)'!$H$8,'Inputs (values)'!$C$20:$C$25,'Inputs (values)'!$H$20:$H$25) -> 0.035 | AC8: =LOOKUP(AC7-'Inputs (values)'!$H$8,'Inputs (values)'!$C$20:$C$25,'Inputs (values)'!$H$20:$H$25) -> 0.035 | AD8: =LOOKUP(AD7-'Inputs (values)'!$H$8,'Inputs (values)'!$C$20:$C$25,'Inputs (values)'!$H$20:$H$25) -> 0.035 | AE8: =LOOKUP(AE7-'Inputs (values)'!$H$8,'Inputs (values)'!$C$20:$C$25,'Inputs (values)'!$H$20:$H$25) -> 0.035 | AF8: =LOOKUP(AF7-'Inputs (values)'!$H$8,'Inputs (values)'!$C$20:$C$25,'Inputs (values)'!$H$20:$H$25) -> 0.035 | AG8: =LOOKUP(AG7-'Inputs (values)'!$H$8,'Inputs (values)'!$C$20:$C$25,'Inputs (values)'!$H$20:$H$25) -> 0.035 | AH8: =LOOKUP(AH7-'Inputs (values)'!$H$8,'Inputs (values)'!$C$20:$C$25,'Inputs (values)'!$H$20:$H$25) -> 0.035 | AI8: =LOOKUP(AI7-'Inputs (values)'!$H$8,'Inputs (values)'!$C$20:$C$25,'Inputs (values)'!$H$20:$H$25) -> 0.035 | AJ8: =LOOKUP(AJ7-'Inputs (values)'!$H$8,'Inputs (values)'!$C$20:$C$25,'Inputs (values)'!$H$20:$H$25) -> 0.035 | AK8: =LOOKUP(AK7-'Inputs (values)'!$H$8,'Inputs (values)'!$C$20:$C$25,'Inputs (values)'!$H$20:$H$25) -> 0.035 | AL8: =LOOKUP(AL7-'Inputs (values)'!$H$8,'Inputs (values)'!$C$20:$C$25,'Inputs (values)'!$H$20:$H$25) -> 0.035 | AM8: =LOOKUP(AM7-'Inputs (values)'!$H$8,'Inputs (values)'!$C$20:$C$25,'Inputs (values)'!$H$20:$H$25) -> 0.03 | AN8: =LOOKUP(AN7-'Inputs (values)'!$H$8,'Inputs (values)'!$C$20:$C$25,'Inputs (values)'!$H$20:$H$25) -> 0.03 | AO8: =LOOKUP(AO7-'Inputs (values)'!$H$8,'Inputs (values)'!$C$20:$C$25,'Inputs (values)'!$H$20:$H$25) -> 0.03 | AP8: =LOOKUP(AP7-'Inputs (values)'!$H$8,'Inputs (values)'!$C$20:$C$25,'Inputs (values)'!$H$20:$H$25) -> 0.03 | AQ8: =LOOKUP(AQ7-'Inputs (values)'!$H$8,'Inputs (values)'!$C$20:$C$25,'Inputs (values)'!$H$20:$H$25) -> 0.03 | AR8: =LOOKUP(AR7-'Inputs (values)'!$H$8,'Inputs (values)'!$C$20:$C$25,'Inputs (values)'!$H$20:$H$25) -> 0.03 | AS8: =LOOKUP(AS7-'Inputs (values)'!$H$8,'Inputs (values)'!$C$20:$C$25,'Inputs (values)'!$H$20:$H$25) -> 0.03 | AT8: =LOOKUP(AT7-'Inputs (values)'!$H$8,'Inputs (values)'!$C$20:$C$25,'Inputs (values)'!$H$20:$H$25) -> 0.03 | AU8: =LOOKUP(AU7-'Inputs (values)'!$H$8,'Inputs (values)'!$C$20:$C$25,'Inputs (values)'!$H$20:$H$25) -> 0.03 | AV8: =LOOKUP(AV7-'Inputs (values)'!$H$8,'Inputs (values)'!$C$20:$C$25,'Inputs (values)'!$H$20:$H$25) -> 0.03 | AW8: =LOOKUP(AW7-'Inputs (values)'!$H$8,'Inputs (values)'!$C$20:$C$25,'Inputs (values)'!$H$20:$H$25) -> 0.03 | AX8: =LOOKUP(AX7-'Inputs (values)'!$H$8,'Inputs (values)'!$C$20:$C$25,'Inputs (values)'!$H$20:$H$25) -> 0.03 | AY8: =LOOKUP(AY7-'Inputs (values)'!$H$8,'Inputs (values)'!$C$20:$C$25,'Inputs (values)'!$H$20:$H$25) -> 0.03 | AZ8: =LOOKUP(AZ7-'Inputs (values)'!$H$8,'Inputs (values)'!$C$20:$C$25,'Inputs (values)'!$H$20:$H$25) -> 0.03 | BA8: =LOOKUP(BA7-'Inputs (values)'!$H$8,'Inputs (values)'!$C$20:$C$25,'Inputs (values)'!$H$20:$H$25) -> 0.03 | BB8: =LOOKUP(BB7-'Inputs (values)'!$H$8,'Inputs (values)'!$C$20:$C$25,'Inputs (values)'!$H$20:$H$25) -> 0.03 | BC8: =LOOKUP(BC7-'Inputs (values)'!$H$8,'Inputs (values)'!$C$20:$C$25,'Inputs (values)'!$H$20:$H$25) -> 0.03 | BD8: =LOOKUP(BD7-'Inputs (values)'!$H$8,'Inputs (values)'!$C$20:$C$25,'Inputs (values)'!$H$20:$H$25) -> 0.03 | BE8: =LOOKUP(BE7-'Inputs (values)'!$H$8,'Inputs (values)'!$C$20:$C$25,'Inputs (values)'!$H$20:$H$25) -> 0.03 | BF8: =LOOKUP(BF7-'Inputs (values)'!$H$8,'Inputs (values)'!$C$20:$C$25,'Inputs (values)'!$H$20:$H$25) -> 0.03 | BG8: =LOOKUP(BG7-'Inputs (values)'!$H$8,'Inputs (values)'!$C$20:$C$25,'Inputs (values)'!$H$20:$H$25) -> 0.03 | BH8: =LOOKUP(BH7-'Inputs (values)'!$H$8,'Inputs (values)'!$C$20:$C$25,'Inputs (values)'!$H$20:$H$25) -> 0.03 | BI8: =LOOKUP(BI7-'Inputs (values)'!$H$8,'Inputs (values)'!$C$20:$C$25,'Inputs (values)'!$H$20:$H$25) -> 0.03 | BJ8: =LOOKUP(BJ7-'Inputs (values)'!$H$8,'Inputs (values)'!$C$20:$C$25,'Inputs (values)'!$H$20:$H$25) -> 0.03 | BK8: =LOOKUP(BK7-'Inputs (values)'!$H$8,'Inputs (values)'!$C$20:$C$25,'Inputs (values)'!$H$20:$H$25) -> 0.03 | BL8: =LOOKUP(BL7-'Inputs (values)'!$H$8,'Inputs (values)'!$C$20:$C$25,'Inputs (values)'!$H$20:$H$25) -> 0.03 | BM8: =LOOKUP(BM7-'Inputs (values)'!$H$8,'Inputs (values)'!$C$20:$C$25,'Inputs (values)'!$H$20:$H$25) -> 0.03 | BN8: =LOOKUP(BN7-'Inputs (values)'!$H$8,'Inputs (values)'!$C$20:$C$25,'Inputs (values)'!$H$20:$H$25) -> 0.03 | BO8: =LOOKUP(BO7-'Inputs (values)'!$H$8,'Inputs (values)'!$C$20:$C$25,'Inputs (values)'!$H$20:$H$25) -> 0.03 | BP8: =LOOKUP(BP7-'Inputs (values)'!$H$8,'Inputs (values)'!$C$20:$C$25,'Inputs (values)'!$H$20:$H$25) -> 0.03 | BQ8: =LOOKUP(BQ7-'Inputs (values)'!$H$8,'Inputs (values)'!$C$20:$C$25,'Inputs (values)'!$H$20:$H$25) -> 0.03 | BR8: =LOOKUP(BR7-'Inputs (values)'!$H$8,'Inputs (values)'!$C$20:$C$25,'Inputs (values)'!$H$20:$H$25) -> 0.03 | BS8: =LOOKUP(BS7-'Inputs (values)'!$H$8,'Inputs (values)'!$C$20:$C$25,'Inputs (values)'!$H$20:$H$25) -> 0.03 | BT8: =LOOKUP(BT7-'Inputs (values)'!$H$8,'Inputs (values)'!$C$20:$C$25,'Inputs (values)'!$H$20:$H$25) -> 0.03 | BU8: =LOOKUP(BU7-'Inputs (values)'!$H$8,'Inputs (values)'!$C$20:$C$25,'Inputs (values)'!$H$20:$H$25) -> 0.03 | BV8: =LOOKUP(BV7-'Inputs (values)'!$H$8,'Inputs (values)'!$C$20:$C$25,'Inputs (values)'!$H$20:$H$25) -> 0.03 | BW8: =LOOKUP(BW7-'Inputs (values)'!$H$8,'Inputs (values)'!$C$20:$C$25,'Inputs (values)'!$H$20:$H$25) -> 0.03 | BX8: =LOOKUP(BX7-'Inputs (values)'!$H$8,'Inputs (values)'!$C$20:$C$25,'Inputs (values)'!$H$20:$H$25) -> 0.03 | BY8: =LOOKUP(BY7-'Inputs (values)'!$H$8,'Inputs (values)'!$C$20:$C$25,'Inputs (values)'!$H$20:$H$25) -> 0.03 | BZ8: =LOOKUP(BZ7-'Inputs (values)'!$H$8,'Inputs (values)'!$C$20:$C$25,'Inputs (values)'!$H$20:$H$25) -> 0.03 | CA8: =LOOKUP(CA7-'Inputs (values)'!$H$8,'Inputs (values)'!$C$20:$C$25,'Inputs (values)'!$H$20:$H$25) -> 0.03 | CB8: =LOOKUP(CB7-'Inputs (values)'!$H$8,'Inputs (values)'!$C$20:$C$25,'Inputs (values)'!$H$20:$H$25) -> 0.03 | CC8: =LOOKUP(CC7-'Inputs (values)'!$H$8,'Inputs (values)'!$C$20:$C$25,'Inputs (values)'!$H$20:$H$25) -> 0.03 | CD8: =LOOKUP(CD7-'Inputs (values)'!$H$8,'Inputs (values)'!$C$20:$C$25,'Inputs (values)'!$H$20:$H$25) -> 0.03 | CE8: =LOOKUP(CE7-'Inputs (values)'!$H$8,'Inputs (values)'!$C$20:$C$25,'Inputs (values)'!$H$20:$H$25) -> 0.03 | CF8: =LOOKUP(CF7-'Inputs (values)'!$H$8,'Inputs (values)'!$C$20:$C$25,'Inputs (values)'!$H$20:$H$25) -> 0.025 | CG8: =LOOKUP(CG7-'Inputs (values)'!$H$8,'Inputs (values)'!$C$20:$C$25,'Inputs (values)'!$H$20:$H$25) -> 0.025 | CH8: =LOOKUP(CH7-'Inputs (values)'!$H$8,'Inputs (values)'!$C$20:$C$25,'Inputs (values)'!$H$20:$H$25) -> 0.025 | CI8: =LOOKUP(CI7-'Inputs (values)'!$H$8,'Inputs (values)'!$C$20:$C$25,'Inputs (values)'!$H$20:$H$25) -> 0.025 | CJ8: =LOOKUP(CJ7-'Inputs (values)'!$H$8,'Inputs (values)'!$C$20:$C$25,'Inputs (values)'!$H$20:$H$25) -> 0.025 | CK8: =LOOKUP(CK7-'Inputs (values)'!$H$8,'Inputs (values)'!$C$20:$C$25,'Inputs (values)'!$H$20:$H$25) -> 0.025 | CL8: =LOOKUP(CL7-'Inputs (values)'!$H$8,'Inputs (values)'!$C$20:$C$25,'Inputs (values)'!$H$20:$H$25) -> 0.025 | CM8: =LOOKUP(CM7-'Inputs (values)'!$H$8,'Inputs (values)'!$C$20:$C$25,'Inputs (values)'!$H$20:$H$25) -> 0.025 | CN8: =LOOKUP(CN7-'Inputs (values)'!$H$8,'Inputs (values)'!$C$20:$C$25,'Inputs (values)'!$H$20:$H$25) -> 0.025 | CO8: =LOOKUP(CO7-'Inputs (values)'!$H$8,'Inputs (values)'!$C$20:$C$25,'Inputs (values)'!$H$20:$H$25) -> 0.025 | CP8: =LOOKUP(CP7-'Inputs (values)'!$H$8,'Inputs (values)'!$C$20:$C$25,'Inputs (values)'!$H$20:$H$25) -> 0.025 | CQ8: =LOOKUP(CQ7-'Inputs (values)'!$H$8,'Inputs (values)'!$C$20:$C$25,'Inputs (values)'!$H$20:$H$25) -> 0.025 | CR8: =LOOKUP(CR7-'Inputs (values)'!$H$8,'Inputs (values)'!$C$20:$C$25,'Inputs (values)'!$H$20:$H$25) -> 0.025 | CS8: =LOOKUP(CS7-'Inputs (values)'!$H$8,'Inputs (values)'!$C$20:$C$25,'Inputs (values)'!$H$20:$H$25) -> 0.025 | CT8: =LOOKUP(CT7-'Inputs (values)'!$H$8,'Inputs (values)'!$C$20:$C$25,'Inputs (values)'!$H$20:$H$25) -> 0.025 | CU8: =LOOKUP(CU7-'Inputs (values)'!$H$8,'Inputs (values)'!$C$20:$C$25,'Inputs (values)'!$H$20:$H$25) -> 0.025 | CV8: =LOOKUP(CV7-'Inputs (values)'!$H$8,'Inputs (values)'!$C$20:$C$25,'Inputs (values)'!$H$20:$H$25) -> 0.025 | CW8: =LOOKUP(CW7-'Inputs (values)'!$H$8,'Inputs (values)'!$C$20:$C$25,'Inputs (values)'!$H$20:$H$25) -> 0.025 | CX8: =LOOKUP(CX7-'Inputs (values)'!$H$8,'Inputs (values)'!$C$20:$C$25,'Inputs (values)'!$H$20:$H$25) -> 0.025 | CY8: =LOOKUP(CY7-'Inputs (values)'!$H$8,'Inputs (values)'!$C$20:$C$25,'Inputs (values)'!$H$20:$H$25) -> 0.025 | CZ8: =LOOKUP(CZ7-'Inputs (values)'!$H$8,'Inputs (values)'!$C$20:$C$25,'Inputs (values)'!$H$20:$H$25) -> 0.025 | DA8: =LOOKUP(DA7-'Inputs (values)'!$H$8,'Inputs (values)'!$C$20:$C$25,'Inputs (values)'!$H$20:$H$25) -> 0.025 | DB8: =LOOKUP(DB7-'Inputs (values)'!$H$8,'Inputs (values)'!$C$20:$C$25,'Inputs (values)'!$H$20:$H$25) -> 0.025 | DC8: =LOOKUP(DC7-'Inputs (values)'!$H$8,'Inputs (values)'!$C$20:$C$25,'Inputs (values)'!$H$20:$H$25) -> 0.025 | DD8: =LOOKUP(DD7-'Inputs (values)'!$H$8,'Inputs (values)'!$C$20:$C$25,'Inputs (values)'!$H$20:$H$25) -> 0.025 | DE8: =LOOKUP(DE7-'Inputs (values)'!$H$8,'Inputs (values)'!$C$20:$C$25,'Inputs (values)'!$H$20:$H$25) -> 0.025 | DF8: =LOOKUP(DF7-'Inputs (values)'!$H$8,'Inputs (values)'!$C$20:$C$25,'Inputs (values)'!$H$20:$H$25) -> 0.025 | DG8: =LOOKUP(DG7-'Inputs (values)'!$H$8,'Inputs (values)'!$C$20:$C$25,'Inputs (values)'!$H$20:$H$25) -> 0.025 | DH8: =LOOKUP(DH7-'Inputs (values)'!$H$8,'Inputs (values)'!$C$20:$C$25,'Inputs (values)'!$H$20:$H$25) -> 0.025 | DI8: =LOOKUP(DI7-'Inputs (values)'!$H$8,'Inputs (values)'!$C$20:$C$25,'Inputs (values)'!$H$20:$H$25) -> 0.025 | DJ8: =LOOKUP(DJ7-'Inputs (values)'!$H$8,'Inputs (values)'!$C$20:$C$25,'Inputs (values)'!$H$20:$H$25) -> 0.025 | DK8: =LOOKUP(DK7-'Inputs (values)'!$H$8,'Inputs (values)'!$C$20:$C$25,'Inputs (values)'!$H$20:$H$25) -> 0.025 | DL8: =LOOKUP(DL7-'Inputs (values)'!$H$8,'Inputs (values)'!$C$20:$C$25,'Inputs (values)'!$H$20:$H$25) -> 0.025 | DM8: =LOOKUP(DM7-'Inputs (values)'!$H$8,'Inputs (values)'!$C$20:$C$25,'Inputs (values)'!$H$20:$H$25) -> 0.025 | DN8: =LOOKUP(DN7-'Inputs (values)'!$H$8,'Inputs (values)'!$C$20:$C$25,'Inputs (values)'!$H$20:$H$25) -> 0.025 | DO8: =LOOKUP(DO7-'Inputs (values)'!$H$8,'Inputs (values)'!$C$20:$C$25,'Inputs (values)'!$H$20:$H$25) -> 0.025 | DP8: =LOOKUP(DP7-'Inputs (values)'!$H$8,'Inputs (values)'!$C$20:$C$25,'Inputs (values)'!$H$20:$H$25) -> 0.025 | DQ8: =LOOKUP(DQ7-'Inputs (values)'!$H$8,'Inputs (values)'!$C$20:$C$25,'Inputs (values)'!$H$20:$H$25) -> 0.025 | DR8: =LOOKUP(DR7-'Inputs (values)'!$H$8,'Inputs (values)'!$C$20:$C$25,'Inputs (values)'!$H$20:$H$25) -> 0.025 | DS8: =LOOKUP(DS7-'Inputs (values)'!$H$8,'Inputs (values)'!$C$20:$C$25,'Inputs (values)'!$H$20:$H$25) -> 0.025 | DT8: =LOOKUP(DT7-'Inputs (values)'!$H$8,'Inputs (values)'!$C$20:$C$25,'Inputs (values)'!$H$20:$H$25) -> 0.025 | DU8: =LOOKUP(DU7-'Inputs (values)'!$H$8,'Inputs (values)'!$C$20:$C$25,'Inputs (values)'!$H$20:$H$25) -> 0.025 | DV8: =LOOKUP(DV7-'Inputs (values)'!$H$8,'Inputs (values)'!$C$20:$C$25,'Inputs (values)'!$H$20:$H$25) -> 0.025 | DW8: =LOOKUP(DW7-'Inputs (values)'!$H$8,'Inputs (values)'!$C$20:$C$25,'Inputs (values)'!$H$20:$H$25) -> 0.025 | DX8: =LOOKUP(DX7-'Inputs (values)'!$H$8,'Inputs (values)'!$C$20:$C$25,'Inputs (values)'!$H$20:$H$25) -> 0.025 | DY8: =LOOKUP(DY7-'Inputs (values)'!$H$8,'Inputs (values)'!$C$20:$C$25,'Inputs (values)'!$H$20:$H$25) -> 0.025 | DZ8: =LOOKUP(DZ7-'Inputs (values)'!$H$8,'Inputs (values)'!$C$20:$C$25,'Inputs (values)'!$H$20:$H$25) -> 0.025 | EA8: =LOOKUP(EA7-'Inputs (values)'!$H$8,'Inputs (values)'!$C$20:$C$25,'Inputs (values)'!$H$20:$H$25) -> 0.025 | EB8: =LOOKUP(EB7-'Inputs (values)'!$H$8,'Inputs (values)'!$C$20:$C$25,'Inputs (values)'!$H$20:$H$25) -> 0.025 | EC8: =LOOKUP(EC7-'Inputs (values)'!$H$8,'Inputs (values)'!$C$20:$C$25,'Inputs (values)'!$H$20:$H$25) -> 0.025 | ED8: =LOOKUP(ED7-'Inputs (values)'!$H$8,'Inputs (values)'!$C$20:$C$25,'Inputs (values)'!$H$20:$H$25) -> 0.02 | EE8: =LOOKUP(EE7-'Inputs (values)'!$H$8,'Inputs (values)'!$C$20:$C$25,'Inputs (values)'!$H$20:$H$25) -> 0.02 | EF8: =LOOKUP(EF7-'Inputs (values)'!$H$8,'Inputs (values)'!$C$20:$C$25,'Inputs (values)'!$H$20:$H$25) -> 0.02 | EG8: =LOOKUP(EG7-'Inputs (values)'!$H$8,'Inputs (values)'!$C$20:$C$25,'Inputs (values)'!$H$20:$H$25) -> 0.02 | EH8: =LOOKUP(EH7-'Inputs (values)'!$H$8,'Inputs (values)'!$C$20:$C$25,'Inputs (values)'!$H$20:$H$25) -> 0.02 | EI8: =LOOKUP(EI7-'Inputs (values)'!$H$8,'Inputs (values)'!$C$20:$C$25,'Inputs (values)'!$H$20:$H$25) -> 0.02 | EJ8: =LOOKUP(EJ7-'Inputs (values)'!$H$8,'Inputs (values)'!$C$20:$C$25,'Inputs (values)'!$H$20:$H$25) -> 0.02 | EK8: =LOOKUP(EK7-'Inputs (values)'!$H$8,'Inputs (values)'!$C$20:$C$25,'Inputs (values)'!$H$20:$H$25) -> 0.02 | EL8: =LOOKUP(EL7-'Inputs (values)'!$H$8,'Inputs (values)'!$C$20:$C$25,'Inputs (values)'!$H$20:$H$25) -> 0.02 | EM8: =LOOKUP(EM7-'Inputs (values)'!$H$8,'Inputs (values)'!$C$20:$C$25,'Inputs (values)'!$H$20:$H$25) -> 0.02 | EN8: =LOOKUP(EN7-'Inputs (values)'!$H$8,'Inputs (values)'!$C$20:$C$25,'Inputs (values)'!$H$20:$H$25) -> 0.02 | EO8: =LOOKUP(EO7-'Inputs (values)'!$H$8,'Inputs (values)'!$C$20:$C$25,'Inputs (values)'!$H$20:$H$25) -> 0.02 | EP8: =LOOKUP(EP7-'Inputs (values)'!$H$8,'Inputs (values)'!$C$20:$C$25,'Inputs (values)'!$H$20:$H$25) -> 0.02 | EQ8: =LOOKUP(EQ7-'Inputs (values)'!$H$8,'Inputs (values)'!$C$20:$C$25,'Inputs (values)'!$H$20:$H$25) -> 0.02 | ER8: =LOOKUP(ER7-'Inputs (values)'!$H$8,'Inputs (values)'!$C$20:$C$25,'Inputs (values)'!$H$20:$H$25) -> 0.02 | ES8: =LOOKUP(ES7-'Inputs (values)'!$H$8,'Inputs (values)'!$C$20:$C$25,'Inputs (values)'!$H$20:$H$25) -> 0.02 | ET8: =LOOKUP(ET7-'Inputs (values)'!$H$8,'Inputs (values)'!$C$20:$C$25,'Inputs (values)'!$H$20:$H$25) -> 0.02 | EU8: =LOOKUP(EU7-'Inputs (values)'!$H$8,'Inputs (values)'!$C$20:$C$25,'Inputs (values)'!$H$20:$H$25) -> 0.02 | EV8: =LOOKUP(EV7-'Inputs (values)'!$H$8,'Inputs (values)'!$C$20:$C$25,'Inputs (values)'!$H$20:$H$25) -> 0.02 | EW8: =LOOKUP(EW7-'Inputs (values)'!$H$8,'Inputs (values)'!$C$20:$C$25,'Inputs (values)'!$H$20:$H$25) -> 0.02 | EX8: =LOOKUP(EX7-'Inputs (values)'!$H$8,'Inputs (values)'!$C$20:$C$25,'Inputs (values)'!$H$20:$H$25) -> 0.02 | EY8: =LOOKUP(EY7-'Inputs (values)'!$H$8,'Inputs (values)'!$C$20:$C$25,'Inputs (values)'!$H$20:$H$25) -> 0.02 | EZ8: =LOOKUP(EZ7-'Inputs (values)'!$H$8,'Inputs (values)'!$C$20:$C$25,'Inputs (values)'!$H$20:$H$25) -> 0.02 | FA8: =LOOKUP(FA7-'Inputs (values)'!$H$8,'Inputs (values)'!$C$20:$C$25,'Inputs (values)'!$H$20:$H$25) -> 0.02 | FB8: =LOOKUP(FB7-'Inputs (values)'!$H$8,'Inputs (values)'!$C$20:$C$25,'Inputs (values)'!$H$20:$H$25) -> 0.02 | FC8: =LOOKUP(FC7-'Inputs (values)'!$H$8,'Inputs (values)'!$C$20:$C$25,'Inputs (values)'!$H$20:$H$25) -> 0.02 | FD8: =LOOKUP(FD7-'Inputs (values)'!$H$8,'Inputs (values)'!$C$20:$C$25,'Inputs (values)'!$H$20:$H$25) -> 0.02 | FE8: =LOOKUP(FE7-'Inputs (values)'!$H$8,'Inputs (values)'!$C$20:$C$25,'Inputs (values)'!$H$20:$H$25) -> 0.02 | FF8: =LOOKUP(FF7-'Inputs (values)'!$H$8,'Inputs (values)'!$C$20:$C$25,'Inputs (values)'!$H$20:$H$25) -> 0.02 | FG8: =LOOKUP(FG7-'Inputs (values)'!$H$8,'Inputs (values)'!$C$20:$C$25,'Inputs (values)'!$H$20:$H$25) -> 0.02 | FH8: =LOOKUP(FH7-'Inputs (values)'!$H$8,'Inputs (values)'!$C$20:$C$25,'Inputs (values)'!$H$20:$H$25) -> 0.02 | FI8: =LOOKUP(FI7-'Inputs (values)'!$H$8,'Inputs (values)'!$C$20:$C$25,'Inputs (values)'!$H$20:$H$25) -> 0.02 | FJ8: =LOOKUP(FJ7-'Inputs (values)'!$H$8,'Inputs (values)'!$C$20:$C$25,'Inputs (values)'!$H$20:$H$25) -> 0.02 | FK8: =LOOKUP(FK7-'Inputs (values)'!$H$8,'Inputs (values)'!$C$20:$C$25,'Inputs (values)'!$H$20:$H$25) -> 0.02 | FL8: =LOOKUP(FL7-'Inputs (values)'!$H$8,'Inputs (values)'!$C$20:$C$25,'Inputs (values)'!$H$20:$H$25) -> 0.02 | FM8: =LOOKUP(FM7-'Inputs (values)'!$H$8,'Inputs (values)'!$C$20:$C$25,'Inputs (values)'!$H$20:$H$25) -> 0.02 | FN8: =LOOKUP(FN7-'Inputs (values)'!$H$8,'Inputs (values)'!$C$20:$C$25,'Inputs (values)'!$H$20:$H$25) -> 0.02 | FO8: =LOOKUP(FO7-'Inputs (values)'!$H$8,'Inputs (values)'!$C$20:$C$25,'Inputs (values)'!$H$20:$H$25) -> 0.02 | FP8: =LOOKUP(FP7-'Inputs (values)'!$H$8,'Inputs (values)'!$C$20:$C$25,'Inputs (values)'!$H$20:$H$25) -> 0.02 | FQ8: =LOOKUP(FQ7-'Inputs (values)'!$H$8,'Inputs (values)'!$C$20:$C$25,'Inputs (values)'!$H$20:$H$25) -> 0.02 | FR8: =LOOKUP(FR7-'Inputs (values)'!$H$8,'Inputs (values)'!$C$20:$C$25,'Inputs (values)'!$H$20:$H$25) -> 0.02 | FS8: =LOOKUP(FS7-'Inputs (values)'!$H$8,'Inputs (values)'!$C$20:$C$25,'Inputs (values)'!$H$20:$H$25) -> 0.02 | FT8: =LOOKUP(FT7-'Inputs (values)'!$H$8,'Inputs (values)'!$C$20:$C$25,'Inputs (values)'!$H$20:$H$25) -> 0.02 | FU8: =LOOKUP(FU7-'Inputs (values)'!$H$8,'Inputs (values)'!$C$20:$C$25,'Inputs (values)'!$H$20:$H$25) -> 0.02 | FV8: =LOOKUP(FV7-'Inputs (values)'!$H$8,'Inputs (values)'!$C$20:$C$25,'Inputs (values)'!$H$20:$H$25) -> 0.02 | FW8: =LOOKUP(FW7-'Inputs (values)'!$H$8,'Inputs (values)'!$C$20:$C$25,'Inputs (values)'!$H$20:$H$25) -> 0.02 | FX8: =LOOKUP(FX7-'Inputs (values)'!$H$8,'Inputs (values)'!$C$20:$C$25,'Inputs (values)'!$H$20:$H$25) -> 0.02 | FY8: =LOOKUP(FY7-'Inputs (values)'!$H$8,'Inputs (values)'!$C$20:$C$25,'Inputs (values)'!$H$20:$H$25) -> 0.02 | FZ8: =LOOKUP(FZ7-'Inputs (values)'!$H$8,'Inputs (values)'!$C$20:$C$25,'Inputs (values)'!$H$20:$H$25) -> 0.02 | GA8: =LOOKUP(GA7-'Inputs (values)'!$H$8,'Inputs (values)'!$C$20:$C$25,'Inputs (values)'!$H$20:$H$25) -> 0.02 | GB8: =LOOKUP(GB7-'Inputs (values)'!$H$8,'Inputs (values)'!$C$20:$C$25,'Inputs (values)'!$H$20:$H$25) -> 0.02 | GC8: =LOOKUP(GC7-'Inputs (values)'!$H$8,'Inputs (values)'!$C$20:$C$25,'Inputs (values)'!$H$20:$H$25) -> 0.02 | GD8: =LOOKUP(GD7-'Inputs (values)'!$H$8,'Inputs (values)'!$C$20:$C$25,'Inputs (values)'!$H$20:$H$25) -> 0.02 | GE8: =LOOKUP(GE7-'Inputs (values)'!$H$8,'Inputs (values)'!$C$20:$C$25,'Inputs (values)'!$H$20:$H$25) -> 0.02 | GF8: =LOOKUP(GF7-'Inputs (values)'!$H$8,'Inputs (values)'!$C$20:$C$25,'Inputs (values)'!$H$20:$H$25) -> 0.02 | GG8: =LOOKUP(GG7-'Inputs (values)'!$H$8,'Inputs (values)'!$C$20:$C$25,'Inputs (values)'!$H$20:$H$25) -> 0.02 | GH8: =LOOKUP(GH7-'Inputs (values)'!$H$8,'Inputs (values)'!$C$20:$C$25,'Inputs (values)'!$H$20:$H$25) -> 0.02 | GI8: =LOOKUP(GI7-'Inputs (values)'!$H$8,'Inputs (values)'!$C$20:$C$25,'Inputs (values)'!$H$20:$H$25) -> 0.02 | GJ8: =LOOKUP(GJ7-'Inputs (values)'!$H$8,'Inputs (values)'!$C$20:$C$25,'Inputs (values)'!$H$20:$H$25) -> 0.02 | GK8: =LOOKUP(GK7-'Inputs (values)'!$H$8,'Inputs (values)'!$C$20:$C$25,'Inputs (values)'!$H$20:$H$25) -> 0.02 | GL8: =LOOKUP(GL7-'Inputs (values)'!$H$8,'Inputs (values)'!$C$20:$C$25,'Inputs (values)'!$H$20:$H$25) -> 0.02 | GM8: =LOOKUP(GM7-'Inputs (values)'!$H$8,'Inputs (values)'!$C$20:$C$25,'Inputs (values)'!$H$20:$H$25) -> 0.02 | GN8: =LOOKUP(GN7-'Inputs (values)'!$H$8,'Inputs (values)'!$C$20:$C$25,'Inputs (values)'!$H$20:$H$25) -> 0.02 | GO8: =LOOKUP(GO7-'Inputs (values)'!$H$8,'Inputs (values)'!$C$20:$C$25,'Inputs (values)'!$H$20:$H$25) -> 0.02 | GP8: =LOOKUP(GP7-'Inputs (values)'!$H$8,'Inputs (values)'!$C$20:$C$25,'Inputs (values)'!$H$20:$H$25) -> 0.02 | GQ8: =LOOKUP(GQ7-'Inputs (values)'!$H$8,'Inputs (values)'!$C$20:$C$25,'Inputs (values)'!$H$20:$H$25) -> 0.02 | GR8: =LOOKUP(GR7-'Inputs (values)'!$H$8,'Inputs (values)'!$C$20:$C$25,'Inputs (values)'!$H$20:$H$25) -> 0.02 | GS8: =LOOKUP(GS7-'Inputs (values)'!$H$8,'Inputs (values)'!$C$20:$C$25,'Inputs (values)'!$H$20:$H$25) -> 0.02 | GT8: =LOOKUP(GT7-'Inputs (values)'!$H$8,'Inputs (values)'!$C$20:$C$25,'Inputs (values)'!$H$20:$H$25) -> 0.02 | GU8: =LOOKUP(GU7-'Inputs (values)'!$H$8,'Inputs (values)'!$C$20:$C$25,'Inputs (values)'!$H$20:$H$25) -> 0.02 | GV8: =LOOKUP(GV7-'Inputs (values)'!$H$8,'Inputs (values)'!$C$20:$C$25,'Inputs (values)'!$H$20:$H$25) -> 0.02 | GW8: =LOOKUP(GW7-'Inputs (values)'!$H$8,'Inputs (values)'!$C$20:$C$25,'Inputs (values)'!$H$20:$H$25) -> 0.02 | GX8: =LOOKUP(GX7-'Inputs (values)'!$H$8,'Inputs (values)'!$C$20:$C$25,'Inputs (values)'!$H$20:$H$25) -> 0.02 | GY8: =LOOKUP(GY7-'Inputs (values)'!$H$8,'Inputs (values)'!$C$20:$C$25,'Inputs (values)'!$H$20:$H$25) -> 0.02 | GZ8: =LOOKUP(GZ7-'Inputs (values)'!$H$8,'Inputs (values)'!$C$20:$C$25,'Inputs (values)'!$H$20:$H$25) -> 0.02 | HA8: =LOOKUP(HA7-'Inputs (values)'!$H$8,'Inputs (values)'!$C$20:$C$25,'Inputs (values)'!$H$20:$H$25) -> 0.015 | HB8: =LOOKUP(HB7-'Inputs (values)'!$H$8,'Inputs (values)'!$C$20:$C$25,'Inputs (values)'!$H$20:$H$25) -> 0.015 | HC8: =LOOKUP(HC7-'Inputs (values)'!$H$8,'Inputs (values)'!$C$20:$C$25,'Inputs (values)'!$H$20:$H$25) -> 0.015 | HD8: =LOOKUP(HD7-'Inputs (values)'!$H$8,'Inputs (values)'!$C$20:$C$25,'Inputs (values)'!$H$20:$H$25) -> 0.015 | HE8: =LOOKUP(HE7-'Inputs (values)'!$H$8,'Inputs (values)'!$C$20:$C$25,'Inputs (values)'!$H$20:$H$25) -> 0.015 | HF8: =LOOKUP(HF7-'Inputs (values)'!$H$8,'Inputs (values)'!$C$20:$C$25,'Inputs (values)'!$H$20:$H$25) -> 0.015 | HG8: =LOOKUP(HG7-'Inputs (values)'!$H$8,'Inputs (values)'!$C$20:$C$25,'Inputs (values)'!$H$20:$H$25) -> 0.015 | HH8: =LOOKUP(HH7-'Inputs (values)'!$H$8,'Inputs (values)'!$C$20:$C$25,'Inputs (values)'!$H$20:$H$25) -> 0.015 | HI8: =LOOKUP(HI7-'Inputs (values)'!$H$8,'Inputs (values)'!$C$20:$C$25,'Inputs (values)'!$H$20:$H$25) -> 0.015 | HJ8: =LOOKUP(HJ7-'Inputs (values)'!$H$8,'Inputs (values)'!$C$20:$C$25,'Inputs (values)'!$H$20:$H$25) -> 0.015 | HK8: =LOOKUP(HK7-'Inputs (values)'!$H$8,'Inputs (values)'!$C$20:$C$25,'Inputs (values)'!$H$20:$H$25) -> 0.015 | HL8: =LOOKUP(HL7-'Inputs (values)'!$H$8,'Inputs (values)'!$C$20:$C$25,'Inputs (values)'!$H$20:$H$25) -> 0.015 | HM8: =LOOKUP(HM7-'Inputs (values)'!$H$8,'Inputs (values)'!$C$20:$C$25,'Inputs (values)'!$H$20:$H$25) -> 0.015 | HN8: =LOOKUP(HN7-'Inputs (values)'!$H$8,'Inputs (values)'!$C$20:$C$25,'Inputs (values)'!$H$20:$H$25) -> 0.015 | HO8: =LOOKUP(HO7-'Inputs (values)'!$H$8,'Inputs (values)'!$C$20:$C$25,'Inputs (values)'!$H$20:$H$25) -> 0.015 | HP8: =LOOKUP(HP7-'Inputs (values)'!$H$8,'Inputs (values)'!$C$20:$C$25,'Inputs (values)'!$H$20:$H$25) -> 0.015 | HQ8: =LOOKUP(HQ7-'Inputs (values)'!$H$8,'Inputs (values)'!$C$20:$C$25,'Inputs (values)'!$H$20:$H$25) -> 0.015 | HR8: =LOOKUP(HR7-'Inputs (values)'!$H$8,'Inputs (values)'!$C$20:$C$25,'Inputs (values)'!$H$20:$H$25) -> 0.015 | HS8: =LOOKUP(HS7-'Inputs (values)'!$H$8,'Inputs (values)'!$C$20:$C$25,'Inputs (values)'!$H$20:$H$25) -> 0.015 | HT8: =LOOKUP(HT7-'Inputs (values)'!$H$8,'Inputs (values)'!$C$20:$C$25,'Inputs (values)'!$H$20:$H$25) -> 0.015 | HU8: =LOOKUP(HU7-'Inputs (values)'!$H$8,'Inputs (values)'!$C$20:$C$25,'Inputs (values)'!$H$20:$H$25) -> 0.015 | HV8: =LOOKUP(HV7-'Inputs (values)'!$H$8,'Inputs (values)'!$C$20:$C$25,'Inputs (values)'!$H$20:$H$25) -> 0.015 | HW8: =LOOKUP(HW7-'Inputs (values)'!$H$8,'Inputs (values)'!$C$20:$C$25,'Inputs (values)'!$H$20:$H$25) -> 0.015 | HX8: =LOOKUP(HX7-'Inputs (values)'!$H$8,'Inputs (values)'!$C$20:$C$25,'Inputs (values)'!$H$20:$H$25) -> 0.015 | HY8: =LOOKUP(HY7-'Inputs (values)'!$H$8,'Inputs (values)'!$C$20:$C$25,'Inputs (values)'!$H$20:$H$25) -> 0.015 | HZ8: =LOOKUP(HZ7-'Inputs (values)'!$H$8,'Inputs (values)'!$C$20:$C$25,'Inputs (values)'!$H$20:$H$25) -> 0.015 | IA8: =LOOKUP(IA7-'Inputs (values)'!$H$8,'Inputs (values)'!$C$20:$C$25,'Inputs (values)'!$H$20:$H$25) -> 0.015 | IB8: =LOOKUP(IB7-'Inputs (values)'!$H$8,'Inputs (values)'!$C$20:$C$25,'Inputs (values)'!$H$20:$H$25) -> 0.015 | IC8: =LOOKUP(IC7-'Inputs (values)'!$H$8,'Inputs (values)'!$C$20:$C$25,'Inputs (values)'!$H$20:$H$25) -> 0.015 | ID8: =LOOKUP(ID7-'Inputs (values)'!$H$8,'Inputs (values)'!$C$20:$C$25,'Inputs (values)'!$H$20:$H$25) -> 0.015 | IE8: =LOOKUP(IE7-'Inputs (values)'!$H$8,'Inputs (values)'!$C$20:$C$25,'Inputs (values)'!$H$20:$H$25) -> 0.015 | IF8: =LOOKUP(IF7-'Inputs (values)'!$H$8,'Inputs (values)'!$C$20:$C$25,'Inputs (values)'!$H$20:$H$25) -> 0.015 | IG8: =LOOKUP(IG7-'Inputs (values)'!$H$8,'Inputs (values)'!$C$20:$C$25,'Inputs (values)'!$H$20:$H$25) -> 0.015 | IH8: =LOOKUP(IH7-'Inputs (values)'!$H$8,'Inputs (values)'!$C$20:$C$25,'Inputs (values)'!$H$20:$H$25) -> 0.015 | II8: =LOOKUP(II7-'Inputs (values)'!$H$8,'Inputs (values)'!$C$20:$C$25,'Inputs (values)'!$H$20:$H$25) -> 0.015 | IJ8: =LOOKUP(IJ7-'Inputs (values)'!$H$8,'Inputs (values)'!$C$20:$C$25,'Inputs (values)'!$H$20:$H$25) -> 0.015 | IK8: =LOOKUP(IK7-'Inputs (values)'!$H$8,'Inputs (values)'!$C$20:$C$25,'Inputs (values)'!$H$20:$H$25) -> 0.015 | IL8: =LOOKUP(IL7-'Inputs (values)'!$H$8,'Inputs (values)'!$C$20:$C$25,'Inputs (values)'!$H$20:$H$25) -> 0.015 | IM8: =LOOKUP(IM7-'Inputs (values)'!$H$8,'Inputs (values)'!$C$20:$C$25,'Inputs (values)'!$H$20:$H$25) -> 0.015 | IN8: =LOOKUP(IN7-'Inputs (values)'!$H$8,'Inputs (values)'!$C$20:$C$25,'Inputs (values)'!$H$20:$H$25) -> 0.015 | IO8: =LOOKUP(IO7-'Inputs (values)'!$H$8,'Inputs (values)'!$C$20:$C$25,'Inputs (values)'!$H$20:$H$25) -> 0.015 | IP8: =LOOKUP(IP7-'Inputs (values)'!$H$8,'Inputs (values)'!$C$20:$C$25,'Inputs (values)'!$H$20:$H$25) -> 0.015 | IQ8: =LOOKUP(IQ7-'Inputs (values)'!$H$8,'Inputs (values)'!$C$20:$C$25,'Inputs (values)'!$H$20:$H$25) -> 0.015 | IR8: =LOOKUP(IR7-'Inputs (values)'!$H$8,'Inputs (values)'!$C$20:$C$25,'Inputs (values)'!$H$20:$H$25) -> 0.015 | IS8: =LOOKUP(IS7-'Inputs (values)'!$H$8,'Inputs (values)'!$C$20:$C$25,'Inputs (values)'!$H$20:$H$25) -> 0.015 | IT8: =LOOKUP(IT7-'Inputs (values)'!$H$8,'Inputs (values)'!$C$20:$C$25,'Inputs (values)'!$H$20:$H$25) -> 0.015 | IU8: =LOOKUP(IU7-'Inputs (values)'!$H$8,'Inputs (values)'!$C$20:$C$25,'Inputs (values)'!$H$20:$H$25) -> 0.015 | IV8: =LOOKUP(IV7-'Inputs (values)'!$H$8,'Inputs (values)'!$C$20:$C$25,'Inputs (values)'!$H$20:$H$25) -> 0.015 | IW8: =LOOKUP(IW7-'Inputs (values)'!$H$8,'Inputs (values)'!$C$20:$C$25,'Inputs (values)'!$H$20:$H$25) -> 0.015 | IX8: =LOOKUP(IX7-'Inputs (values)'!$H$8,'Inputs (values)'!$C$20:$C$25,'Inputs (values)'!$H$20:$H$25) -> 0.015 | IY8: =LOOKUP(IY7-'Inputs (values)'!$H$8,'Inputs (values)'!$C$20:$C$25,'Inputs (values)'!$H$20:$H$25) -> 0.015 | IZ8: =LOOKUP(IZ7-'Inputs (values)'!$H$8,'Inputs (values)'!$C$20:$C$25,'Inputs (values)'!$H$20:$H$25) -> 0.015 | JA8: =LOOKUP(JA7-'Inputs (values)'!$H$8,'Inputs (values)'!$C$20:$C$25,'Inputs (values)'!$H$20:$H$25) -> 0.015 | JB8: =LOOKUP(JB7-'Inputs (values)'!$H$8,'Inputs (values)'!$C$20:$C$25,'Inputs (values)'!$H$20:$H$25) -> 0.015 | JC8: =LOOKUP(JC7-'Inputs (values)'!$H$8,'Inputs (values)'!$C$20:$C$25,'Inputs (values)'!$H$20:$H$25) -> 0.015 | JD8: =LOOKUP(JD7-'Inputs (values)'!$H$8,'Inputs (values)'!$C$20:$C$25,'Inputs (values)'!$H$20:$H$25) -> 0.015 | JE8: =LOOKUP(JE7-'Inputs (values)'!$H$8,'Inputs (values)'!$C$20:$C$25,'Inputs (values)'!$H$20:$H$25) -> 0.015 | JF8: =LOOKUP(JF7-'Inputs (values)'!$H$8,'Inputs (values)'!$C$20:$C$25,'Inputs (values)'!$H$20:$H$25) -> 0.015 | JG8: =LOOKUP(JG7-'Inputs (values)'!$H$8,'Inputs (values)'!$C$20:$C$25,'Inputs (values)'!$H$20:$H$25) -> 0.015 | JH8: =LOOKUP(JH7-'Inputs (values)'!$H$8,'Inputs (values)'!$C$20:$C$25,'Inputs (values)'!$H$20:$H$25) -> 0.015 | JI8: =LOOKUP(JI7-'Inputs (values)'!$H$8,'Inputs (values)'!$C$20:$C$25,'Inputs (values)'!$H$20:$H$25) -> 0.015 | JJ8: =LOOKUP(JJ7-'Inputs (values)'!$H$8,'Inputs (values)'!$C$20:$C$25,'Inputs (values)'!$H$20:$H$25) -> 0.015 | JK8: =LOOKUP(JK7-'Inputs (values)'!$H$8,'Inputs (values)'!$C$20:$C$25,'Inputs (values)'!$H$20:$H$25) -> 0.015 | JL8: =LOOKUP(JL7-'Inputs (values)'!$H$8,'Inputs (values)'!$C$20:$C$25,'Inputs (values)'!$H$20:$H$25) -> 0.015 | JM8: =LOOKUP(JM7-'Inputs (values)'!$H$8,'Inputs (values)'!$C$20:$C$25,'Inputs (values)'!$H$20:$H$25) -> 0.015 | JN8: =LOOKUP(JN7-'Inputs (values)'!$H$8,'Inputs (values)'!$C$20:$C$25,'Inputs (values)'!$H$20:$H$25) -> 0.015 | JO8: =LOOKUP(JO7-'Inputs (values)'!$H$8,'Inputs (values)'!$C$20:$C$25,'Inputs (values)'!$H$20:$H$25) -> 0.015 | JP8: =LOOKUP(JP7-'Inputs (values)'!$H$8,'Inputs (values)'!$C$20:$C$25,'Inputs (values)'!$H$20:$H$25) -> 0.015 | JQ8: =LOOKUP(JQ7-'Inputs (values)'!$H$8,'Inputs (values)'!$C$20:$C$25,'Inputs (values)'!$H$20:$H$25) -> 0.015 | JR8: =LOOKUP(JR7-'Inputs (values)'!$H$8,'Inputs (values)'!$C$20:$C$25,'Inputs (values)'!$H$20:$H$25) -> 0.015 | JS8: =LOOKUP(JS7-'Inputs (values)'!$H$8,'Inputs (values)'!$C$20:$C$25,'Inputs (values)'!$H$20:$H$25) -> 0.015 | JT8: =LOOKUP(JT7-'Inputs (values)'!$H$8,'Inputs (values)'!$C$20:$C$25,'Inputs (values)'!$H$20:$H$25) -> 0.015 | JU8: =LOOKUP(JU7-'Inputs (values)'!$H$8,'Inputs (values)'!$C$20:$C$25,'Inputs (values)'!$H$20:$H$25) -> 0.015 | JV8: =LOOKUP(JV7-'Inputs (values)'!$H$8,'Inputs (values)'!$C$20:$C$25,'Inputs (values)'!$H$20:$H$25) -> 0.015 | JW8: =LOOKUP(JW7-'Inputs (values)'!$H$8,'Inputs (values)'!$C$20:$C$25,'Inputs (values)'!$H$20:$H$25) -> 0.015 | JX8: =LOOKUP(JX7-'Inputs (values)'!$H$8,'Inputs (values)'!$C$20:$C$25,'Inputs (values)'!$H$20:$H$25) -> 0.015 | JY8: =LOOKUP(JY7-'Inputs (values)'!$H$8,'Inputs (values)'!$C$20:$C$25,'Inputs (values)'!$H$20:$H$25) -> 0.015 | JZ8: =LOOKUP(JZ7-'Inputs (values)'!$H$8,'Inputs (values)'!$C$20:$C$25,'Inputs (values)'!$H$20:$H$25) -> 0.015 | KA8: =LOOKUP(KA7-'Inputs (values)'!$H$8,'Inputs (values)'!$C$20:$C$25,'Inputs (values)'!$H$20:$H$25) -> 0.015
C11: Discount factors
H13: Year
H14: ='Inputs (values)'!$H$8 -> 2021 | I14: =H14+1 -> 2022 | J14: =I14+1 -> 2023 | K14: 2024 | L14: 2025 | M14: 2026 | N14: 2027 | O14: 2028 | P14: 2029 | Q14: 2030 | R14: 2031 | S14: 2032 | T14: 2033 | U14: 2034 | V14: 2035 | W14: 2036 | X14: 2037 | Y14: 2038 | Z14: 2039 | AA14: 2040 | AB14: 2041 | AC14: 2042 | AD14: 2043 | AE14: 2044 | AF14: 2045 | AG14: 2046 | AH14: 2047 | AI14: 2048 | AJ14: 2049 | AK14: 2050 | AL14: 2051 | AM14: 2052 | AN14: 2053 | AO14: 2054 | AP14: 2055 | AQ14: 2056 | AR14: 2057 | AS14: 2058 | AT14: 2059 | AU14: 2060 | AV14: 2061 | AW14: 2062 | AX14: 2063 | AY14: 2064 | AZ14: 2065 | BA14: 2066 | BB14: 2067 | BC14: 2068 | BD14: 2069 | BE14: 2070 | BF14: 2071 | BG14: 2072 | BH14: 2073 | BI14: 2074 | BJ14: 2075 | BK14: 2076 | BL14: 2077 | BM14: 2078 | BN14: 2079 | BO14: 2080 | BP14: 2081 | BQ14: 2082 | BR14: 2083 | BS14: 2084 | BT14: 2085 | BU14: 2086 | BV14: =BU14+1 -> 2087 | BW14: 2088 | BX14: 2089 | BY14: 2090 | BZ14: 2091 | CA14: 2092 | CB14: 2093 | CC14: 2094 | CD14: 2095 | CE14: 2096 | CF14: 2097 | CG14: 2098 | CH14: 2099 | CI14: 2100 | CJ14: 2101 | CK14: 2102 | CL14: 2103 | CM14: 2104 | CN14: 2105 | CO14: 2106 | CP14: 2107 | CQ14: 2108 | CR14: 2109 | CS14: 2110 | CT14: 2111 | CU14: 2112 | CV14: 2113 | CW14: 2114 | CX14: 2115 | CY14: 2116 | CZ14: 2117 | DA14: 2118 | DB14: 2119 | DC14: 2120 | DD14: 2121 | DE14: 2122 | DF14: 2123 | DG14: 2124 | DH14: 2125 | DI14: 2126 | DJ14: 2127 | DK14: 2128 | DL14: 2129 | DM14: 2130 | DN14: 2131 | DO14: 2132 | DP14: 2133 | DQ14: 2134 | DR14: 2135 | DS14: 2136 | DT14: 2137 | DU14: 2138 | DV14: 2139 | DW14: 2140 | DX14: 2141 | DY14: 2142 | DZ14: 2143 | EA14: 2144 | EB14: 2145 | EC14: 2146 | ED14: 2147 | EE14: 2148 | EF14: 2149 | EG14: 2150 | EH14: =EG14+1 -> 2151 | EI14: 2152 | EJ14: 2153 | EK14: 2154 | EL14: 2155 | EM14: 2156 | EN14: 2157 | EO14: 2158 | EP14: 2159 | EQ14: 2160 | ER14: 2161 | ES14: 2162 | ET14: 2163 | EU14: 2164 | EV14: 2165 | EW14: 2166 | EX14: 2167 | EY14: 2168 | EZ14: 2169 | FA14: 2170 | FB14: 2171 | FC14: 2172 | FD14: 2173 | FE14: 2174 | FF14: 2175 | FG14: 2176 | FH14: 2177 | FI14: 2178 | FJ14: 2179 | FK14: 2180 | FL14: 2181 | FM14: 2182 | FN14: 2183 | FO14: 2184 | FP14: 2185 | FQ14: 2186 | FR14: 2187 | FS14: 2188 | FT14: 2189 | FU14: 2190 | FV14: 2191 | FW14: 2192 | FX14: 2193 | FY14: 2194 | FZ14: 2195 | GA14: 2196 | GB14: 2197 | GC14: 2198 | GD14: 2199 | GE14: 2200 | GF14: 2201 | GG14: 2202 | GH14: 2203 | GI14: 2204 | GJ14: 2205 | GK14: 2206 | GL14: 2207 | GM14: 2208 | GN14: 2209 | GO14: 2210 | GP14: 2211 | GQ14: 2212 | GR14: 2213 | GS14: 2214 | GT14: =GS14+1 -> 2215 | GU14: 2216 | GV14: 2217 | GW14: 2218 | GX14: 2219 | GY14: 2220 | GZ14: 2221 | HA14: 2222 | HB14: 2223 | HC14: 2224 | HD14: 2225 | HE14: 2226 | HF14: 2227 | HG14: 2228 | HH14: 2229 | HI14: 2230 | HJ14: 2231 | HK14: 2232 | HL14: 2233 | HM14: 2234 | HN14: 2235 | HO14: 2236 | HP14: 2237 | HQ14: 2238 | HR14: 2239 | HS14: 2240 | HT14: 2241 | HU14: 2242 | HV14: 2243 | HW14: 2244 | HX14: 2245 | HY14: 2246 | HZ14: 2247 | IA14: 2248 | IB14: 2249 | IC14: 2250 | ID14: 2251 | IE14: 2252 | IF14: 2253 | IG14: 2254 | IH14: 2255 | II14: 2256 | IJ14: 2257 | IK14: 2258 | IL14: 2259 | IM14: 2260 | IN14: 2261 | IO14: 2262 | IP14: 2263 | IQ14: 2264 | IR14: 2265 | IS14: 2266 | IT14: 2267 | IU14: 2268 | IV14: 2269 | IW14: 2270 | IX14: 2271 | IY14: 2272 | IZ14: 2273 | JA14: 2274 | JB14: 2275 | JC14: 2276 | JD14: 2277 | JE14: 2278 | JF14: =JE14+1 -> 2279 | JG14: 2280 | JH14: 2281 | JI14: 2282 | JJ14: 2283 | JK14: 2284 | JL14: 2285 | JM14: 2286 | JN14: 2287 | JO14: 2288 | JP14: 2289 | JQ14: 2290 | JR14: 2291 | JS14: 2292 | JT14: 2293 | JU14: 2294 | JV14: 2295 | JW14: 2296 | JX14: 2297 | JY14: 2298 | JZ14: 2299 | KA14: 2300
C15: Discount factors | H15: 1 | I15: =H15/(1+I8) -> 0.9661835749 | J15: 0.9335107004 | K15: 0.9019427057 | L15: 0.8714422277 | M15: 0.8419731669 | N15: 0.8135006443 | O15: 0.7859909607 | P15: 0.7594115562 | Q15: 0.7337309722 | R15: 0.7089188137 | S15: 0.6849457137 | T15: 0.6617832983 | U15: 0.6394041529 | V15: 0.6177817903 | W15: 0.5968906186 | X15: 0.5767059117 | Y15: 0.5572037794 | Z15: 0.5383611396 | AA15: 0.5201556904 | AB15: 0.5025658844 | AC15: 0.4855709028 | AD15: 0.4691506308 | AE15: 0.4532856336 | AF15: 0.4379571339 | AG15: 0.4231469893 | AH15: 0.4088376708 | AI15: 0.3950122423 | AJ15: 0.3816543404 | AK15: 0.368748155 | AL15: 0.3562784106 | AM15: 0.3459013695 | AN15: 0.3358265723 | AO15: 0.3260452159 | AP15: 0.3165487533 | AQ15: 0.3073288867 | AR15: 0.2983775599 | AS15: 0.2896869513 | AT15: 0.2812494673 | AU15: 0.2730577353 | AV15: 0.2651045973 | AW15: 0.2573831042 | AX15: 0.2498865089 | AY15: 0.2426082611 | AZ15: 0.2355420011 | BA15: 0.2286815544 | BB15: 0.2220209266 | BC15: 0.2155542977 | BD15: 0.2092760172 | BE15: 0.2031805992 | BF15: 0.1972627177 | BG15: 0.1915172016 | BH15: 0.1859390307 | BI15: 0.1805233308 | BJ15: 0.1752653697 | BK15: 0.1701605531 | BL15: 0.1652044205 | BM15: 0.1603926413 | BN15: 0.1557210109 | BO15: 0.1511854475 | BP15: 0.1467819879 | BQ15: 0.1425067843 | BR15: 0.1383561013 | BS15: 0.1343263119 | BT15: 0.1304138951 | BU15: =BT15/(1+BU8) -> 0.1266154321 | BV15: 0.122927604 | BW15: 0.1193471884 | BX15: 0.1158710567 | BY15: 0.1124961715 | BZ15: 0.109219584 | CA15: 0.1060384311 | CB15: 0.1029499331 | CC15: 0.09995139133 | CD15: 0.09704018575 | CE15: 0.09421377258 | CF15: 0.09191587568 | CG15: 0.08967402506 | CH15: 0.08748685372 | CI15: 0.08535302801 | CJ15: 0.08327124684 | CK15: 0.08124024082 | CL15: 0.07925877153 | CM15: 0.07732563077 | CN15: 0.07543963977 | CO15: 0.07359964856 | CP15: 0.07180453518 | CQ15: 0.07005320505 | CR15: 0.06834459029 | CS15: 0.06667764907 | CT15: 0.06505136494 | CU15: 0.06346474629 | CV15: 0.06191682565 | CW15: 0.06040665917 | CX15: 0.05893332602 | CY15: 0.05749592782 | CZ15: 0.05609358812 | DA15: 0.05472545182 | DB15: 0.0533906847 | DC15: 0.05208847288 | DD15: 0.05081802232 | DE15: 0.04957855837 | DF15: 0.04836932523 | DG15: 0.04718958559 | DH15: 0.04603862009 | DI15: 0.04491572692 | DJ15: 0.04382022138 | DK15: 0.0427514355 | DL15: 0.04170871756 | DM15: 0.04069143176 | DN15: 0.03969895782 | DO15: 0.03873069055 | DP15: 0.03778603957 | DQ15: 0.03686442884 | DR15: 0.03596529643 | DS15: 0.03508809408 | DT15: 0.03423228691 | DU15: 0.03339735308 | DV15: 0.03258278349 | DW15: 0.03178808146 | DX15: 0.0310127624 | DY15: 0.03025635356 | DZ15: 0.02951839372 | EA15: 0.02879843289 | EB15: 0.02809603209 | EC15: 0.02741076302 | ED15: 0.02687329707 | EE15: 0.02634636968 | EF15: 0.0258297742 | EG15: =EF15/(1+EG8) -> 0.02532330804 | EH15: 0.02482677258 | EI15: 0.02433997312 | EJ15: 0.02386271875 | EK15: 0.0233948223 | EL15: 0.0229361003 | EM15: 0.02248637284 | EN15: 0.02204546357 | EO15: 0.02161319958 | EP15: 0.02118941135 | EQ15: 0.02077393269 | ER15: 0.02036660068 | ES15: 0.01996725557 | ET15: 0.01957574075 | EU15: 0.0191919027 | EV15: 0.01881559088 | EW15: 0.01844665773 | EX15: 0.01808495856 | EY15: 0.01773035153 | EZ15: 0.01738269758 | FA15: 0.01704186037 | FB15: 0.01670770624 | FC15: 0.01638010416 | FD15: 0.01605892565 | FE15: 0.01574404475 | FF15: 0.01543533799 | FG15: 0.01513268431 | FH15: 0.01483596501 | FI15: 0.01454506373 | FJ15: 0.0142598664 | FK15: 0.01398026118 | FL15: 0.01370613841 | FM15: 0.0134373906 | FN15: 0.01317391235 | FO15: 0.01291560035 | FP15: 0.01266235328 | FQ15: 0.01241407184 | FR15: 0.01217065867 | FS15: 0.0119320183 | FT15: 0.01169805716 | FU15: 0.01146868349 | FV15: 0.01124380734 | FW15: 0.01102334053 | FX15: 0.0108071966 | FY15: 0.01059529079 | FZ15: 0.01038753999 | GA15: 0.01018386273 | GB15: 0.009984179148 | GC15: 0.009788410929 | GD15: 0.009596481303 | GE15: 0.009408315003 | GF15: 0.009223838238 | GG15: 0.009042978665 | GH15: 0.008865665358 | GI15: 0.008691828782 | GJ15: 0.008521400767 | GK15: 0.008354314477 | GL15: 0.00819050439 | GM15: 0.008029906264 | GN15: 0.007872457122 | GO15: 0.007718095218 | GP15: 0.007566760017 | GQ15: 0.007418392174 | GR15: 0.007272933504 | GS15: =GR15/(1+GS8) -> 0.007130326964 | GT15: 0.006990516632 | GU15: 0.006853447678 | GV15: 0.006719066351 | GW15: 0.006587319952 | GX15: 0.006458156816 | GY15: 0.00633152629 | GZ15: 0.006207378716 | HA15: 0.006115644055 | HB15: 0.006025265079 | HC15: 0.005936221752 | HD15: 0.005848494337 | HE15: 0.005762063387 | HF15: 0.00567690974 | HG15: 0.005593014523 | HH15: 0.005510359136 | HI15: 0.005428925257 | HJ15: 0.005348694834 | HK15: 0.005269650083 | HL15: 0.005191773481 | HM15: 0.005115047764 | HN15: 0.005039455925 | HO15: 0.004964981207 | HP15: 0.004891607101 | HQ15: 0.004819317341 | HR15: 0.004748095902 | HS15: 0.004677926997 | HT15: 0.004608795071 | HU15: 0.004540684799 | HV15: 0.004473581083 | HW15: 0.004407469047 | HX15: 0.004342334037 | HY15: 0.004278161612 | HZ15: 0.004214937549 | IA15: 0.004152647832 | IB15: 0.004091278652 | IC15: 0.004030816406 | ID15: 0.003971247691 | IE15: 0.003912559301 | IF15: 0.003854738228 | IG15: 0.003797771653 | IH15: 0.003741646949 | II15: 0.003686351673 | IJ15: 0.00363187357 | IK15: 0.003578200561 | IL15: 0.00352532075 | IM15: 0.003473222414 | IN15: 0.003421894004 | IO15: 0.003371324142 | IP15: 0.003321501618 | IQ15: 0.003272415387 | IR15: 0.003224054568 | IS15: 0.003176408442 | IT15: 0.003129466445 | IU15: 0.003083218172 | IV15: 0.003037653372 | IW15: 0.002992761943 | IX15: 0.002948533934 | IY15: =IX15/(1+IY8) -> 0.002904959541 | IZ15: 0.002862029104 | JA15: 0.002819733107 | JB15: 0.002778062175 | JC15: 0.002737007069 | JD15: 0.002696558688 | JE15: 0.002656708067 | JF15: 0.002617446372 | JG15: 0.002578764898 | JH15: 0.002540655072 | JI15: 0.002503108446 | JJ15: 0.002466116695 | JK15: 0.002429671621 | JL15: 0.002393765144 | JM15: 0.002358389304 | JN15: 0.00232353626 | JO15: 0.002289198286 | JP15: 0.002255367769 | JQ15: 0.002222037211 | JR15: 0.002189199223 | JS15: 0.002156846525 | JT15: 0.002124971946 | JU15: 0.00209356842 | JV15: 0.002062628985 | JW15: 0.002032146783 | JX15: 0.002002115057 | JY15: 0.00197252715 | JZ15: 0.001943376502 | KA15: 0.001914656653
C18: Uprating indices
H20: Year
H21: ='Inputs (values)'!$H$8 -> 2021 | I21: =H21+1 -> 2022 | J21: =I21+1 -> 2023 | K21: 2024 | L21: 2025 | M21: 2026 | N21: 2027 | O21: 2028 | P21: 2029 | Q21: 2030 | R21: 2031 | S21: 2032 | T21: 2033 | U21: 2034 | V21: 2035 | W21: 2036 | X21: 2037 | Y21: 2038 | Z21: 2039 | AA21: 2040 | AB21: 2041 | AC21: 2042 | AD21: 2043 | AE21: 2044 | AF21: 2045 | AG21: 2046 | AH21: 2047 | AI21: 2048 | AJ21: 2049 | AK21: 2050 | AL21: 2051 | AM21: 2052 | AN21: 2053 | AO21: 2054 | AP21: 2055 | AQ21: 2056 | AR21: 2057 | AS21: 2058 | AT21: 2059 | AU21: 2060 | AV21: 2061 | AW21: 2062 | AX21: 2063 | AY21: 2064 | AZ21: 2065 | BA21: 2066 | BB21: 2067 | BC21: 2068 | BD21: 2069 | BE21: 2070 | BF21: 2071 | BG21: 2072 | BH21: 2073 | BI21: 2074 | BJ21: 2075 | BK21: 2076 | BL21: 2077 | BM21: 2078 | BN21: 2079 | BO21: 2080 | BP21: 2081 | BQ21: 2082 | BR21: 2083 | BS21: 2084 | BT21: 2085 | BU21: 2086 | BV21: =BU21+1 -> 2087 | BW21: 2088 | BX21: 2089 | BY21: 2090 | BZ21: 2091 | CA21: 2092 | CB21: 2093 | CC21: 2094 | CD21: 2095 | CE21: 2096 | CF21: 2097 | CG21: 2098 | CH21: 2099 | CI21: 2100 | CJ21: 2101 | CK21: 2102 | CL21: 2103 | CM21: 2104 | CN21: 2105 | CO21: 2106 | CP21: 2107 | CQ21: 2108 | CR21: 2109 | CS21: 2110 | CT21: 2111 | CU21: 2112 | CV21: 2113 | CW21: 2114 | CX21: 2115 | CY21: 2116 | CZ21: 2117 | DA21: 2118 | DB21: 2119 | DC21: 2120 | DD21: 2121 | DE21: 2122 | DF21: 2123 | DG21: 2124 | DH21: 2125 | DI21: 2126 | DJ21: 2127 | DK21: 2128 | DL21: 2129 | DM21: 2130 | DN21: 2131 | DO21: 2132 | DP21: 2133 | DQ21: 2134 | DR21: 2135 | DS21: 2136 | DT21: 2137 | DU21: 2138 | DV21: 2139 | DW21: 2140 | DX21: 2141 | DY21: 2142 | DZ21: 2143 | EA21: 2144 | EB21: 2145 | EC21: 2146 | ED21: 2147 | EE21: 2148 | EF21: 2149 | EG21: 2150 | EH21: =EG21+1 -> 2151 | EI21: 2152 | EJ21: 2153 | EK21: 2154 | EL21: 2155 | EM21: 2156 | EN21: 2157 | EO21: 2158 | EP21: 2159 | EQ21: 2160 | ER21: 2161 | ES21: 2162 | ET21: 2163 | EU21: 2164 | EV21: 2165 | EW21: 2166 | EX21: 2167 | EY21: 2168 | EZ21: 2169 | FA21: 2170 | FB21: 2171 | FC21: 2172 | FD21: 2173 | FE21: 2174 | FF21: 2175 | FG21: 2176 | FH21: 2177 | FI21: 2178 | FJ21: 2179 | FK21: 2180 | FL21: 2181 | FM21: 2182 | FN21: 2183 | FO21: 2184 | FP21: 2185 | FQ21: 2186 | FR21: 2187 | FS21: 2188 | FT21: 2189 | FU21: 2190 | FV21: 2191 | FW21: 2192 | FX21: 2193 | FY21: 2194 | FZ21: 2195 | GA21: 2196 | GB21: 2197 | GC21: 2198 | GD21: 2199 | GE21: 2200 | GF21: 2201 | GG21: 2202 | GH21: 2203 | GI21: 2204 | GJ21: 2205 | GK21: 2206 | GL21: 2207 | GM21: 2208 | GN21: 2209 | GO21: 2210 | GP21: 2211 | GQ21: 2212 | GR21: 2213 | GS21: 2214 | GT21: =GS21+1 -> 2215 | GU21: 2216 | GV21: 2217 | GW21: 2218 | GX21: 2219 | GY21: 2220 | GZ21: 2221 | HA21: 2222 | HB21: 2223 | HC21: 2224 | HD21: 2225 | HE21: 2226 | HF21: 2227 | HG21: 2228 | HH21: 2229 | HI21: 2230 | HJ21: 2231 | HK21: 2232 | HL21: 2233 | HM21: 2234 | HN21: 2235 | HO21: 2236 | HP21: 2237 | HQ21: 2238 | HR21: 2239 | HS21: 2240 | HT21: 2241 | HU21: 2242 | HV21: 2243 | HW21: 2244 | HX21: 2245 | HY21: 2246 | HZ21: 2247 | IA21: 2248 | IB21: 2249 | IC21: 2250 | ID21: 2251 | IE21: 2252 | IF21: 2253 | IG21: 2254 | IH21: 2255 | II21: 2256 | IJ21: 2257 | IK21: 2258 | IL21: 2259 | IM21: 2260 | IN21: 2261 | IO21: 2262 | IP21: 2263 | IQ21: 2264 | IR21: 2265 | IS21: 2266 | IT21: 2267 | IU21: 2268 | IV21: 2269 | IW21: 2270 | IX21: 2271 | IY21: 2272 | IZ21: 2273 | JA21: 2274 | JB21: 2275 | JC21: 2276 | JD21: 2277 | JE21: 2278 | JF21: =JE21+1 -> 2279 | JG21: 2280 | JH21: 2281 | JI21: 2282 | JJ21: 2283 | JK21: 2284 | JL21: 2285 | JM21: 2286 | JN21: 2287 | JO21: 2288 | JP21: 2289 | JQ21: 2290 | JR21: 2291 | JS21: 2292 | JT21: 2293 | JU21: 2294 | JV21: 2295 | JW21: 2296 | JX21: 2297 | JY21: 2298 | JZ21: 2299 | KA21: 2300
C22: Central series | H22: =(INDEX('Inputs (values)'!$H$84:$KV$86,1,MATCH('Calculations (values)'!H$21,'Inputs (values)'!$H$83:'Inputs (values)'!$KV$83,0))/INDEX('Inputs (values)'!$H$84:$KV$86,1,MATCH('Inputs (values)'!$H$10,'Inputs (values)'!$H$83:$KV$83,0)))*(INDEX('Inputs (values)'!$H$62:$KV$62,1,MATCH('Inputs (values)'!$H$12,'Inputs (values)'!$H$83:$KV$83,0))/INDEX('Inputs (values)'!$H$62:$KV$62,1,MATCH('Inputs (values)'!$H$11,'Inputs (values)'!$H$83:$KV$83,0))) -> 1.158195491 | I22: =(INDEX('Inputs (values)'!$H$84:$KV$86,1,MATCH('Calculations (values)'!I$21,'Inputs (values)'!$H$83:'Inputs (values)'!$KV$83,0))/INDEX('Inputs (values)'!$H$84:$KV$86,1,MATCH('Inputs (values)'!$H$10,'Inputs (values)'!$H$83:$KV$83,0)))*(INDEX('Inputs (values)'!$H$62:$KV$62,1,MATCH('Inputs (values)'!$H$12,'Inputs (values)'!$H$83:$KV$83,0))/INDEX('Inputs (values)'!$H$62:$KV$62,1,MATCH('Inputs (values)'!$H$11,'Inputs (values)'!$H$83:$KV$83,0))) -> 1.208521735 | J22: =(INDEX('Inputs (values)'!$H$84:$KV$86,1,MATCH('Calculations (values)'!J$21,'Inputs (values)'!$H$83:'Inputs (values)'!$KV$83,0))/INDEX('Inputs (values)'!$H$84:$KV$86,1,MATCH('Inputs (values)'!$H$10,'Inputs (values)'!$H$83:$KV$83,0)))*(INDEX('Inputs (values)'!$H$62:$KV$62,1,MATCH('Inputs (values)'!$H$12,'Inputs (values)'!$H$83:$KV$83,0))/INDEX('Inputs (values)'!$H$62:$KV$62,1,MATCH('Inputs (values)'!$H$11,'Inputs (values)'!$H$83:$KV$83,0))) -> 1.210270575 | K22: =(INDEX('Inputs (values)'!$H$84:$KV$86,1,MATCH('Calculations (values)'!K$21,'Inputs (values)'!$H$83:'Inputs (values)'!$KV$83,0))/INDEX('Inputs (values)'!$H$84:$KV$86,1,MATCH('Inputs (values)'!$H$10,'Inputs (values)'!$H$83:$KV$83,0)))*(INDEX('Inputs (values)'!$H$62:$KV$62,1,MATCH('Inputs (values)'!$H$12,'Inputs (values)'!$H$83:$KV$83,0))/INDEX('Inputs (values)'!$H$62:$KV$62,1,MATCH('Inputs (values)'!$H$11,'Inputs (values)'!$H$83:$KV$83,0))) -> 1.219369004 | L22: =(INDEX('Inputs (values)'!$H$84:$KV$86,1,MATCH('Calculations (values)'!L$21,'Inputs (values)'!$H$83:'Inputs (values)'!$KV$83,0))/INDEX('Inputs (values)'!$H$84:$KV$86,1,MATCH('Inputs (values)'!$H$10,'Inputs (values)'!$H$83:$KV$83,0)))*(INDEX('Inputs (values)'!$H$62:$KV$62,1,MATCH('Inputs (values)'!$H$12,'Inputs (values)'!$H$83:$KV$83,0))/INDEX('Inputs (values)'!$H$62:$KV$62,1,MATCH('Inputs (values)'!$H$11,'Inputs (values)'!$H$83:$KV$83,0))) -> 1.241981024 | M22: =(INDEX('Inputs (values)'!$H$84:$KV$86,1,MATCH('Calculations (values)'!M$21,'Inputs (values)'!$H$83:'Inputs (values)'!$KV$83,0))/INDEX('Inputs (values)'!$H$84:$KV$86,1,MATCH('Inputs (values)'!$H$10,'Inputs (values)'!$H$83:$KV$83,0)))*(INDEX('Inputs (values)'!$H$62:$KV$62,1,MATCH('Inputs (values)'!$H$12,'Inputs (values)'!$H$83:$KV$83,0))/INDEX('Inputs (values)'!$H$62:$KV$62,1,MATCH('Inputs (values)'!$H$11,'Inputs (values)'!$H$83:$KV$83,0))) -> 1.266983519 | N22: =(INDEX('Inputs (values)'!$H$84:$KV$86,1,MATCH('Calculations (values)'!N$21,'Inputs (values)'!$H$83:'Inputs (values)'!$KV$83,0))/INDEX('Inputs (values)'!$H$84:$KV$86,1,MATCH('Inputs (values)'!$H$10,'Inputs (values)'!$H$83:$KV$83,0)))*(INDEX('Inputs (values)'!$H$62:$KV$62,1,MATCH('Inputs (values)'!$H$12,'Inputs (values)'!$H$83:$KV$83,0))/INDEX('Inputs (values)'!$H$62:$KV$62,1,MATCH('Inputs (values)'!$H$11,'Inputs (values)'!$H$83:$KV$83,0))) -> 1.290135438 | O22: =(INDEX('Inputs (values)'!$H$84:$KV$86,1,MATCH('Calculations (values)'!O$21,'Inputs (values)'!$H$83:'Inputs (values)'!$KV$83,0))/INDEX('Inputs (values)'!$H$84:$KV$86,1,MATCH('Inputs (values)'!$H$10,'Inputs (values)'!$H$83:$KV$83,0)))*(INDEX('Inputs (values)'!$H$62:$KV$62,1,MATCH('Inputs (values)'!$H$12,'Inputs (values)'!$H$83:$KV$83,0))/INDEX('Inputs (values)'!$H$62:$KV$62,1,MATCH('Inputs (values)'!$H$11,'Inputs (values)'!$H$83:$KV$83,0))) -> 1.312056582 | P22: =(INDEX('Inputs (values)'!$H$84:$KV$86,1,MATCH('Calculations (values)'!P$21,'Inputs (values)'!$H$83:'Inputs (values)'!$KV$83,0))/INDEX('Inputs (values)'!$H$84:$KV$86,1,MATCH('Inputs (values)'!$H$10,'Inputs (values)'!$H$83:$KV$83,0)))*(INDEX('Inputs (values)'!$H$62:$KV$62,1,MATCH('Inputs (values)'!$H$12,'Inputs (values)'!$H$83:$KV$83,0))/INDEX('Inputs (values)'!$H$62:$KV$62,1,MATCH('Inputs (values)'!$H$11,'Inputs (values)'!$H$83:$KV$83,0))) -> 1.336219091 | Q22: =(INDEX('Inputs (values)'!$H$84:$KV$86,1,MATCH('Calculations (values)'!Q$21,'Inputs (values)'!$H$83:'Inputs (values)'!$KV$83,0))/INDEX('Inputs (values)'!$H$84:$KV$86,1,MATCH('Inputs (values)'!$H$10,'Inputs (values)'!$H$83:$KV$83,0)))*(INDEX('Inputs (values)'!$H$62:$KV$62,1,MATCH('Inputs (values)'!$H$12,'Inputs (values)'!$H$83:$KV$83,0))/INDEX('Inputs (values)'!$H$62:$KV$62,1,MATCH('Inputs (values)'!$H$11,'Inputs (values)'!$H$83:$KV$83,0))) -> 1.361459487 | R22: =(INDEX('Inputs (values)'!$H$84:$KV$86,1,MATCH('Calculations (values)'!R$21,'Inputs (values)'!$H$83:'Inputs (values)'!$KV$83,0))/INDEX('Inputs (values)'!$H$84:$KV$86,1,MATCH('Inputs (values)'!$H$10,'Inputs (values)'!$H$83:$KV$83,0)))*(INDEX('Inputs (values)'!$H$62:$KV$62,1,MATCH('Inputs (values)'!$H$12,'Inputs (values)'!$H$83:$KV$83,0))/INDEX('Inputs (values)'!$H$62:$KV$62,1,MATCH('Inputs (values)'!$H$11,'Inputs (values)'!$H$83:$KV$83,0))) -> 1.386418259 | S22: =(INDEX('Inputs (values)'!$H$84:$KV$86,1,MATCH('Calculations (values)'!S$21,'Inputs (values)'!$H$83:'Inputs (values)'!$KV$83,0))/INDEX('Inputs (values)'!$H$84:$KV$86,1,MATCH('Inputs (values)'!$H$10,'Inputs (values)'!$H$83:$KV$83,0)))*(INDEX('Inputs (values)'!$H$62:$KV$62,1,MATCH('Inputs (values)'!$H$12,'Inputs (values)'!$H$83:$KV$83,0))/INDEX('Inputs (values)'!$H$62:$KV$62,1,MATCH('Inputs (values)'!$H$11,'Inputs (values)'!$H$83:$KV$83,0))) -> 1.411411326 | T22: =(INDEX('Inputs (values)'!$H$84:$KV$86,1,MATCH('Calculations (values)'!T$21,'Inputs (values)'!$H$83:'Inputs (values)'!$KV$83,0))/INDEX('Inputs (values)'!$H$84:$KV$86,1,MATCH('Inputs (values)'!$H$10,'Inputs (values)'!$H$83:$KV$83,0)))*(INDEX('Inputs (values)'!$H$62:$KV$62,1,MATCH('Inputs (values)'!$H$12,'Inputs (values)'!$H$83:$KV$83,0))/INDEX('Inputs (values)'!$H$62:$KV$62,1,MATCH('Inputs (values)'!$H$11,'Inputs (values)'!$H$83:$KV$83,0))) -> 1.436549538 | U22: =(INDEX('Inputs (values)'!$H$84:$KV$86,1,MATCH('Calculations (values)'!U$21,'Inputs (values)'!$H$83:'Inputs (values)'!$KV$83,0))/INDEX('Inputs (values)'!$H$84:$KV$86,1,MATCH('Inputs (values)'!$H$10,'Inputs (values)'!$H$83:$KV$83,0)))*(INDEX('Inputs (values)'!$H$62:$KV$62,1,MATCH('Inputs (values)'!$H$12,'Inputs (values)'!$H$83:$KV$83,0))/INDEX('Inputs (values)'!$H$62:$KV$62,1,MATCH('Inputs (values)'!$H$11,'Inputs (values)'!$H$83:$KV$83,0))) -> 1.461747757 | V22: =(INDEX('Inputs (values)'!$H$84:$KV$86,1,MATCH('Calculations (values)'!V$21,'Inputs (values)'!$H$83:'Inputs (values)'!$KV$83,0))/INDEX('Inputs (values)'!$H$84:$KV$86,1,MATCH('Inputs (values)'!$H$10,'Inputs (values)'!$H$83:$KV$83,0)))*(INDEX('Inputs (values)'!$H$62:$KV$62,1,MATCH('Inputs (values)'!$H$12,'Inputs (values)'!$H$83:$KV$83,0))/INDEX('Inputs (values)'!$H$62:$KV$62,1,MATCH('Inputs (values)'!$H$11,'Inputs (values)'!$H$83:$KV$83,0))) -> 1.48714964 | W22: =(INDEX('Inputs (values)'!$H$84:$KV$86,1,MATCH('Calculations (values)'!W$21,'Inputs (values)'!$H$83:'Inputs (values)'!$KV$83,0))/INDEX('Inputs (values)'!$H$84:$KV$86,1,MATCH('Inputs (values)'!$H$10,'Inputs (values)'!$H$83:$KV$83,0)))*(INDEX('Inputs (values)'!$H$62:$KV$62,1,MATCH('Inputs (values)'!$H$12,'Inputs (values)'!$H$83:$KV$83,0))/INDEX('Inputs (values)'!$H$62:$KV$62,1,MATCH('Inputs (values)'!$H$11,'Inputs (values)'!$H$83:$KV$83,0))) -> 1.514922779 | X22: =(INDEX('Inputs (values)'!$H$84:$KV$86,1,MATCH('Calculations (values)'!X$21,'Inputs (values)'!$H$83:'Inputs (values)'!$KV$83,0))/INDEX('Inputs (values)'!$H$84:$KV$86,1,MATCH('Inputs (values)'!$H$10,'Inputs (values)'!$H$83:$KV$83,0)))*(INDEX('Inputs (values)'!$H$62:$KV$62,1,MATCH('Inputs (values)'!$H$12,'Inputs (values)'!$H$83:$KV$83,0))/INDEX('Inputs (values)'!$H$62:$KV$62,1,MATCH('Inputs (values)'!$H$11,'Inputs (values)'!$H$83:$KV$83,0))) -> 1.542799577 | Y22: =(INDEX('Inputs (values)'!$H$84:$KV$86,1,MATCH('Calculations (values)'!Y$21,'Inputs (values)'!$H$83:'Inputs (values)'!$KV$83,0))/INDEX('Inputs (values)'!$H$84:$KV$86,1,MATCH('Inputs (values)'!$H$10,'Inputs (values)'!$H$83:$KV$83,0)))*(INDEX('Inputs (values)'!$H$62:$KV$62,1,MATCH('Inputs (values)'!$H$12,'Inputs (values)'!$H$83:$KV$83,0))/INDEX('Inputs (values)'!$H$62:$KV$62,1,MATCH('Inputs (values)'!$H$11,'Inputs (values)'!$H$83:$KV$83,0))) -> 1.570575832 | Z22: =(INDEX('Inputs (values)'!$H$84:$KV$86,1,MATCH('Calculations (values)'!Z$21,'Inputs (values)'!$H$83:'Inputs (values)'!$KV$83,0))/INDEX('Inputs (values)'!$H$84:$KV$86,1,MATCH('Inputs (values)'!$H$10,'Inputs (values)'!$H$83:$KV$83,0)))*(INDEX('Inputs (values)'!$H$62:$KV$62,1,MATCH('Inputs (values)'!$H$12,'Inputs (values)'!$H$83:$KV$83,0))/INDEX('Inputs (values)'!$H$62:$KV$62,1,MATCH('Inputs (values)'!$H$11,'Inputs (values)'!$H$83:$KV$83,0))) -> 1.598349922 | AA22: =(INDEX('Inputs (values)'!$H$84:$KV$86,1,MATCH('Calculations (values)'!AA$21,'Inputs (values)'!$H$83:'Inputs (values)'!$KV$83,0))/INDEX('Inputs (values)'!$H$84:$KV$86,1,MATCH('Inputs (values)'!$H$10,'Inputs (values)'!$H$83:$KV$83,0)))*(INDEX('Inputs (values)'!$H$62:$KV$62,1,MATCH('Inputs (values)'!$H$12,'Inputs (values)'!$H$83:$KV$83,0))/INDEX('Inputs (values)'!$H$62:$KV$62,1,MATCH('Inputs (values)'!$H$11,'Inputs (values)'!$H$83:$KV$83,0))) -> 1.62598485 | AB22: =(INDEX('Inputs (values)'!$H$84:$KV$86,1,MATCH('Calculations (values)'!AB$21,'Inputs (values)'!$H$83:'Inputs (values)'!$KV$83,0))/INDEX('Inputs (values)'!$H$84:$KV$86,1,MATCH('Inputs (values)'!$H$10,'Inputs (values)'!$H$83:$KV$83,0)))*(INDEX('Inputs (values)'!$H$62:$KV$62,1,MATCH('Inputs (values)'!$H$12,'Inputs (values)'!$H$83:$KV$83,0))/INDEX('Inputs (values)'!$H$62:$KV$62,1,MATCH('Inputs (values)'!$H$11,'Inputs (values)'!$H$83:$KV$83,0))) -> 1.653612117 | AC22: =(INDEX('Inputs (values)'!$H$84:$KV$86,1,MATCH('Calculations (values)'!AC$21,'Inputs (values)'!$H$83:'Inputs (values)'!$KV$83,0))/INDEX('Inputs (values)'!$H$84:$KV$86,1,MATCH('Inputs (values)'!$H$10,'Inputs (values)'!$H$83:$KV$83,0)))*(INDEX('Inputs (values)'!$H$62:$KV$62,1,MATCH('Inputs (values)'!$H$12,'Inputs (values)'!$H$83:$KV$83,0))/INDEX('Inputs (values)'!$H$62:$KV$62,1,MATCH('Inputs (values)'!$H$11,'Inputs (values)'!$H$83:$KV$83,0))) -> 1.681111009 | AD22: =(INDEX('Inputs (values)'!$H$84:$KV$86,1,MATCH('Calculations (values)'!AD$21,'Inputs (values)'!$H$83:'Inputs (values)'!$KV$83,0))/INDEX('Inputs (values)'!$H$84:$KV$86,1,MATCH('Inputs (values)'!$H$10,'Inputs (values)'!$H$83:$KV$83,0)))*(INDEX('Inputs (values)'!$H$62:$KV$62,1,MATCH('Inputs (values)'!$H$12,'Inputs (values)'!$H$83:$KV$83,0))/INDEX('Inputs (values)'!$H$62:$KV$62,1,MATCH('Inputs (values)'!$H$11,'Inputs (values)'!$H$83:$KV$83,0))) -> 1.708451091 | AE22: =(INDEX('Inputs (values)'!$H$84:$KV$86,1,MATCH('Calculations (values)'!AE$21,'Inputs (values)'!$H$83:'Inputs (values)'!$KV$83,0))/INDEX('Inputs (values)'!$H$84:$KV$86,1,MATCH('Inputs (values)'!$H$10,'Inputs (values)'!$H$83:$KV$83,0)))*(INDEX('Inputs (values)'!$H$62:$KV$62,1,MATCH('Inputs (values)'!$H$12,'Inputs (values)'!$H$83:$KV$83,0))/INDEX('Inputs (values)'!$H$62:$KV$62,1,MATCH('Inputs (values)'!$H$11,'Inputs (values)'!$H$83:$KV$83,0))) -> 1.735700307 | AF22: =(INDEX('Inputs (values)'!$H$84:$KV$86,1,MATCH('Calculations (values)'!AF$21,'Inputs (values)'!$H$83:'Inputs (values)'!$KV$83,0))/INDEX('Inputs (values)'!$H$84:$KV$86,1,MATCH('Inputs (values)'!$H$10,'Inputs (values)'!$H$83:$KV$83,0)))*(INDEX('Inputs (values)'!$H$62:$KV$62,1,MATCH('Inputs (values)'!$H$12,'Inputs (values)'!$H$83:$KV$83,0))/INDEX('Inputs (values)'!$H$62:$KV$62,1,MATCH('Inputs (values)'!$H$11,'Inputs (values)'!$H$83:$KV$83,0))) -> 1.763029995 | AG22: =(INDEX('Inputs (values)'!$H$84:$KV$86,1,MATCH('Calculations (values)'!AG$21,'Inputs (values)'!$H$83:'Inputs (values)'!$KV$83,0))/INDEX('Inputs (values)'!$H$84:$KV$86,1,MATCH('Inputs (values)'!$H$10,'Inputs (values)'!$H$83:$KV$83,0)))*(INDEX('Inputs (values)'!$H$62:$KV$62,1,MATCH('Inputs (values)'!$H$12,'Inputs (values)'!$H$83:$KV$83,0))/INDEX('Inputs (values)'!$H$62:$KV$62,1,MATCH('Inputs (values)'!$H$11,'Inputs (values)'!$H$83:$KV$83,0))) -> 1.790590081 | AH22: =(INDEX('Inputs (values)'!$H$84:$KV$86,1,MATCH('Calculations (values)'!AH$21,'Inputs (values)'!$H$83:'Inputs (values)'!$KV$83,0))/INDEX('Inputs (values)'!$H$84:$KV$86,1,MATCH('Inputs (values)'!$H$10,'Inputs (values)'!$H$83:$KV$83,0)))*(INDEX('Inputs (values)'!$H$62:$KV$62,1,MATCH('Inputs (values)'!$H$12,'Inputs (values)'!$H$83:$KV$83,0))/INDEX('Inputs (values)'!$H$62:$KV$62,1,MATCH('Inputs (values)'!$H$11,'Inputs (values)'!$H$83:$KV$83,0))) -> 1.818106561 | AI22: =(INDEX('Inputs (values)'!$H$84:$KV$86,1,MATCH('Calculations (values)'!AI$21,'Inputs (values)'!$H$83:'Inputs (values)'!$KV$83,0))/INDEX('Inputs (values)'!$H$84:$KV$86,1,MATCH('Inputs (values)'!$H$10,'Inputs (values)'!$H$83:$KV$83,0)))*(INDEX('Inputs (values)'!$H$62:$KV$62,1,MATCH('Inputs (values)'!$H$12,'Inputs (values)'!$H$83:$KV$83,0))/INDEX('Inputs (values)'!$H$62:$KV$62,1,MATCH('Inputs (values)'!$H$11,'Inputs (values)'!$H$83:$KV$83,0))) -> 1.845564314 | AJ22: =(INDEX('Inputs (values)'!$H$84:$KV$86,1,MATCH('Calculations (values)'!AJ$21,'Inputs (values)'!$H$83:'Inputs (values)'!$KV$83,0))/INDEX('Inputs (values)'!$H$84:$KV$86,1,MATCH('Inputs (values)'!$H$10,'Inputs (values)'!$H$83:$KV$83,0)))*(INDEX('Inputs (values)'!$H$62:$KV$62,1,MATCH('Inputs (values)'!$H$12,'Inputs (values)'!$H$83:$KV$83,0))/INDEX('Inputs (values)'!$H$62:$KV$62,1,MATCH('Inputs (values)'!$H$11,'Inputs (values)'!$H$83:$KV$83,0))) -> 1.872897222 | AK22: =(INDEX('Inputs (values)'!$H$84:$KV$86,1,MATCH('Calculations (values)'!AK$21,'Inputs (values)'!$H$83:'Inputs (values)'!$KV$83,0))/INDEX('Inputs (values)'!$H$84:$KV$86,1,MATCH('Inputs (values)'!$H$10,'Inputs (values)'!$H$83:$KV$83,0)))*(INDEX('Inputs (values)'!$H$62:$KV$62,1,MATCH('Inputs (values)'!$H$12,'Inputs (values)'!$H$83:$KV$83,0))/INDEX('Inputs (values)'!$H$62:$KV$62,1,MATCH('Inputs (values)'!$H$11,'Inputs (values)'!$H$83:$KV$83,0))) -> 1.900335019 | AL22: =(INDEX('Inputs (values)'!$H$84:$KV$86,1,MATCH('Calculations (values)'!AL$21,'Inputs (values)'!$H$83:'Inputs (values)'!$KV$83,0))/INDEX('Inputs (values)'!$H$84:$KV$86,1,MATCH('Inputs (values)'!$H$10,'Inputs (values)'!$H$83:$KV$83,0)))*(INDEX('Inputs (values)'!$H$62:$KV$62,1,MATCH('Inputs (values)'!$H$12,'Inputs (values)'!$H$83:$KV$83,0))/INDEX('Inputs (values)'!$H$62:$KV$62,1,MATCH('Inputs (values)'!$H$11,'Inputs (values)'!$H$83:$KV$83,0))) -> 1.927979327 | AM22: =(INDEX('Inputs (values)'!$H$84:$KV$86,1,MATCH('Calculations (values)'!AM$21,'Inputs (values)'!$H$83:'Inputs (values)'!$KV$83,0))/INDEX('Inputs (values)'!$H$84:$KV$86,1,MATCH('Inputs (values)'!$H$10,'Inputs (values)'!$H$83:$KV$83,0)))*(INDEX('Inputs (values)'!$H$62:$KV$62,1,MATCH('Inputs (values)'!$H$12,'Inputs (values)'!$H$83:$KV$83,0))/INDEX('Inputs (values)'!$H$62:$KV$62,1,MATCH('Inputs (values)'!$H$11,'Inputs (values)'!$H$83:$KV$83,0))) -> 1.955839916 | AN22: =(INDEX('Inputs (values)'!$H$84:$KV$86,1,MATCH('Calculations (values)'!AN$21,'Inputs (values)'!$H$83:'Inputs (values)'!$KV$83,0))/INDEX('Inputs (values)'!$H$84:$KV$86,1,MATCH('Inputs (values)'!$H$10,'Inputs (values)'!$H$83:$KV$83,0)))*(INDEX('Inputs (values)'!$H$62:$KV$62,1,MATCH('Inputs (values)'!$H$12,'Inputs (values)'!$H$83:$KV$83,0))/INDEX('Inputs (values)'!$H$62:$KV$62,1,MATCH('Inputs (values)'!$H$11,'Inputs (values)'!$H$83:$KV$83,0))) -> 1.983940369 | AO22: =(INDEX('Inputs (values)'!$H$84:$KV$86,1,MATCH('Calculations (values)'!AO$21,'Inputs (values)'!$H$83:'Inputs (values)'!$KV$83,0))/INDEX('Inputs (values)'!$H$84:$KV$86,1,MATCH('Inputs (values)'!$H$10,'Inputs (values)'!$H$83:$KV$83,0)))*(INDEX('Inputs (values)'!$H$62:$KV$62,1,MATCH('Inputs (values)'!$H$12,'Inputs (values)'!$H$83:$KV$83,0))/INDEX('Inputs (values)'!$H$62:$KV$62,1,MATCH('Inputs (values)'!$H$11,'Inputs (values)'!$H$83:$KV$83,0))) -> 2.01233184 | AP22: =(INDEX('Inputs (values)'!$H$84:$KV$86,1,MATCH('Calculations (values)'!AP$21,'Inputs (values)'!$H$83:'Inputs (values)'!$KV$83,0))/INDEX('Inputs (values)'!$H$84:$KV$86,1,MATCH('Inputs (values)'!$H$10,'Inputs (values)'!$H$83:$KV$83,0)))*(INDEX('Inputs (values)'!$H$62:$KV$62,1,MATCH('Inputs (values)'!$H$12,'Inputs (values)'!$H$83:$KV$83,0))/INDEX('Inputs (values)'!$H$62:$KV$62,1,MATCH('Inputs (values)'!$H$11,'Inputs (values)'!$H$83:$KV$83,0))) -> 2.041232765 | AQ22: =(INDEX('Inputs (values)'!$H$84:$KV$86,1,MATCH('Calculations (values)'!AQ$21,'Inputs (values)'!$H$83:'Inputs (values)'!$KV$83,0))/INDEX('Inputs (values)'!$H$84:$KV$86,1,MATCH('Inputs (values)'!$H$10,'Inputs (values)'!$H$83:$KV$83,0)))*(INDEX('Inputs (values)'!$H$62:$KV$62,1,MATCH('Inputs (values)'!$H$12,'Inputs (values)'!$H$83:$KV$83,0))/INDEX('Inputs (values)'!$H$62:$KV$62,1,MATCH('Inputs (values)'!$H$11,'Inputs (values)'!$H$83:$KV$83,0))) -> 2.070567902 | AR22: =(INDEX('Inputs (values)'!$H$84:$KV$86,1,MATCH('Calculations (values)'!AR$21,'Inputs (values)'!$H$83:'Inputs (values)'!$KV$83,0))/INDEX('Inputs (values)'!$H$84:$KV$86,1,MATCH('Inputs (values)'!$H$10,'Inputs (values)'!$H$83:$KV$83,0)))*(INDEX('Inputs (values)'!$H$62:$KV$62,1,MATCH('Inputs (values)'!$H$12,'Inputs (values)'!$H$83:$KV$83,0))/INDEX('Inputs (values)'!$H$62:$KV$62,1,MATCH('Inputs (values)'!$H$11,'Inputs (values)'!$H$83:$KV$83,0))) -> 2.100375252 | AS22: =(INDEX('Inputs (values)'!$H$84:$KV$86,1,MATCH('Calculations (values)'!AS$21,'Inputs (values)'!$H$83:'Inputs (values)'!$KV$83,0))/INDEX('Inputs (values)'!$H$84:$KV$86,1,MATCH('Inputs (values)'!$H$10,'Inputs (values)'!$H$83:$KV$83,0)))*(INDEX('Inputs (values)'!$H$62:$KV$62,1,MATCH('Inputs (values)'!$H$12,'Inputs (values)'!$H$83:$KV$83,0))/INDEX('Inputs (values)'!$H$62:$KV$62,1,MATCH('Inputs (values)'!$H$11,'Inputs (values)'!$H$83:$KV$83,0))) -> 2.130645484 | AT22: =(INDEX('Inputs (values)'!$H$84:$KV$86,1,MATCH('Calculations (values)'!AT$21,'Inputs (values)'!$H$83:'Inputs (values)'!$KV$83,0))/INDEX('Inputs (values)'!$H$84:$KV$86,1,MATCH('Inputs (values)'!$H$10,'Inputs (values)'!$H$83:$KV$83,0)))*(INDEX('Inputs (values)'!$H$62:$KV$62,1,MATCH('Inputs (values)'!$H$12,'Inputs (values)'!$H$83:$KV$83,0))/INDEX('Inputs (values)'!$H$62:$KV$62,1,MATCH('Inputs (values)'!$H$11,'Inputs (values)'!$H$83:$KV$83,0))) -> 2.161410924 | AU22: =(INDEX('Inputs (values)'!$H$84:$KV$86,1,MATCH('Calculations (values)'!AU$21,'Inputs (values)'!$H$83:'Inputs (values)'!$KV$83,0))/INDEX('Inputs (values)'!$H$84:$KV$86,1,MATCH('Inputs (values)'!$H$10,'Inputs (values)'!$H$83:$KV$83,0)))*(INDEX('Inputs (values)'!$H$62:$KV$62,1,MATCH('Inputs (values)'!$H$12,'Inputs (values)'!$H$83:$KV$83,0))/INDEX('Inputs (values)'!$H$62:$KV$62,1,MATCH('Inputs (values)'!$H$11,'Inputs (values)'!$H$83:$KV$83,0))) -> 2.19271961 | AV22: =(INDEX('Inputs (values)'!$H$84:$KV$86,1,MATCH('Calculations (values)'!AV$21,'Inputs (values)'!$H$83:'Inputs (values)'!$KV$83,0))/INDEX('Inputs (values)'!$H$84:$KV$86,1,MATCH('Inputs (values)'!$H$10,'Inputs (values)'!$H$83:$KV$83,0)))*(INDEX('Inputs (values)'!$H$62:$KV$62,1,MATCH('Inputs (values)'!$H$12,'Inputs (values)'!$H$83:$KV$83,0))/INDEX('Inputs (values)'!$H$62:$KV$62,1,MATCH('Inputs (values)'!$H$11,'Inputs (values)'!$H$83:$KV$83,0))) -> 2.22465872 | AW22: =(INDEX('Inputs (values)'!$H$84:$KV$86,1,MATCH('Calculations (values)'!AW$21,'Inputs (values)'!$H$83:'Inputs (values)'!$KV$83,0))/INDEX('Inputs (values)'!$H$84:$KV$86,1,MATCH('Inputs (values)'!$H$10,'Inputs (values)'!$H$83:$KV$83,0)))*(INDEX('Inputs (values)'!$H$62:$KV$62,1,MATCH('Inputs (values)'!$H$12,'Inputs (values)'!$H$83:$KV$83,0))/INDEX('Inputs (values)'!$H$62:$KV$62,1,MATCH('Inputs (values)'!$H$11,'Inputs (values)'!$H$83:$KV$83,0))) -> 2.257185703 | AX22: =(INDEX('Inputs (values)'!$H$84:$KV$86,1,MATCH('Calculations (values)'!AX$21,'Inputs (values)'!$H$83:'Inputs (values)'!$KV$83,0))/INDEX('Inputs (values)'!$H$84:$KV$86,1,MATCH('Inputs (values)'!$H$10,'Inputs (values)'!$H$83:$KV$83,0)))*(INDEX('Inputs (values)'!$H$62:$KV$62,1,MATCH('Inputs (values)'!$H$12,'Inputs (values)'!$H$83:$KV$83,0))/INDEX('Inputs (values)'!$H$62:$KV$62,1,MATCH('Inputs (values)'!$H$11,'Inputs (values)'!$H$83:$KV$83,0))) -> 2.290426463 | AY22: =(INDEX('Inputs (values)'!$H$84:$KV$86,1,MATCH('Calculations (values)'!AY$21,'Inputs (values)'!$H$83:'Inputs (values)'!$KV$83,0))/INDEX('Inputs (values)'!$H$84:$KV$86,1,MATCH('Inputs (values)'!$H$10,'Inputs (values)'!$H$83:$KV$83,0)))*(INDEX('Inputs (values)'!$H$62:$KV$62,1,MATCH('Inputs (values)'!$H$12,'Inputs (values)'!$H$83:$KV$83,0))/INDEX('Inputs (values)'!$H$62:$KV$62,1,MATCH('Inputs (values)'!$H$11,'Inputs (values)'!$H$83:$KV$83,0))) -> 2.324334799 | AZ22: =(INDEX('Inputs (values)'!$H$84:$KV$86,1,MATCH('Calculations (values)'!AZ$21,'Inputs (values)'!$H$83:'Inputs (values)'!$KV$83,0))/INDEX('Inputs (values)'!$H$84:$KV$86,1,MATCH('Inputs (values)'!$H$10,'Inputs (values)'!$H$83:$KV$83,0)))*(INDEX('Inputs (values)'!$H$62:$KV$62,1,MATCH('Inputs (values)'!$H$12,'Inputs (values)'!$H$83:$KV$83,0))/INDEX('Inputs (values)'!$H$62:$KV$62,1,MATCH('Inputs (values)'!$H$11,'Inputs (values)'!$H$83:$KV$83,0))) -> 2.358960997 | BA22: =(INDEX('Inputs (values)'!$H$84:$KV$86,1,MATCH('Calculations (values)'!BA$21,'Inputs (values)'!$H$83:'Inputs (values)'!$KV$83,0))/INDEX('Inputs (values)'!$H$84:$KV$86,1,MATCH('Inputs (values)'!$H$10,'Inputs (values)'!$H$83:$KV$83,0)))*(INDEX('Inputs (values)'!$H$62:$KV$62,1,MATCH('Inputs (values)'!$H$12,'Inputs (values)'!$H$83:$KV$83,0))/INDEX('Inputs (values)'!$H$62:$KV$62,1,MATCH('Inputs (values)'!$H$11,'Inputs (values)'!$H$83:$KV$83,0))) -> 2.39432429 | BB22: =(INDEX('Inputs (values)'!$H$84:$KV$86,1,MATCH('Calculations (values)'!BB$21,'Inputs (values)'!$H$83:'Inputs (values)'!$KV$83,0))/INDEX('Inputs (values)'!$H$84:$KV$86,1,MATCH('Inputs (values)'!$H$10,'Inputs (values)'!$H$83:$KV$83,0)))*(INDEX('Inputs (values)'!$H$62:$KV$62,1,MATCH('Inputs (values)'!$H$12,'Inputs (values)'!$H$83:$KV$83,0))/INDEX('Inputs (values)'!$H$62:$KV$62,1,MATCH('Inputs (values)'!$H$11,'Inputs (values)'!$H$83:$KV$83,0))) -> 2.430368049 | BC22: =(INDEX('Inputs (values)'!$H$84:$KV$86,1,MATCH('Calculations (values)'!BC$21,'Inputs (values)'!$H$83:'Inputs (values)'!$KV$83,0))/INDEX('Inputs (values)'!$H$84:$KV$86,1,MATCH('Inputs (values)'!$H$10,'Inputs (values)'!$H$83:$KV$83,0)))*(INDEX('Inputs (values)'!$H$62:$KV$62,1,MATCH('Inputs (values)'!$H$12,'Inputs (values)'!$H$83:$KV$83,0))/INDEX('Inputs (values)'!$H$62:$KV$62,1,MATCH('Inputs (values)'!$H$11,'Inputs (values)'!$H$83:$KV$83,0))) -> 2.467149764 | BD22: =(INDEX('Inputs (values)'!$H$84:$KV$86,1,MATCH('Calculations (values)'!BD$21,'Inputs (values)'!$H$83:'Inputs (values)'!$KV$83,0))/INDEX('Inputs (values)'!$H$84:$KV$86,1,MATCH('Inputs (values)'!$H$10,'Inputs (values)'!$H$83:$KV$83,0)))*(INDEX('Inputs (values)'!$H$62:$KV$62,1,MATCH('Inputs (values)'!$H$12,'Inputs (values)'!$H$83:$KV$83,0))/INDEX('Inputs (values)'!$H$62:$KV$62,1,MATCH('Inputs (values)'!$H$11,'Inputs (values)'!$H$83:$KV$83,0))) -> 2.504913669 | BE22: =(INDEX('Inputs (values)'!$H$84:$KV$86,1,MATCH('Calculations (values)'!BE$21,'Inputs (values)'!$H$83:'Inputs (values)'!$KV$83,0))/INDEX('Inputs (values)'!$H$84:$KV$86,1,MATCH('Inputs (values)'!$H$10,'Inputs (values)'!$H$83:$KV$83,0)))*(INDEX('Inputs (values)'!$H$62:$KV$62,1,MATCH('Inputs (values)'!$H$12,'Inputs (values)'!$H$83:$KV$83,0))/INDEX('Inputs (values)'!$H$62:$KV$62,1,MATCH('Inputs (values)'!$H$11,'Inputs (values)'!$H$83:$KV$83,0))) -> 2.544490292 | BF22: =(INDEX('Inputs (values)'!$H$84:$KV$86,1,MATCH('Calculations (values)'!BF$21,'Inputs (values)'!$H$83:'Inputs (values)'!$KV$83,0))/INDEX('Inputs (values)'!$H$84:$KV$86,1,MATCH('Inputs (values)'!$H$10,'Inputs (values)'!$H$83:$KV$83,0)))*(INDEX('Inputs (values)'!$H$62:$KV$62,1,MATCH('Inputs (values)'!$H$12,'Inputs (values)'!$H$83:$KV$83,0))/INDEX('Inputs (values)'!$H$62:$KV$62,1,MATCH('Inputs (values)'!$H$11,'Inputs (values)'!$H$83:$KV$83,0))) -> 2.5864962 | BG22: =(INDEX('Inputs (values)'!$H$84:$KV$86,1,MATCH('Calculations (values)'!BG$21,'Inputs (values)'!$H$83:'Inputs (values)'!$KV$83,0))/INDEX('Inputs (values)'!$H$84:$KV$86,1,MATCH('Inputs (values)'!$H$10,'Inputs (values)'!$H$83:$KV$83,0)))*(INDEX('Inputs (values)'!$H$62:$KV$62,1,MATCH('Inputs (values)'!$H$12,'Inputs (values)'!$H$83:$KV$83,0))/INDEX('Inputs (values)'!$H$62:$KV$62,1,MATCH('Inputs (values)'!$H$11,'Inputs (values)'!$H$83:$KV$83,0))) -> 2.627567906 | BH22: =(INDEX('Inputs (values)'!$H$84:$KV$86,1,MATCH('Calculations (values)'!BH$21,'Inputs (values)'!$H$83:'Inputs (values)'!$KV$83,0))/INDEX('Inputs (values)'!$H$84:$KV$86,1,MATCH('Inputs (values)'!$H$10,'Inputs (values)'!$H$83:$KV$83,0)))*(INDEX('Inputs (values)'!$H$62:$KV$62,1,MATCH('Inputs (values)'!$H$12,'Inputs (values)'!$H$83:$KV$83,0))/INDEX('Inputs (values)'!$H$62:$KV$62,1,MATCH('Inputs (values)'!$H$11,'Inputs (values)'!$H$83:$KV$83,0))) -> 2.665458212 | BI22: =(INDEX('Inputs (values)'!$H$84:$KV$86,1,MATCH('Calculations (values)'!BI$21,'Inputs (values)'!$H$83:'Inputs (values)'!$KV$83,0))/INDEX('Inputs (values)'!$H$84:$KV$86,1,MATCH('Inputs (values)'!$H$10,'Inputs (values)'!$H$83:$KV$83,0)))*(INDEX('Inputs (values)'!$H$62:$KV$62,1,MATCH('Inputs (values)'!$H$12,'Inputs (values)'!$H$83:$KV$83,0))/INDEX('Inputs (values)'!$H$62:$KV$62,1,MATCH('Inputs (values)'!$H$11,'Inputs (values)'!$H$83:$KV$83,0))) -> 2.702034844 | BJ22: =(INDEX('Inputs (values)'!$H$84:$KV$86,1,MATCH('Calculations (values)'!BJ$21,'Inputs (values)'!$H$83:'Inputs (values)'!$KV$83,0))/INDEX('Inputs (values)'!$H$84:$KV$86,1,MATCH('Inputs (values)'!$H$10,'Inputs (values)'!$H$83:$KV$83,0)))*(INDEX('Inputs (values)'!$H$62:$KV$62,1,MATCH('Inputs (values)'!$H$12,'Inputs (values)'!$H$83:$KV$83,0))/INDEX('Inputs (values)'!$H$62:$KV$62,1,MATCH('Inputs (values)'!$H$11,'Inputs (values)'!$H$83:$KV$83,0))) -> 2.737984199 | BK22: =(INDEX('Inputs (values)'!$H$84:$KV$86,1,MATCH('Calculations (values)'!BK$21,'Inputs (values)'!$H$83:'Inputs (values)'!$KV$83,0))/INDEX('Inputs (values)'!$H$84:$KV$86,1,MATCH('Inputs (values)'!$H$10,'Inputs (values)'!$H$83:$KV$83,0)))*(INDEX('Inputs (values)'!$H$62:$KV$62,1,MATCH('Inputs (values)'!$H$12,'Inputs (values)'!$H$83:$KV$83,0))/INDEX('Inputs (values)'!$H$62:$KV$62,1,MATCH('Inputs (values)'!$H$11,'Inputs (values)'!$H$83:$KV$83,0))) -> 2.77262856 | BL22: =(INDEX('Inputs (values)'!$H$84:$KV$86,1,MATCH('Calculations (values)'!BL$21,'Inputs (values)'!$H$83:'Inputs (values)'!$KV$83,0))/INDEX('Inputs (values)'!$H$84:$KV$86,1,MATCH('Inputs (values)'!$H$10,'Inputs (values)'!$H$83:$KV$83,0)))*(INDEX('Inputs (values)'!$H$62:$KV$62,1,MATCH('Inputs (values)'!$H$12,'Inputs (values)'!$H$83:$KV$83,0))/INDEX('Inputs (values)'!$H$62:$KV$62,1,MATCH('Inputs (values)'!$H$11,'Inputs (values)'!$H$83:$KV$83,0))) -> 2.807795882 | BM22: =(INDEX('Inputs (values)'!$H$84:$KV$86,1,MATCH('Calculations (values)'!BM$21,'Inputs (values)'!$H$83:'Inputs (values)'!$KV$83,0))/INDEX('Inputs (values)'!$H$84:$KV$86,1,MATCH('Inputs (values)'!$H$10,'Inputs (values)'!$H$83:$KV$83,0)))*(INDEX('Inputs (values)'!$H$62:$KV$62,1,MATCH('Inputs (values)'!$H$12,'Inputs (values)'!$H$83:$KV$83,0))/INDEX('Inputs (values)'!$H$62:$KV$62,1,MATCH('Inputs (values)'!$H$11,'Inputs (values)'!$H$83:$KV$83,0))) -> 2.842655355 | BN22: =(INDEX('Inputs (values)'!$H$84:$KV$86,1,MATCH('Calculations (values)'!BN$21,'Inputs (values)'!$H$83:'Inputs (values)'!$KV$83,0))/INDEX('Inputs (values)'!$H$84:$KV$86,1,MATCH('Inputs (values)'!$H$10,'Inputs (values)'!$H$83:$KV$83,0)))*(INDEX('Inputs (values)'!$H$62:$KV$62,1,MATCH('Inputs (values)'!$H$12,'Inputs (values)'!$H$83:$KV$83,0))/INDEX('Inputs (values)'!$H$62:$KV$62,1,MATCH('Inputs (values)'!$H$11,'Inputs (values)'!$H$83:$KV$83,0))) -> 2.876842381 | BO22: =(INDEX('Inputs (values)'!$H$84:$KV$86,1,MATCH('Calculations (values)'!BO$21,'Inputs (values)'!$H$83:'Inputs (values)'!$KV$83,0))/INDEX('Inputs (values)'!$H$84:$KV$86,1,MATCH('Inputs (values)'!$H$10,'Inputs (values)'!$H$83:$KV$83,0)))*(INDEX('Inputs (values)'!$H$62:$KV$62,1,MATCH('Inputs (values)'!$H$12,'Inputs (values)'!$H$83:$KV$83,0))/INDEX('Inputs (values)'!$H$62:$KV$62,1,MATCH('Inputs (values)'!$H$11,'Inputs (values)'!$H$83:$KV$83,0))) -> 2.910511747 | BP22: =(INDEX('Inputs (values)'!$H$84:$KV$86,1,MATCH('Calculations (values)'!BP$21,'Inputs (values)'!$H$83:'Inputs (values)'!$KV$83,0))/INDEX('Inputs (values)'!$H$84:$KV$86,1,MATCH('Inputs (values)'!$H$10,'Inputs (values)'!$H$83:$KV$83,0)))*(INDEX('Inputs (values)'!$H$62:$KV$62,1,MATCH('Inputs (values)'!$H$12,'Inputs (values)'!$H$83:$KV$83,0))/INDEX('Inputs (values)'!$H$62:$KV$62,1,MATCH('Inputs (values)'!$H$11,'Inputs (values)'!$H$83:$KV$83,0))) -> 2.945918109 | BQ22: =(INDEX('Inputs (values)'!$H$84:$KV$86,1,MATCH('Calculations (values)'!BQ$21,'Inputs (values)'!$H$83:'Inputs (values)'!$KV$83,0))/INDEX('Inputs (values)'!$H$84:$KV$86,1,MATCH('Inputs (values)'!$H$10,'Inputs (values)'!$H$83:$KV$83,0)))*(INDEX('Inputs (values)'!$H$62:$KV$62,1,MATCH('Inputs (values)'!$H$12,'Inputs (values)'!$H$83:$KV$83,0))/INDEX('Inputs (values)'!$H$62:$KV$62,1,MATCH('Inputs (values)'!$H$11,'Inputs (values)'!$H$83:$KV$83,0))) -> 2.982714378 | BR22: =(INDEX('Inputs (values)'!$H$84:$KV$86,1,MATCH('Calculations (values)'!BR$21,'Inputs (values)'!$H$83:'Inputs (values)'!$KV$83,0))/INDEX('Inputs (values)'!$H$84:$KV$86,1,MATCH('Inputs (values)'!$H$10,'Inputs (values)'!$H$83:$KV$83,0)))*(INDEX('Inputs (values)'!$H$62:$KV$62,1,MATCH('Inputs (values)'!$H$12,'Inputs (values)'!$H$83:$KV$83,0))/INDEX('Inputs (values)'!$H$62:$KV$62,1,MATCH('Inputs (values)'!$H$11,'Inputs (values)'!$H$83:$KV$83,0))) -> 3.020225633 | BS22: =(INDEX('Inputs (values)'!$H$84:$KV$86,1,MATCH('Calculations (values)'!BS$21,'Inputs (values)'!$H$83:'Inputs (values)'!$KV$83,0))/INDEX('Inputs (values)'!$H$84:$KV$86,1,MATCH('Inputs (values)'!$H$10,'Inputs (values)'!$H$83:$KV$83,0)))*(INDEX('Inputs (values)'!$H$62:$KV$62,1,MATCH('Inputs (values)'!$H$12,'Inputs (values)'!$H$83:$KV$83,0))/INDEX('Inputs (values)'!$H$62:$KV$62,1,MATCH('Inputs (values)'!$H$11,'Inputs (values)'!$H$83:$KV$83,0))) -> 3.057983699 | BT22: =(INDEX('Inputs (values)'!$H$84:$KV$86,1,MATCH('Calculations (values)'!BT$21,'Inputs (values)'!$H$83:'Inputs (values)'!$KV$83,0))/INDEX('Inputs (values)'!$H$84:$KV$86,1,MATCH('Inputs (values)'!$H$10,'Inputs (values)'!$H$83:$KV$83,0)))*(INDEX('Inputs (values)'!$H$62:$KV$62,1,MATCH('Inputs (values)'!$H$12,'Inputs (values)'!$H$83:$KV$83,0))/INDEX('Inputs (values)'!$H$62:$KV$62,1,MATCH('Inputs (values)'!$H$11,'Inputs (values)'!$H$83:$KV$83,0))) -> 3.097535847 | BU22: =(INDEX('Inputs (values)'!$H$84:$KV$86,1,MATCH('Calculations (values)'!BU$21,'Inputs (values)'!$H$83:'Inputs (values)'!$KV$83,0))/INDEX('Inputs (values)'!$H$84:$KV$86,1,MATCH('Inputs (values)'!$H$10,'Inputs (values)'!$H$83:$KV$83,0)))*(INDEX('Inputs (values)'!$H$62:$KV$62,1,MATCH('Inputs (values)'!$H$12,'Inputs (values)'!$H$83:$KV$83,0))/INDEX('Inputs (values)'!$H$62:$KV$62,1,MATCH('Inputs (values)'!$H$11,'Inputs (values)'!$H$83:$KV$83,0))) -> 3.138884852 | BV22: =(INDEX('Inputs (values)'!$H$84:$KV$86,1,MATCH('Calculations (values)'!BV$21,'Inputs (values)'!$H$83:'Inputs (values)'!$KV$83,0))/INDEX('Inputs (values)'!$H$84:$KV$86,1,MATCH('Inputs (values)'!$H$10,'Inputs (values)'!$H$83:$KV$83,0)))*(INDEX('Inputs (values)'!$H$62:$KV$62,1,MATCH('Inputs (values)'!$H$12,'Inputs (values)'!$H$83:$KV$83,0))/INDEX('Inputs (values)'!$H$62:$KV$62,1,MATCH('Inputs (values)'!$H$11,'Inputs (values)'!$H$83:$KV$83,0))) -> 3.182386291 | BW22: =(INDEX('Inputs (values)'!$H$84:$KV$86,1,MATCH('Calculations (values)'!BW$21,'Inputs (values)'!$H$83:'Inputs (values)'!$KV$83,0))/INDEX('Inputs (values)'!$H$84:$KV$86,1,MATCH('Inputs (values)'!$H$10,'Inputs (values)'!$H$83:$KV$83,0)))*(INDEX('Inputs (values)'!$H$62:$KV$62,1,MATCH('Inputs (values)'!$H$12,'Inputs (values)'!$H$83:$KV$83,0))/INDEX('Inputs (values)'!$H$62:$KV$62,1,MATCH('Inputs (values)'!$H$11,'Inputs (values)'!$H$83:$KV$83,0))) -> 3.228171259 | BX22: =(INDEX('Inputs (values)'!$H$84:$KV$86,1,MATCH('Calculations (values)'!BX$21,'Inputs (values)'!$H$83:'Inputs (values)'!$KV$83,0))/INDEX('Inputs (values)'!$H$84:$KV$86,1,MATCH('Inputs (values)'!$H$10,'Inputs (values)'!$H$83:$KV$83,0)))*(INDEX('Inputs (values)'!$H$62:$KV$62,1,MATCH('Inputs (values)'!$H$12,'Inputs (values)'!$H$83:$KV$83,0))/INDEX('Inputs (values)'!$H$62:$KV$62,1,MATCH('Inputs (values)'!$H$11,'Inputs (values)'!$H$83:$KV$83,0))) -> 3.276916304 | BY22: =(INDEX('Inputs (values)'!$H$84:$KV$86,1,MATCH('Calculations (values)'!BY$21,'Inputs (values)'!$H$83:'Inputs (values)'!$KV$83,0))/INDEX('Inputs (values)'!$H$84:$KV$86,1,MATCH('Inputs (values)'!$H$10,'Inputs (values)'!$H$83:$KV$83,0)))*(INDEX('Inputs (values)'!$H$62:$KV$62,1,MATCH('Inputs (values)'!$H$12,'Inputs (values)'!$H$83:$KV$83,0))/INDEX('Inputs (values)'!$H$62:$KV$62,1,MATCH('Inputs (values)'!$H$11,'Inputs (values)'!$H$83:$KV$83,0))) -> 3.327260807 | BZ22: =(INDEX('Inputs (values)'!$H$84:$KV$86,1,MATCH('Calculations (values)'!BZ$21,'Inputs (values)'!$H$83:'Inputs (values)'!$KV$83,0))/INDEX('Inputs (values)'!$H$84:$KV$86,1,MATCH('Inputs (values)'!$H$10,'Inputs (values)'!$H$83:$KV$83,0)))*(INDEX('Inputs (values)'!$H$62:$KV$62,1,MATCH('Inputs (values)'!$H$12,'Inputs (values)'!$H$83:$KV$83,0))/INDEX('Inputs (values)'!$H$62:$KV$62,1,MATCH('Inputs (values)'!$H$11,'Inputs (values)'!$H$83:$KV$83,0))) -> 3.378745989 | CA22: =(INDEX('Inputs (values)'!$H$84:$KV$86,1,MATCH('Calculations (values)'!CA$21,'Inputs (values)'!$H$83:'Inputs (values)'!$KV$83,0))/INDEX('Inputs (values)'!$H$84:$KV$86,1,MATCH('Inputs (values)'!$H$10,'Inputs (values)'!$H$83:$KV$83,0)))*(INDEX('Inputs (values)'!$H$62:$KV$62,1,MATCH('Inputs (values)'!$H$12,'Inputs (values)'!$H$83:$KV$83,0))/INDEX('Inputs (values)'!$H$62:$KV$62,1,MATCH('Inputs (values)'!$H$11,'Inputs (values)'!$H$83:$KV$83,0))) -> 3.430862194 | CB22: =(INDEX('Inputs (values)'!$H$84:$KV$86,1,MATCH('Calculations (values)'!CB$21,'Inputs (values)'!$H$83:'Inputs (values)'!$KV$83,0))/INDEX('Inputs (values)'!$H$84:$KV$86,1,MATCH('Inputs (values)'!$H$10,'Inputs (values)'!$H$83:$KV$83,0)))*(INDEX('Inputs (values)'!$H$62:$KV$62,1,MATCH('Inputs (values)'!$H$12,'Inputs (values)'!$H$83:$KV$83,0))/INDEX('Inputs (values)'!$H$62:$KV$62,1,MATCH('Inputs (values)'!$H$11,'Inputs (values)'!$H$83:$KV$83,0))) -> 3.483775871 | CC22: =(INDEX('Inputs (values)'!$H$84:$KV$86,1,MATCH('Calculations (values)'!CC$21,'Inputs (values)'!$H$83:'Inputs (values)'!$KV$83,0))/INDEX('Inputs (values)'!$H$84:$KV$86,1,MATCH('Inputs (values)'!$H$10,'Inputs (values)'!$H$83:$KV$83,0)))*(INDEX('Inputs (values)'!$H$62:$KV$62,1,MATCH('Inputs (values)'!$H$12,'Inputs (values)'!$H$83:$KV$83,0))/INDEX('Inputs (values)'!$H$62:$KV$62,1,MATCH('Inputs (values)'!$H$11,'Inputs (values)'!$H$83:$KV$83,0))) -> 3.537653514 | CD22: =(INDEX('Inputs (values)'!$H$84:$KV$86,1,MATCH('Calculations (values)'!CD$21,'Inputs (values)'!$H$83:'Inputs (values)'!$KV$83,0))/INDEX('Inputs (values)'!$H$84:$KV$86,1,MATCH('Inputs (values)'!$H$10,'Inputs (values)'!$H$83:$KV$83,0)))*(INDEX('Inputs (values)'!$H$62:$KV$62,1,MATCH('Inputs (values)'!$H$12,'Inputs (values)'!$H$83:$KV$83,0))/INDEX('Inputs (values)'!$H$62:$KV$62,1,MATCH('Inputs (values)'!$H$11,'Inputs (values)'!$H$83:$KV$83,0))) -> 3.592450537 | CE22: =(INDEX('Inputs (values)'!$H$84:$KV$86,1,MATCH('Calculations (values)'!CE$21,'Inputs (values)'!$H$83:'Inputs (values)'!$KV$83,0))/INDEX('Inputs (values)'!$H$84:$KV$86,1,MATCH('Inputs (values)'!$H$10,'Inputs (values)'!$H$83:$KV$83,0)))*(INDEX('Inputs (values)'!$H$62:$KV$62,1,MATCH('Inputs (values)'!$H$12,'Inputs (values)'!$H$83:$KV$83,0))/INDEX('Inputs (values)'!$H$62:$KV$62,1,MATCH('Inputs (values)'!$H$11,'Inputs (values)'!$H$83:$KV$83,0))) -> 3.648122198 | CF22: =(INDEX('Inputs (values)'!$H$84:$KV$86,1,MATCH('Calculations (values)'!CF$21,'Inputs (values)'!$H$83:'Inputs (values)'!$KV$83,0))/INDEX('Inputs (values)'!$H$84:$KV$86,1,MATCH('Inputs (values)'!$H$10,'Inputs (values)'!$H$83:$KV$83,0)))*(INDEX('Inputs (values)'!$H$62:$KV$62,1,MATCH('Inputs (values)'!$H$12,'Inputs (values)'!$H$83:$KV$83,0))/INDEX('Inputs (values)'!$H$62:$KV$62,1,MATCH('Inputs (values)'!$H$11,'Inputs (values)'!$H$83:$KV$83,0))) -> 3.70461697 | CG22: =(INDEX('Inputs (values)'!$H$84:$KV$86,1,MATCH('Calculations (values)'!CG$21,'Inputs (values)'!$H$83:'Inputs (values)'!$KV$83,0))/INDEX('Inputs (values)'!$H$84:$KV$86,1,MATCH('Inputs (values)'!$H$10,'Inputs (values)'!$H$83:$KV$83,0)))*(INDEX('Inputs (values)'!$H$62:$KV$62,1,MATCH('Inputs (values)'!$H$12,'Inputs (values)'!$H$83:$KV$83,0))/INDEX('Inputs (values)'!$H$62:$KV$62,1,MATCH('Inputs (values)'!$H$11,'Inputs (values)'!$H$83:$KV$83,0))) -> 3.761885015 | CH22: =(INDEX('Inputs (values)'!$H$84:$KV$86,1,MATCH('Calculations (values)'!CH$21,'Inputs (values)'!$H$83:'Inputs (values)'!$KV$83,0))/INDEX('Inputs (values)'!$H$84:$KV$86,1,MATCH('Inputs (values)'!$H$10,'Inputs (values)'!$H$83:$KV$83,0)))*(INDEX('Inputs (values)'!$H$62:$KV$62,1,MATCH('Inputs (values)'!$H$12,'Inputs (values)'!$H$83:$KV$83,0))/INDEX('Inputs (values)'!$H$62:$KV$62,1,MATCH('Inputs (values)'!$H$11,'Inputs (values)'!$H$83:$KV$83,0))) -> 3.819851211 | CI22: =(INDEX('Inputs (values)'!$H$84:$KV$86,1,MATCH('Calculations (values)'!CI$21,'Inputs (values)'!$H$83:'Inputs (values)'!$KV$83,0))/INDEX('Inputs (values)'!$H$84:$KV$86,1,MATCH('Inputs (values)'!$H$10,'Inputs (values)'!$H$83:$KV$83,0)))*(INDEX('Inputs (values)'!$H$62:$KV$62,1,MATCH('Inputs (values)'!$H$12,'Inputs (values)'!$H$83:$KV$83,0))/INDEX('Inputs (values)'!$H$62:$KV$62,1,MATCH('Inputs (values)'!$H$11,'Inputs (values)'!$H$83:$KV$83,0))) -> 3.87843859 | CJ22: =(INDEX('Inputs (values)'!$H$84:$KV$86,1,MATCH('Calculations (values)'!CJ$21,'Inputs (values)'!$H$83:'Inputs (values)'!$KV$83,0))/INDEX('Inputs (values)'!$H$84:$KV$86,1,MATCH('Inputs (values)'!$H$10,'Inputs (values)'!$H$83:$KV$83,0)))*(INDEX('Inputs (values)'!$H$62:$KV$62,1,MATCH('Inputs (values)'!$H$12,'Inputs (values)'!$H$83:$KV$83,0))/INDEX('Inputs (values)'!$H$62:$KV$62,1,MATCH('Inputs (values)'!$H$11,'Inputs (values)'!$H$83:$KV$83,0))) -> 3.937924559 | CK22: =(INDEX('Inputs (values)'!$H$84:$KV$86,1,MATCH('Calculations (values)'!CK$21,'Inputs (values)'!$H$83:'Inputs (values)'!$KV$83,0))/INDEX('Inputs (values)'!$H$84:$KV$86,1,MATCH('Inputs (values)'!$H$10,'Inputs (values)'!$H$83:$KV$83,0)))*(INDEX('Inputs (values)'!$H$62:$KV$62,1,MATCH('Inputs (values)'!$H$12,'Inputs (values)'!$H$83:$KV$83,0))/INDEX('Inputs (values)'!$H$62:$KV$62,1,MATCH('Inputs (values)'!$H$11,'Inputs (values)'!$H$83:$KV$83,0))) -> 3.9983229 | CL22: =(INDEX('Inputs (values)'!$H$84:$KV$86,1,MATCH('Calculations (values)'!CL$21,'Inputs (values)'!$H$83:'Inputs (values)'!$KV$83,0))/INDEX('Inputs (values)'!$H$84:$KV$86,1,MATCH('Inputs (values)'!$H$10,'Inputs (values)'!$H$83:$KV$83,0)))*(INDEX('Inputs (values)'!$H$62:$KV$62,1,MATCH('Inputs (values)'!$H$12,'Inputs (values)'!$H$83:$KV$83,0))/INDEX('Inputs (values)'!$H$62:$KV$62,1,MATCH('Inputs (values)'!$H$11,'Inputs (values)'!$H$83:$KV$83,0))) -> 4.059647608 | CM22: =(INDEX('Inputs (values)'!$H$84:$KV$86,1,MATCH('Calculations (values)'!CM$21,'Inputs (values)'!$H$83:'Inputs (values)'!$KV$83,0))/INDEX('Inputs (values)'!$H$84:$KV$86,1,MATCH('Inputs (values)'!$H$10,'Inputs (values)'!$H$83:$KV$83,0)))*(INDEX('Inputs (values)'!$H$62:$KV$62,1,MATCH('Inputs (values)'!$H$12,'Inputs (values)'!$H$83:$KV$83,0))/INDEX('Inputs (values)'!$H$62:$KV$62,1,MATCH('Inputs (values)'!$H$11,'Inputs (values)'!$H$83:$KV$83,0))) -> 4.12191289 | CN22: =(INDEX('Inputs (values)'!$H$84:$KV$86,1,MATCH('Calculations (values)'!CN$21,'Inputs (values)'!$H$83:'Inputs (values)'!$KV$83,0))/INDEX('Inputs (values)'!$H$84:$KV$86,1,MATCH('Inputs (values)'!$H$10,'Inputs (values)'!$H$83:$KV$83,0)))*(INDEX('Inputs (values)'!$H$62:$KV$62,1,MATCH('Inputs (values)'!$H$12,'Inputs (values)'!$H$83:$KV$83,0))/INDEX('Inputs (values)'!$H$62:$KV$62,1,MATCH('Inputs (values)'!$H$11,'Inputs (values)'!$H$83:$KV$83,0))) -> 4.185133173 | CO22: =(INDEX('Inputs (values)'!$H$84:$KV$86,1,MATCH('Calculations (values)'!CO$21,'Inputs (values)'!$H$83:'Inputs (values)'!$KV$83,0))/INDEX('Inputs (values)'!$H$84:$KV$86,1,MATCH('Inputs (values)'!$H$10,'Inputs (values)'!$H$83:$KV$83,0)))*(INDEX('Inputs (values)'!$H$62:$KV$62,1,MATCH('Inputs (values)'!$H$12,'Inputs (values)'!$H$83:$KV$83,0))/INDEX('Inputs (values)'!$H$62:$KV$62,1,MATCH('Inputs (values)'!$H$11,'Inputs (values)'!$H$83:$KV$83,0))) -> 4.249323103 | CP22: =(INDEX('Inputs (values)'!$H$84:$KV$86,1,MATCH('Calculations (values)'!CP$21,'Inputs (values)'!$H$83:'Inputs (values)'!$KV$83,0))/INDEX('Inputs (values)'!$H$84:$KV$86,1,MATCH('Inputs (values)'!$H$10,'Inputs (values)'!$H$83:$KV$83,0)))*(INDEX('Inputs (values)'!$H$62:$KV$62,1,MATCH('Inputs (values)'!$H$12,'Inputs (values)'!$H$83:$KV$83,0))/INDEX('Inputs (values)'!$H$62:$KV$62,1,MATCH('Inputs (values)'!$H$11,'Inputs (values)'!$H$83:$KV$83,0))) -> 4.314497553 | CQ22: =(INDEX('Inputs (values)'!$H$84:$KV$86,1,MATCH('Calculations (values)'!CQ$21,'Inputs (values)'!$H$83:'Inputs (values)'!$KV$83,0))/INDEX('Inputs (values)'!$H$84:$KV$86,1,MATCH('Inputs (values)'!$H$10,'Inputs (values)'!$H$83:$KV$83,0)))*(INDEX('Inputs (values)'!$H$62:$KV$62,1,MATCH('Inputs (values)'!$H$12,'Inputs (values)'!$H$83:$KV$83,0))/INDEX('Inputs (values)'!$H$62:$KV$62,1,MATCH('Inputs (values)'!$H$11,'Inputs (values)'!$H$83:$KV$83,0))) -> 4.380671624 | CR22: =(INDEX('Inputs (values)'!$H$84:$KV$86,1,MATCH('Calculations (values)'!CR$21,'Inputs (values)'!$H$83:'Inputs (values)'!$KV$83,0))/INDEX('Inputs (values)'!$H$84:$KV$86,1,MATCH('Inputs (values)'!$H$10,'Inputs (values)'!$H$83:$KV$83,0)))*(INDEX('Inputs (values)'!$H$62:$KV$62,1,MATCH('Inputs (values)'!$H$12,'Inputs (values)'!$H$83:$KV$83,0))/INDEX('Inputs (values)'!$H$62:$KV$62,1,MATCH('Inputs (values)'!$H$11,'Inputs (values)'!$H$83:$KV$83,0))) -> 4.447860646 | CS22: =(INDEX('Inputs (values)'!$H$84:$KV$86,1,MATCH('Calculations (values)'!CS$21,'Inputs (values)'!$H$83:'Inputs (values)'!$KV$83,0))/INDEX('Inputs (values)'!$H$84:$KV$86,1,MATCH('Inputs (values)'!$H$10,'Inputs (values)'!$H$83:$KV$83,0)))*(INDEX('Inputs (values)'!$H$62:$KV$62,1,MATCH('Inputs (values)'!$H$12,'Inputs (values)'!$H$83:$KV$83,0))/INDEX('Inputs (values)'!$H$62:$KV$62,1,MATCH('Inputs (values)'!$H$11,'Inputs (values)'!$H$83:$KV$83,0))) -> 4.516080188 | CT22: =(INDEX('Inputs (values)'!$H$84:$KV$86,1,MATCH('Calculations (values)'!CT$21,'Inputs (values)'!$H$83:'Inputs (values)'!$KV$83,0))/INDEX('Inputs (values)'!$H$84:$KV$86,1,MATCH('Inputs (values)'!$H$10,'Inputs (values)'!$H$83:$KV$83,0)))*(INDEX('Inputs (values)'!$H$62:$KV$62,1,MATCH('Inputs (values)'!$H$12,'Inputs (values)'!$H$83:$KV$83,0))/INDEX('Inputs (values)'!$H$62:$KV$62,1,MATCH('Inputs (values)'!$H$11,'Inputs (values)'!$H$83:$KV$83,0))) -> 4.585346054 | CU22: =(INDEX('Inputs (values)'!$H$84:$KV$86,1,MATCH('Calculations (values)'!CU$21,'Inputs (values)'!$H$83:'Inputs (values)'!$KV$83,0))/INDEX('Inputs (values)'!$H$84:$KV$86,1,MATCH('Inputs (values)'!$H$10,'Inputs (values)'!$H$83:$KV$83,0)))*(INDEX('Inputs (values)'!$H$62:$KV$62,1,MATCH('Inputs (values)'!$H$12,'Inputs (values)'!$H$83:$KV$83,0))/INDEX('Inputs (values)'!$H$62:$KV$62,1,MATCH('Inputs (values)'!$H$11,'Inputs (values)'!$H$83:$KV$83,0))) -> 4.655674292 | CV22: =(INDEX('Inputs (values)'!$H$84:$KV$86,1,MATCH('Calculations (values)'!CV$21,'Inputs (values)'!$H$83:'Inputs (values)'!$KV$83,0))/INDEX('Inputs (values)'!$H$84:$KV$86,1,MATCH('Inputs (values)'!$H$10,'Inputs (values)'!$H$83:$KV$83,0)))*(INDEX('Inputs (values)'!$H$62:$KV$62,1,MATCH('Inputs (values)'!$H$12,'Inputs (values)'!$H$83:$KV$83,0))/INDEX('Inputs (values)'!$H$62:$KV$62,1,MATCH('Inputs (values)'!$H$11,'Inputs (values)'!$H$83:$KV$83,0))) -> 4.727081198 | CW22: =(INDEX('Inputs (values)'!$H$84:$KV$86,1,MATCH('Calculations (values)'!CW$21,'Inputs (values)'!$H$83:'Inputs (values)'!$KV$83,0))/INDEX('Inputs (values)'!$H$84:$KV$86,1,MATCH('Inputs (values)'!$H$10,'Inputs (values)'!$H$83:$KV$83,0)))*(INDEX('Inputs (values)'!$H$62:$KV$62,1,MATCH('Inputs (values)'!$H$12,'Inputs (values)'!$H$83:$KV$83,0))/INDEX('Inputs (values)'!$H$62:$KV$62,1,MATCH('Inputs (values)'!$H$11,'Inputs (values)'!$H$83:$KV$83,0))) -> 4.799583314 | CX22: =(INDEX('Inputs (values)'!$H$84:$KV$86,1,MATCH('Calculations (values)'!CX$21,'Inputs (values)'!$H$83:'Inputs (values)'!$KV$83,0))/INDEX('Inputs (values)'!$H$84:$KV$86,1,MATCH('Inputs (values)'!$H$10,'Inputs (values)'!$H$83:$KV$83,0)))*(INDEX('Inputs (values)'!$H$62:$KV$62,1,MATCH('Inputs (values)'!$H$12,'Inputs (values)'!$H$83:$KV$83,0))/INDEX('Inputs (values)'!$H$62:$KV$62,1,MATCH('Inputs (values)'!$H$11,'Inputs (values)'!$H$83:$KV$83,0))) -> 4.87319744 | CY22: =(INDEX('Inputs (values)'!$H$84:$KV$86,1,MATCH('Calculations (values)'!CY$21,'Inputs (values)'!$H$83:'Inputs (values)'!$KV$83,0))/INDEX('Inputs (values)'!$H$84:$KV$86,1,MATCH('Inputs (values)'!$H$10,'Inputs (values)'!$H$83:$KV$83,0)))*(INDEX('Inputs (values)'!$H$62:$KV$62,1,MATCH('Inputs (values)'!$H$12,'Inputs (values)'!$H$83:$KV$83,0))/INDEX('Inputs (values)'!$H$62:$KV$62,1,MATCH('Inputs (values)'!$H$11,'Inputs (values)'!$H$83:$KV$83,0))) -> 4.94794063 | CZ22: =(INDEX('Inputs (values)'!$H$84:$KV$86,1,MATCH('Calculations (values)'!CZ$21,'Inputs (values)'!$H$83:'Inputs (values)'!$KV$83,0))/INDEX('Inputs (values)'!$H$84:$KV$86,1,MATCH('Inputs (values)'!$H$10,'Inputs (values)'!$H$83:$KV$83,0)))*(INDEX('Inputs (values)'!$H$62:$KV$62,1,MATCH('Inputs (values)'!$H$12,'Inputs (values)'!$H$83:$KV$83,0))/INDEX('Inputs (values)'!$H$62:$KV$62,1,MATCH('Inputs (values)'!$H$11,'Inputs (values)'!$H$83:$KV$83,0))) -> 5.023830202 | DA22: =(INDEX('Inputs (values)'!$H$84:$KV$86,1,MATCH('Calculations (values)'!DA$21,'Inputs (values)'!$H$83:'Inputs (values)'!$KV$83,0))/INDEX('Inputs (values)'!$H$84:$KV$86,1,MATCH('Inputs (values)'!$H$10,'Inputs (values)'!$H$83:$KV$83,0)))*(INDEX('Inputs (values)'!$H$62:$KV$62,1,MATCH('Inputs (values)'!$H$12,'Inputs (values)'!$H$83:$KV$83,0))/INDEX('Inputs (values)'!$H$62:$KV$62,1,MATCH('Inputs (values)'!$H$11,'Inputs (values)'!$H$83:$KV$83,0))) -> 5.100883738 | DB22: =(INDEX('Inputs (values)'!$H$84:$KV$86,1,MATCH('Calculations (values)'!DB$21,'Inputs (values)'!$H$83:'Inputs (values)'!$KV$83,0))/INDEX('Inputs (values)'!$H$84:$KV$86,1,MATCH('Inputs (values)'!$H$10,'Inputs (values)'!$H$83:$KV$83,0)))*(INDEX('Inputs (values)'!$H$62:$KV$62,1,MATCH('Inputs (values)'!$H$12,'Inputs (values)'!$H$83:$KV$83,0))/INDEX('Inputs (values)'!$H$62:$KV$62,1,MATCH('Inputs (values)'!$H$11,'Inputs (values)'!$H$83:$KV$83,0))) -> 5.179119091 | DC22: =(INDEX('Inputs (values)'!$H$84:$KV$86,1,MATCH('Calculations (values)'!DC$21,'Inputs (values)'!$H$83:'Inputs (values)'!$KV$83,0))/INDEX('Inputs (values)'!$H$84:$KV$86,1,MATCH('Inputs (values)'!$H$10,'Inputs (values)'!$H$83:$KV$83,0)))*(INDEX('Inputs (values)'!$H$62:$KV$62,1,MATCH('Inputs (values)'!$H$12,'Inputs (values)'!$H$83:$KV$83,0))/INDEX('Inputs (values)'!$H$62:$KV$62,1,MATCH('Inputs (values)'!$H$11,'Inputs (values)'!$H$83:$KV$83,0))) -> 5.258554387 | DD22: =(INDEX('Inputs (values)'!$H$84:$KV$86,1,MATCH('Calculations (values)'!DD$21,'Inputs (values)'!$H$83:'Inputs (values)'!$KV$83,0))/INDEX('Inputs (values)'!$H$84:$KV$86,1,MATCH('Inputs (values)'!$H$10,'Inputs (values)'!$H$83:$KV$83,0)))*(INDEX('Inputs (values)'!$H$62:$KV$62,1,MATCH('Inputs (values)'!$H$12,'Inputs (values)'!$H$83:$KV$83,0))/INDEX('Inputs (values)'!$H$62:$KV$62,1,MATCH('Inputs (values)'!$H$11,'Inputs (values)'!$H$83:$KV$83,0))) -> 5.339208031 | DE22: =(INDEX('Inputs (values)'!$H$84:$KV$86,1,MATCH('Calculations (values)'!DE$21,'Inputs (values)'!$H$83:'Inputs (values)'!$KV$83,0))/INDEX('Inputs (values)'!$H$84:$KV$86,1,MATCH('Inputs (values)'!$H$10,'Inputs (values)'!$H$83:$KV$83,0)))*(INDEX('Inputs (values)'!$H$62:$KV$62,1,MATCH('Inputs (values)'!$H$12,'Inputs (values)'!$H$83:$KV$83,0))/INDEX('Inputs (values)'!$H$62:$KV$62,1,MATCH('Inputs (values)'!$H$11,'Inputs (values)'!$H$83:$KV$83,0))) -> 5.421098709 | DF22: =(INDEX('Inputs (values)'!$H$84:$KV$86,1,MATCH('Calculations (values)'!DF$21,'Inputs (values)'!$H$83:'Inputs (values)'!$KV$83,0))/INDEX('Inputs (values)'!$H$84:$KV$86,1,MATCH('Inputs (values)'!$H$10,'Inputs (values)'!$H$83:$KV$83,0)))*(INDEX('Inputs (values)'!$H$62:$KV$62,1,MATCH('Inputs (values)'!$H$12,'Inputs (values)'!$H$83:$KV$83,0))/INDEX('Inputs (values)'!$H$62:$KV$62,1,MATCH('Inputs (values)'!$H$11,'Inputs (values)'!$H$83:$KV$83,0))) -> 5.504245394 | DG22: =(INDEX('Inputs (values)'!$H$84:$KV$86,1,MATCH('Calculations (values)'!DG$21,'Inputs (values)'!$H$83:'Inputs (values)'!$KV$83,0))/INDEX('Inputs (values)'!$H$84:$KV$86,1,MATCH('Inputs (values)'!$H$10,'Inputs (values)'!$H$83:$KV$83,0)))*(INDEX('Inputs (values)'!$H$62:$KV$62,1,MATCH('Inputs (values)'!$H$12,'Inputs (values)'!$H$83:$KV$83,0))/INDEX('Inputs (values)'!$H$62:$KV$62,1,MATCH('Inputs (values)'!$H$11,'Inputs (values)'!$H$83:$KV$83,0))) -> 5.58866735 | DH22: =(INDEX('Inputs (values)'!$H$84:$KV$86,1,MATCH('Calculations (values)'!DH$21,'Inputs (values)'!$H$83:'Inputs (values)'!$KV$83,0))/INDEX('Inputs (values)'!$H$84:$KV$86,1,MATCH('Inputs (values)'!$H$10,'Inputs (values)'!$H$83:$KV$83,0)))*(INDEX('Inputs (values)'!$H$62:$KV$62,1,MATCH('Inputs (values)'!$H$12,'Inputs (values)'!$H$83:$KV$83,0))/INDEX('Inputs (values)'!$H$62:$KV$62,1,MATCH('Inputs (values)'!$H$11,'Inputs (values)'!$H$83:$KV$83,0))) -> 5.674384137 | DI22: =(INDEX('Inputs (values)'!$H$84:$KV$86,1,MATCH('Calculations (values)'!DI$21,'Inputs (values)'!$H$83:'Inputs (values)'!$KV$83,0))/INDEX('Inputs (values)'!$H$84:$KV$86,1,MATCH('Inputs (values)'!$H$10,'Inputs (values)'!$H$83:$KV$83,0)))*(INDEX('Inputs (values)'!$H$62:$KV$62,1,MATCH('Inputs (values)'!$H$12,'Inputs (values)'!$H$83:$KV$83,0))/INDEX('Inputs (values)'!$H$62:$KV$62,1,MATCH('Inputs (values)'!$H$11,'Inputs (values)'!$H$83:$KV$83,0))) -> 5.761415614 | DJ22: =(INDEX('Inputs (values)'!$H$84:$KV$86,1,MATCH('Calculations (values)'!DJ$21,'Inputs (values)'!$H$83:'Inputs (values)'!$KV$83,0))/INDEX('Inputs (values)'!$H$84:$KV$86,1,MATCH('Inputs (values)'!$H$10,'Inputs (values)'!$H$83:$KV$83,0)))*(INDEX('Inputs (values)'!$H$62:$KV$62,1,MATCH('Inputs (values)'!$H$12,'Inputs (values)'!$H$83:$KV$83,0))/INDEX('Inputs (values)'!$H$62:$KV$62,1,MATCH('Inputs (values)'!$H$11,'Inputs (values)'!$H$83:$KV$83,0))) -> 5.849781946 | DK22: =(INDEX('Inputs (values)'!$H$84:$KV$86,1,MATCH('Calculations (values)'!DK$21,'Inputs (values)'!$H$83:'Inputs (values)'!$KV$83,0))/INDEX('Inputs (values)'!$H$84:$KV$86,1,MATCH('Inputs (values)'!$H$10,'Inputs (values)'!$H$83:$KV$83,0)))*(INDEX('Inputs (values)'!$H$62:$KV$62,1,MATCH('Inputs (values)'!$H$12,'Inputs (values)'!$H$83:$KV$83,0))/INDEX('Inputs (values)'!$H$62:$KV$62,1,MATCH('Inputs (values)'!$H$11,'Inputs (values)'!$H$83:$KV$83,0))) -> 5.939503606 | DL22: =(INDEX('Inputs (values)'!$H$84:$KV$86,1,MATCH('Calculations (values)'!DL$21,'Inputs (values)'!$H$83:'Inputs (values)'!$KV$83,0))/INDEX('Inputs (values)'!$H$84:$KV$86,1,MATCH('Inputs (values)'!$H$10,'Inputs (values)'!$H$83:$KV$83,0)))*(INDEX('Inputs (values)'!$H$62:$KV$62,1,MATCH('Inputs (values)'!$H$12,'Inputs (values)'!$H$83:$KV$83,0))/INDEX('Inputs (values)'!$H$62:$KV$62,1,MATCH('Inputs (values)'!$H$11,'Inputs (values)'!$H$83:$KV$83,0))) -> 6.030601382 | DM22: =(INDEX('Inputs (values)'!$H$84:$KV$86,1,MATCH('Calculations (values)'!DM$21,'Inputs (values)'!$H$83:'Inputs (values)'!$KV$83,0))/INDEX('Inputs (values)'!$H$84:$KV$86,1,MATCH('Inputs (values)'!$H$10,'Inputs (values)'!$H$83:$KV$83,0)))*(INDEX('Inputs (values)'!$H$62:$KV$62,1,MATCH('Inputs (values)'!$H$12,'Inputs (values)'!$H$83:$KV$83,0))/INDEX('Inputs (values)'!$H$62:$KV$62,1,MATCH('Inputs (values)'!$H$11,'Inputs (values)'!$H$83:$KV$83,0))) -> 6.123096379 | DN22: =(INDEX('Inputs (values)'!$H$84:$KV$86,1,MATCH('Calculations (values)'!DN$21,'Inputs (values)'!$H$83:'Inputs (values)'!$KV$83,0))/INDEX('Inputs (values)'!$H$84:$KV$86,1,MATCH('Inputs (values)'!$H$10,'Inputs (values)'!$H$83:$KV$83,0)))*(INDEX('Inputs (values)'!$H$62:$KV$62,1,MATCH('Inputs (values)'!$H$12,'Inputs (values)'!$H$83:$KV$83,0))/INDEX('Inputs (values)'!$H$62:$KV$62,1,MATCH('Inputs (values)'!$H$11,'Inputs (values)'!$H$83:$KV$83,0))) -> 6.217010029 | DO22: =(INDEX('Inputs (values)'!$H$84:$KV$86,1,MATCH('Calculations (values)'!DO$21,'Inputs (values)'!$H$83:'Inputs (values)'!$KV$83,0))/INDEX('Inputs (values)'!$H$84:$KV$86,1,MATCH('Inputs (values)'!$H$10,'Inputs (values)'!$H$83:$KV$83,0)))*(INDEX('Inputs (values)'!$H$62:$KV$62,1,MATCH('Inputs (values)'!$H$12,'Inputs (values)'!$H$83:$KV$83,0))/INDEX('Inputs (values)'!$H$62:$KV$62,1,MATCH('Inputs (values)'!$H$11,'Inputs (values)'!$H$83:$KV$83,0))) -> 6.312364089 | DP22: =(INDEX('Inputs (values)'!$H$84:$KV$86,1,MATCH('Calculations (values)'!DP$21,'Inputs (values)'!$H$83:'Inputs (values)'!$KV$83,0))/INDEX('Inputs (values)'!$H$84:$KV$86,1,MATCH('Inputs (values)'!$H$10,'Inputs (values)'!$H$83:$KV$83,0)))*(INDEX('Inputs (values)'!$H$62:$KV$62,1,MATCH('Inputs (values)'!$H$12,'Inputs (values)'!$H$83:$KV$83,0))/INDEX('Inputs (values)'!$H$62:$KV$62,1,MATCH('Inputs (values)'!$H$11,'Inputs (values)'!$H$83:$KV$83,0))) -> 6.409180653 | DQ22: =(INDEX('Inputs (values)'!$H$84:$KV$86,1,MATCH('Calculations (values)'!DQ$21,'Inputs (values)'!$H$83:'Inputs (values)'!$KV$83,0))/INDEX('Inputs (values)'!$H$84:$KV$86,1,MATCH('Inputs (values)'!$H$10,'Inputs (values)'!$H$83:$KV$83,0)))*(INDEX('Inputs (values)'!$H$62:$KV$62,1,MATCH('Inputs (values)'!$H$12,'Inputs (values)'!$H$83:$KV$83,0))/INDEX('Inputs (values)'!$H$62:$KV$62,1,MATCH('Inputs (values)'!$H$11,'Inputs (values)'!$H$83:$KV$83,0))) -> 6.507482151 | DR22: =(INDEX('Inputs (values)'!$H$84:$KV$86,1,MATCH('Calculations (values)'!DR$21,'Inputs (values)'!$H$83:'Inputs (values)'!$KV$83,0))/INDEX('Inputs (values)'!$H$84:$KV$86,1,MATCH('Inputs (values)'!$H$10,'Inputs (values)'!$H$83:$KV$83,0)))*(INDEX('Inputs (values)'!$H$62:$KV$62,1,MATCH('Inputs (values)'!$H$12,'Inputs (values)'!$H$83:$KV$83,0))/INDEX('Inputs (values)'!$H$62:$KV$62,1,MATCH('Inputs (values)'!$H$11,'Inputs (values)'!$H$83:$KV$83,0))) -> 6.607291358 | DS22: =(INDEX('Inputs (values)'!$H$84:$KV$86,1,MATCH('Calculations (values)'!DS$21,'Inputs (values)'!$H$83:'Inputs (values)'!$KV$83,0))/INDEX('Inputs (values)'!$H$84:$KV$86,1,MATCH('Inputs (values)'!$H$10,'Inputs (values)'!$H$83:$KV$83,0)))*(INDEX('Inputs (values)'!$H$62:$KV$62,1,MATCH('Inputs (values)'!$H$12,'Inputs (values)'!$H$83:$KV$83,0))/INDEX('Inputs (values)'!$H$62:$KV$62,1,MATCH('Inputs (values)'!$H$11,'Inputs (values)'!$H$83:$KV$83,0))) -> 6.708631401 | DT22: =(INDEX('Inputs (values)'!$H$84:$KV$86,1,MATCH('Calculations (values)'!DT$21,'Inputs (values)'!$H$83:'Inputs (values)'!$KV$83,0))/INDEX('Inputs (values)'!$H$84:$KV$86,1,MATCH('Inputs (values)'!$H$10,'Inputs (values)'!$H$83:$KV$83,0)))*(INDEX('Inputs (values)'!$H$62:$KV$62,1,MATCH('Inputs (values)'!$H$12,'Inputs (values)'!$H$83:$KV$83,0))/INDEX('Inputs (values)'!$H$62:$KV$62,1,MATCH('Inputs (values)'!$H$11,'Inputs (values)'!$H$83:$KV$83,0))) -> 6.811525757 | DU22: =(INDEX('Inputs (values)'!$H$84:$KV$86,1,MATCH('Calculations (values)'!DU$21,'Inputs (values)'!$H$83:'Inputs (values)'!$KV$83,0))/INDEX('Inputs (values)'!$H$84:$KV$86,1,MATCH('Inputs (values)'!$H$10,'Inputs (values)'!$H$83:$KV$83,0)))*(INDEX('Inputs (values)'!$H$62:$KV$62,1,MATCH('Inputs (values)'!$H$12,'Inputs (values)'!$H$83:$KV$83,0))/INDEX('Inputs (values)'!$H$62:$KV$62,1,MATCH('Inputs (values)'!$H$11,'Inputs (values)'!$H$83:$KV$83,0))) -> 6.915998266 | DV22: =(INDEX('Inputs (values)'!$H$84:$KV$86,1,MATCH('Calculations (values)'!DV$21,'Inputs (values)'!$H$83:'Inputs (values)'!$KV$83,0))/INDEX('Inputs (values)'!$H$84:$KV$86,1,MATCH('Inputs (values)'!$H$10,'Inputs (values)'!$H$83:$KV$83,0)))*(INDEX('Inputs (values)'!$H$62:$KV$62,1,MATCH('Inputs (values)'!$H$12,'Inputs (values)'!$H$83:$KV$83,0))/INDEX('Inputs (values)'!$H$62:$KV$62,1,MATCH('Inputs (values)'!$H$11,'Inputs (values)'!$H$83:$KV$83,0))) -> 7.022073133 | DW22: =(INDEX('Inputs (values)'!$H$84:$KV$86,1,MATCH('Calculations (values)'!DW$21,'Inputs (values)'!$H$83:'Inputs (values)'!$KV$83,0))/INDEX('Inputs (values)'!$H$84:$KV$86,1,MATCH('Inputs (values)'!$H$10,'Inputs (values)'!$H$83:$KV$83,0)))*(INDEX('Inputs (values)'!$H$62:$KV$62,1,MATCH('Inputs (values)'!$H$12,'Inputs (values)'!$H$83:$KV$83,0))/INDEX('Inputs (values)'!$H$62:$KV$62,1,MATCH('Inputs (values)'!$H$11,'Inputs (values)'!$H$83:$KV$83,0))) -> 7.129774936 | DX22: =(INDEX('Inputs (values)'!$H$84:$KV$86,1,MATCH('Calculations (values)'!DX$21,'Inputs (values)'!$H$83:'Inputs (values)'!$KV$83,0))/INDEX('Inputs (values)'!$H$84:$KV$86,1,MATCH('Inputs (values)'!$H$10,'Inputs (values)'!$H$83:$KV$83,0)))*(INDEX('Inputs (values)'!$H$62:$KV$62,1,MATCH('Inputs (values)'!$H$12,'Inputs (values)'!$H$83:$KV$83,0))/INDEX('Inputs (values)'!$H$62:$KV$62,1,MATCH('Inputs (values)'!$H$11,'Inputs (values)'!$H$83:$KV$83,0))) -> 7.239128626 | DY22: =(INDEX('Inputs (values)'!$H$84:$KV$86,1,MATCH('Calculations (values)'!DY$21,'Inputs (values)'!$H$83:'Inputs (values)'!$KV$83,0))/INDEX('Inputs (values)'!$H$84:$KV$86,1,MATCH('Inputs (values)'!$H$10,'Inputs (values)'!$H$83:$KV$83,0)))*(INDEX('Inputs (values)'!$H$62:$KV$62,1,MATCH('Inputs (values)'!$H$12,'Inputs (values)'!$H$83:$KV$83,0))/INDEX('Inputs (values)'!$H$62:$KV$62,1,MATCH('Inputs (values)'!$H$11,'Inputs (values)'!$H$83:$KV$83,0))) -> 7.35015954 | DZ22: =(INDEX('Inputs (values)'!$H$84:$KV$86,1,MATCH('Calculations (values)'!DZ$21,'Inputs (values)'!$H$83:'Inputs (values)'!$KV$83,0))/INDEX('Inputs (values)'!$H$84:$KV$86,1,MATCH('Inputs (values)'!$H$10,'Inputs (values)'!$H$83:$KV$83,0)))*(INDEX('Inputs (values)'!$H$62:$KV$62,1,MATCH('Inputs (values)'!$H$12,'Inputs (values)'!$H$83:$KV$83,0))/INDEX('Inputs (values)'!$H$62:$KV$62,1,MATCH('Inputs (values)'!$H$11,'Inputs (values)'!$H$83:$KV$83,0))) -> 7.462893403 | EA22: =(INDEX('Inputs (values)'!$H$84:$KV$86,1,MATCH('Calculations (values)'!EA$21,'Inputs (values)'!$H$83:'Inputs (values)'!$KV$83,0))/INDEX('Inputs (values)'!$H$84:$KV$86,1,MATCH('Inputs (values)'!$H$10,'Inputs (values)'!$H$83:$KV$83,0)))*(INDEX('Inputs (values)'!$H$62:$KV$62,1,MATCH('Inputs (values)'!$H$12,'Inputs (values)'!$H$83:$KV$83,0))/INDEX('Inputs (values)'!$H$62:$KV$62,1,MATCH('Inputs (values)'!$H$11,'Inputs (values)'!$H$83:$KV$83,0))) -> 7.577356334 | EB22: =(INDEX('Inputs (values)'!$H$84:$KV$86,1,MATCH('Calculations (values)'!EB$21,'Inputs (values)'!$H$83:'Inputs (values)'!$KV$83,0))/INDEX('Inputs (values)'!$H$84:$KV$86,1,MATCH('Inputs (values)'!$H$10,'Inputs (values)'!$H$83:$KV$83,0)))*(INDEX('Inputs (values)'!$H$62:$KV$62,1,MATCH('Inputs (values)'!$H$12,'Inputs (values)'!$H$83:$KV$83,0))/INDEX('Inputs (values)'!$H$62:$KV$62,1,MATCH('Inputs (values)'!$H$11,'Inputs (values)'!$H$83:$KV$83,0))) -> 7.693574852 | EC22: =(INDEX('Inputs (values)'!$H$84:$KV$86,1,MATCH('Calculations (values)'!EC$21,'Inputs (values)'!$H$83:'Inputs (values)'!$KV$83,0))/INDEX('Inputs (values)'!$H$84:$KV$86,1,MATCH('Inputs (values)'!$H$10,'Inputs (values)'!$H$83:$KV$83,0)))*(INDEX('Inputs (values)'!$H$62:$KV$62,1,MATCH('Inputs (values)'!$H$12,'Inputs (values)'!$H$83:$KV$83,0))/INDEX('Inputs (values)'!$H$62:$KV$62,1,MATCH('Inputs (values)'!$H$11,'Inputs (values)'!$H$83:$KV$83,0))) -> 7.811575884 | ED22: =(INDEX('Inputs (values)'!$H$84:$KV$86,1,MATCH('Calculations (values)'!ED$21,'Inputs (values)'!$H$83:'Inputs (values)'!$KV$83,0))/INDEX('Inputs (values)'!$H$84:$KV$86,1,MATCH('Inputs (values)'!$H$10,'Inputs (values)'!$H$83:$KV$83,0)))*(INDEX('Inputs (values)'!$H$62:$KV$62,1,MATCH('Inputs (values)'!$H$12,'Inputs (values)'!$H$83:$KV$83,0))/INDEX('Inputs (values)'!$H$62:$KV$62,1,MATCH('Inputs (values)'!$H$11,'Inputs (values)'!$H$83:$KV$83,0))) -> 7.93138677 | EE22: =(INDEX('Inputs (values)'!$H$84:$KV$86,1,MATCH('Calculations (values)'!EE$21,'Inputs (values)'!$H$83:'Inputs (values)'!$KV$83,0))/INDEX('Inputs (values)'!$H$84:$KV$86,1,MATCH('Inputs (values)'!$H$10,'Inputs (values)'!$H$83:$KV$83,0)))*(INDEX('Inputs (values)'!$H$62:$KV$62,1,MATCH('Inputs (values)'!$H$12,'Inputs (values)'!$H$83:$KV$83,0))/INDEX('Inputs (values)'!$H$62:$KV$62,1,MATCH('Inputs (values)'!$H$11,'Inputs (values)'!$H$83:$KV$83,0))) -> 8.053035268 | EF22: =(INDEX('Inputs (values)'!$H$84:$KV$86,1,MATCH('Calculations (values)'!EF$21,'Inputs (values)'!$H$83:'Inputs (values)'!$KV$83,0))/INDEX('Inputs (values)'!$H$84:$KV$86,1,MATCH('Inputs (values)'!$H$10,'Inputs (values)'!$H$83:$KV$83,0)))*(INDEX('Inputs (values)'!$H$62:$KV$62,1,MATCH('Inputs (values)'!$H$12,'Inputs (values)'!$H$83:$KV$83,0))/INDEX('Inputs (values)'!$H$62:$KV$62,1,MATCH('Inputs (values)'!$H$11,'Inputs (values)'!$H$83:$KV$83,0))) -> 8.176549563 | EG22: =(INDEX('Inputs (values)'!$H$84:$KV$86,1,MATCH('Calculations (values)'!EG$21,'Inputs (values)'!$H$83:'Inputs (values)'!$KV$83,0))/INDEX('Inputs (values)'!$H$84:$KV$86,1,MATCH('Inputs (values)'!$H$10,'Inputs (values)'!$H$83:$KV$83,0)))*(INDEX('Inputs (values)'!$H$62:$KV$62,1,MATCH('Inputs (values)'!$H$12,'Inputs (values)'!$H$83:$KV$83,0))/INDEX('Inputs (values)'!$H$62:$KV$62,1,MATCH('Inputs (values)'!$H$11,'Inputs (values)'!$H$83:$KV$83,0))) -> 8.301958272 | EH22: =(INDEX('Inputs (values)'!$H$84:$KV$86,1,MATCH('Calculations (values)'!EH$21,'Inputs (values)'!$H$83:'Inputs (values)'!$KV$83,0))/INDEX('Inputs (values)'!$H$84:$KV$86,1,MATCH('Inputs (values)'!$H$10,'Inputs (values)'!$H$83:$KV$83,0)))*(INDEX('Inputs (values)'!$H$62:$KV$62,1,MATCH('Inputs (values)'!$H$12,'Inputs (values)'!$H$83:$KV$83,0))/INDEX('Inputs (values)'!$H$62:$KV$62,1,MATCH('Inputs (values)'!$H$11,'Inputs (values)'!$H$83:$KV$83,0))) -> 8.42929045 | EI22: =(INDEX('Inputs (values)'!$H$84:$KV$86,1,MATCH('Calculations (values)'!EI$21,'Inputs (values)'!$H$83:'Inputs (values)'!$KV$83,0))/INDEX('Inputs (values)'!$H$84:$KV$86,1,MATCH('Inputs (values)'!$H$10,'Inputs (values)'!$H$83:$KV$83,0)))*(INDEX('Inputs (values)'!$H$62:$KV$62,1,MATCH('Inputs (values)'!$H$12,'Inputs (values)'!$H$83:$KV$83,0))/INDEX('Inputs (values)'!$H$62:$KV$62,1,MATCH('Inputs (values)'!$H$11,'Inputs (values)'!$H$83:$KV$83,0))) -> 8.558575599 | EJ22: =(INDEX('Inputs (values)'!$H$84:$KV$86,1,MATCH('Calculations (values)'!EJ$21,'Inputs (values)'!$H$83:'Inputs (values)'!$KV$83,0))/INDEX('Inputs (values)'!$H$84:$KV$86,1,MATCH('Inputs (values)'!$H$10,'Inputs (values)'!$H$83:$KV$83,0)))*(INDEX('Inputs (values)'!$H$62:$KV$62,1,MATCH('Inputs (values)'!$H$12,'Inputs (values)'!$H$83:$KV$83,0))/INDEX('Inputs (values)'!$H$62:$KV$62,1,MATCH('Inputs (values)'!$H$11,'Inputs (values)'!$H$83:$KV$83,0))) -> 8.689843674 | EK22: =(INDEX('Inputs (values)'!$H$84:$KV$86,1,MATCH('Calculations (values)'!EK$21,'Inputs (values)'!$H$83:'Inputs (values)'!$KV$83,0))/INDEX('Inputs (values)'!$H$84:$KV$86,1,MATCH('Inputs (values)'!$H$10,'Inputs (values)'!$H$83:$KV$83,0)))*(INDEX('Inputs (values)'!$H$62:$KV$62,1,MATCH('Inputs (values)'!$H$12,'Inputs (values)'!$H$83:$KV$83,0))/INDEX('Inputs (values)'!$H$62:$KV$62,1,MATCH('Inputs (values)'!$H$11,'Inputs (values)'!$H$83:$KV$83,0))) -> 8.823125086 | EL22: =(INDEX('Inputs (values)'!$H$84:$KV$86,1,MATCH('Calculations (values)'!EL$21,'Inputs (values)'!$H$83:'Inputs (values)'!$KV$83,0))/INDEX('Inputs (values)'!$H$84:$KV$86,1,MATCH('Inputs (values)'!$H$10,'Inputs (values)'!$H$83:$KV$83,0)))*(INDEX('Inputs (values)'!$H$62:$KV$62,1,MATCH('Inputs (values)'!$H$12,'Inputs (values)'!$H$83:$KV$83,0))/INDEX('Inputs (values)'!$H$62:$KV$62,1,MATCH('Inputs (values)'!$H$11,'Inputs (values)'!$H$83:$KV$83,0))) -> 8.958450717 | EM22: =(INDEX('Inputs (values)'!$H$84:$KV$86,1,MATCH('Calculations (values)'!EM$21,'Inputs (values)'!$H$83:'Inputs (values)'!$KV$83,0))/INDEX('Inputs (values)'!$H$84:$KV$86,1,MATCH('Inputs (values)'!$H$10,'Inputs (values)'!$H$83:$KV$83,0)))*(INDEX('Inputs (values)'!$H$62:$KV$62,1,MATCH('Inputs (values)'!$H$12,'Inputs (values)'!$H$83:$KV$83,0))/INDEX('Inputs (values)'!$H$62:$KV$62,1,MATCH('Inputs (values)'!$H$11,'Inputs (values)'!$H$83:$KV$83,0))) -> 9.095851918 | EN22: =(INDEX('Inputs (values)'!$H$84:$KV$86,1,MATCH('Calculations (values)'!EN$21,'Inputs (values)'!$H$83:'Inputs (values)'!$KV$83,0))/INDEX('Inputs (values)'!$H$84:$KV$86,1,MATCH('Inputs (values)'!$H$10,'Inputs (values)'!$H$83:$KV$83,0)))*(INDEX('Inputs (values)'!$H$62:$KV$62,1,MATCH('Inputs (values)'!$H$12,'Inputs (values)'!$H$83:$KV$83,0))/INDEX('Inputs (values)'!$H$62:$KV$62,1,MATCH('Inputs (values)'!$H$11,'Inputs (values)'!$H$83:$KV$83,0))) -> 9.235360526 | EO22: =(INDEX('Inputs (values)'!$H$84:$KV$86,1,MATCH('Calculations (values)'!EO$21,'Inputs (values)'!$H$83:'Inputs (values)'!$KV$83,0))/INDEX('Inputs (values)'!$H$84:$KV$86,1,MATCH('Inputs (values)'!$H$10,'Inputs (values)'!$H$83:$KV$83,0)))*(INDEX('Inputs (values)'!$H$62:$KV$62,1,MATCH('Inputs (values)'!$H$12,'Inputs (values)'!$H$83:$KV$83,0))/INDEX('Inputs (values)'!$H$62:$KV$62,1,MATCH('Inputs (values)'!$H$11,'Inputs (values)'!$H$83:$KV$83,0))) -> 9.377008862 | EP22: =(INDEX('Inputs (values)'!$H$84:$KV$86,1,MATCH('Calculations (values)'!EP$21,'Inputs (values)'!$H$83:'Inputs (values)'!$KV$83,0))/INDEX('Inputs (values)'!$H$84:$KV$86,1,MATCH('Inputs (values)'!$H$10,'Inputs (values)'!$H$83:$KV$83,0)))*(INDEX('Inputs (values)'!$H$62:$KV$62,1,MATCH('Inputs (values)'!$H$12,'Inputs (values)'!$H$83:$KV$83,0))/INDEX('Inputs (values)'!$H$62:$KV$62,1,MATCH('Inputs (values)'!$H$11,'Inputs (values)'!$H$83:$KV$83,0))) -> 9.520829744 | EQ22: =(INDEX('Inputs (values)'!$H$84:$KV$86,1,MATCH('Calculations (values)'!EQ$21,'Inputs (values)'!$H$83:'Inputs (values)'!$KV$83,0))/INDEX('Inputs (values)'!$H$84:$KV$86,1,MATCH('Inputs (values)'!$H$10,'Inputs (values)'!$H$83:$KV$83,0)))*(INDEX('Inputs (values)'!$H$62:$KV$62,1,MATCH('Inputs (values)'!$H$12,'Inputs (values)'!$H$83:$KV$83,0))/INDEX('Inputs (values)'!$H$62:$KV$62,1,MATCH('Inputs (values)'!$H$11,'Inputs (values)'!$H$83:$KV$83,0))) -> 9.666856495 | ER22: =(INDEX('Inputs (values)'!$H$84:$KV$86,1,MATCH('Calculations (values)'!ER$21,'Inputs (values)'!$H$83:'Inputs (values)'!$KV$83,0))/INDEX('Inputs (values)'!$H$84:$KV$86,1,MATCH('Inputs (values)'!$H$10,'Inputs (values)'!$H$83:$KV$83,0)))*(INDEX('Inputs (values)'!$H$62:$KV$62,1,MATCH('Inputs (values)'!$H$12,'Inputs (values)'!$H$83:$KV$83,0))/INDEX('Inputs (values)'!$H$62:$KV$62,1,MATCH('Inputs (values)'!$H$11,'Inputs (values)'!$H$83:$KV$83,0))) -> 9.815122947 | ES22: =(INDEX('Inputs (values)'!$H$84:$KV$86,1,MATCH('Calculations (values)'!ES$21,'Inputs (values)'!$H$83:'Inputs (values)'!$KV$83,0))/INDEX('Inputs (values)'!$H$84:$KV$86,1,MATCH('Inputs (values)'!$H$10,'Inputs (values)'!$H$83:$KV$83,0)))*(INDEX('Inputs (values)'!$H$62:$KV$62,1,MATCH('Inputs (values)'!$H$12,'Inputs (values)'!$H$83:$KV$83,0))/INDEX('Inputs (values)'!$H$62:$KV$62,1,MATCH('Inputs (values)'!$H$11,'Inputs (values)'!$H$83:$KV$83,0))) -> 9.965663451 | ET22: =(INDEX('Inputs (values)'!$H$84:$KV$86,1,MATCH('Calculations (values)'!ET$21,'Inputs (values)'!$H$83:'Inputs (values)'!$KV$83,0))/INDEX('Inputs (values)'!$H$84:$KV$86,1,MATCH('Inputs (values)'!$H$10,'Inputs (values)'!$H$83:$KV$83,0)))*(INDEX('Inputs (values)'!$H$62:$KV$62,1,MATCH('Inputs (values)'!$H$12,'Inputs (values)'!$H$83:$KV$83,0))/INDEX('Inputs (values)'!$H$62:$KV$62,1,MATCH('Inputs (values)'!$H$11,'Inputs (values)'!$H$83:$KV$83,0))) -> 10.11851289 | EU22: =(INDEX('Inputs (values)'!$H$84:$KV$86,1,MATCH('Calculations (values)'!EU$21,'Inputs (values)'!$H$83:'Inputs (values)'!$KV$83,0))/INDEX('Inputs (values)'!$H$84:$KV$86,1,MATCH('Inputs (values)'!$H$10,'Inputs (values)'!$H$83:$KV$83,0)))*(INDEX('Inputs (values)'!$H$62:$KV$62,1,MATCH('Inputs (values)'!$H$12,'Inputs (values)'!$H$83:$KV$83,0))/INDEX('Inputs (values)'!$H$62:$KV$62,1,MATCH('Inputs (values)'!$H$11,'Inputs (values)'!$H$83:$KV$83,0))) -> 10.27370667 | EV22: =(INDEX('Inputs (values)'!$H$84:$KV$86,1,MATCH('Calculations (values)'!EV$21,'Inputs (values)'!$H$83:'Inputs (values)'!$KV$83,0))/INDEX('Inputs (values)'!$H$84:$KV$86,1,MATCH('Inputs (values)'!$H$10,'Inputs (values)'!$H$83:$KV$83,0)))*(INDEX('Inputs (values)'!$H$62:$KV$62,1,MATCH('Inputs (values)'!$H$12,'Inputs (values)'!$H$83:$KV$83,0))/INDEX('Inputs (values)'!$H$62:$KV$62,1,MATCH('Inputs (values)'!$H$11,'Inputs (values)'!$H$83:$KV$83,0))) -> 10.43128075 | EW22: =(INDEX('Inputs (values)'!$H$84:$KV$86,1,MATCH('Calculations (values)'!EW$21,'Inputs (values)'!$H$83:'Inputs (values)'!$KV$83,0))/INDEX('Inputs (values)'!$H$84:$KV$86,1,MATCH('Inputs (values)'!$H$10,'Inputs (values)'!$H$83:$KV$83,0)))*(INDEX('Inputs (values)'!$H$62:$KV$62,1,MATCH('Inputs (values)'!$H$12,'Inputs (values)'!$H$83:$KV$83,0))/INDEX('Inputs (values)'!$H$62:$KV$62,1,MATCH('Inputs (values)'!$H$11,'Inputs (values)'!$H$83:$KV$83,0))) -> 10.59127164 | EX22: =(INDEX('Inputs (values)'!$H$84:$KV$86,1,MATCH('Calculations (values)'!EX$21,'Inputs (values)'!$H$83:'Inputs (values)'!$KV$83,0))/INDEX('Inputs (values)'!$H$84:$KV$86,1,MATCH('Inputs (values)'!$H$10,'Inputs (values)'!$H$83:$KV$83,0)))*(INDEX('Inputs (values)'!$H$62:$KV$62,1,MATCH('Inputs (values)'!$H$12,'Inputs (values)'!$H$83:$KV$83,0))/INDEX('Inputs (values)'!$H$62:$KV$62,1,MATCH('Inputs (values)'!$H$11,'Inputs (values)'!$H$83:$KV$83,0))) -> 10.75371641 | EY22: =(INDEX('Inputs (values)'!$H$84:$KV$86,1,MATCH('Calculations (values)'!EY$21,'Inputs (values)'!$H$83:'Inputs (values)'!$KV$83,0))/INDEX('Inputs (values)'!$H$84:$KV$86,1,MATCH('Inputs (values)'!$H$10,'Inputs (values)'!$H$83:$KV$83,0)))*(INDEX('Inputs (values)'!$H$62:$KV$62,1,MATCH('Inputs (values)'!$H$12,'Inputs (values)'!$H$83:$KV$83,0))/INDEX('Inputs (values)'!$H$62:$KV$62,1,MATCH('Inputs (values)'!$H$11,'Inputs (values)'!$H$83:$KV$83,0))) -> 10.91865269 | EZ22: =(INDEX('Inputs (values)'!$H$84:$KV$86,1,MATCH('Calculations (values)'!EZ$21,'Inputs (values)'!$H$83:'Inputs (values)'!$KV$83,0))/INDEX('Inputs (values)'!$H$84:$KV$86,1,MATCH('Inputs (values)'!$H$10,'Inputs (values)'!$H$83:$KV$83,0)))*(INDEX('Inputs (values)'!$H$62:$KV$62,1,MATCH('Inputs (values)'!$H$12,'Inputs (values)'!$H$83:$KV$83,0))/INDEX('Inputs (values)'!$H$62:$KV$62,1,MATCH('Inputs (values)'!$H$11,'Inputs (values)'!$H$83:$KV$83,0))) -> 11.0861187 | FA22: =(INDEX('Inputs (values)'!$H$84:$KV$86,1,MATCH('Calculations (values)'!FA$21,'Inputs (values)'!$H$83:'Inputs (values)'!$KV$83,0))/INDEX('Inputs (values)'!$H$84:$KV$86,1,MATCH('Inputs (values)'!$H$10,'Inputs (values)'!$H$83:$KV$83,0)))*(INDEX('Inputs (values)'!$H$62:$KV$62,1,MATCH('Inputs (values)'!$H$12,'Inputs (values)'!$H$83:$KV$83,0))/INDEX('Inputs (values)'!$H$62:$KV$62,1,MATCH('Inputs (values)'!$H$11,'Inputs (values)'!$H$83:$KV$83,0))) -> 11.25615324 | FB22: =(INDEX('Inputs (values)'!$H$84:$KV$86,1,MATCH('Calculations (values)'!FB$21,'Inputs (values)'!$H$83:'Inputs (values)'!$KV$83,0))/INDEX('Inputs (values)'!$H$84:$KV$86,1,MATCH('Inputs (values)'!$H$10,'Inputs (values)'!$H$83:$KV$83,0)))*(INDEX('Inputs (values)'!$H$62:$KV$62,1,MATCH('Inputs (values)'!$H$12,'Inputs (values)'!$H$83:$KV$83,0))/INDEX('Inputs (values)'!$H$62:$KV$62,1,MATCH('Inputs (values)'!$H$11,'Inputs (values)'!$H$83:$KV$83,0))) -> 11.4287957 | FC22: =(INDEX('Inputs (values)'!$H$84:$KV$86,1,MATCH('Calculations (values)'!FC$21,'Inputs (values)'!$H$83:'Inputs (values)'!$KV$83,0))/INDEX('Inputs (values)'!$H$84:$KV$86,1,MATCH('Inputs (values)'!$H$10,'Inputs (values)'!$H$83:$KV$83,0)))*(INDEX('Inputs (values)'!$H$62:$KV$62,1,MATCH('Inputs (values)'!$H$12,'Inputs (values)'!$H$83:$KV$83,0))/INDEX('Inputs (values)'!$H$62:$KV$62,1,MATCH('Inputs (values)'!$H$11,'Inputs (values)'!$H$83:$KV$83,0))) -> 11.60408608 | FD22: =(INDEX('Inputs (values)'!$H$84:$KV$86,1,MATCH('Calculations (values)'!FD$21,'Inputs (values)'!$H$83:'Inputs (values)'!$KV$83,0))/INDEX('Inputs (values)'!$H$84:$KV$86,1,MATCH('Inputs (values)'!$H$10,'Inputs (values)'!$H$83:$KV$83,0)))*(INDEX('Inputs (values)'!$H$62:$KV$62,1,MATCH('Inputs (values)'!$H$12,'Inputs (values)'!$H$83:$KV$83,0))/INDEX('Inputs (values)'!$H$62:$KV$62,1,MATCH('Inputs (values)'!$H$11,'Inputs (values)'!$H$83:$KV$83,0))) -> 11.782065 | FE22: =(INDEX('Inputs (values)'!$H$84:$KV$86,1,MATCH('Calculations (values)'!FE$21,'Inputs (values)'!$H$83:'Inputs (values)'!$KV$83,0))/INDEX('Inputs (values)'!$H$84:$KV$86,1,MATCH('Inputs (values)'!$H$10,'Inputs (values)'!$H$83:$KV$83,0)))*(INDEX('Inputs (values)'!$H$62:$KV$62,1,MATCH('Inputs (values)'!$H$12,'Inputs (values)'!$H$83:$KV$83,0))/INDEX('Inputs (values)'!$H$62:$KV$62,1,MATCH('Inputs (values)'!$H$11,'Inputs (values)'!$H$83:$KV$83,0))) -> 11.96277369 | FF22: =(INDEX('Inputs (values)'!$H$84:$KV$86,1,MATCH('Calculations (values)'!FF$21,'Inputs (values)'!$H$83:'Inputs (values)'!$KV$83,0))/INDEX('Inputs (values)'!$H$84:$KV$86,1,MATCH('Inputs (values)'!$H$10,'Inputs (values)'!$H$83:$KV$83,0)))*(INDEX('Inputs (values)'!$H$62:$KV$62,1,MATCH('Inputs (values)'!$H$12,'Inputs (values)'!$H$83:$KV$83,0))/INDEX('Inputs (values)'!$H$62:$KV$62,1,MATCH('Inputs (values)'!$H$11,'Inputs (values)'!$H$83:$KV$83,0))) -> 12.14625402 | FG22: =(INDEX('Inputs (values)'!$H$84:$KV$86,1,MATCH('Calculations (values)'!FG$21,'Inputs (values)'!$H$83:'Inputs (values)'!$KV$83,0))/INDEX('Inputs (values)'!$H$84:$KV$86,1,MATCH('Inputs (values)'!$H$10,'Inputs (values)'!$H$83:$KV$83,0)))*(INDEX('Inputs (values)'!$H$62:$KV$62,1,MATCH('Inputs (values)'!$H$12,'Inputs (values)'!$H$83:$KV$83,0))/INDEX('Inputs (values)'!$H$62:$KV$62,1,MATCH('Inputs (values)'!$H$11,'Inputs (values)'!$H$83:$KV$83,0))) -> 12.3325485 | FH22: =(INDEX('Inputs (values)'!$H$84:$KV$86,1,MATCH('Calculations (values)'!FH$21,'Inputs (values)'!$H$83:'Inputs (values)'!$KV$83,0))/INDEX('Inputs (values)'!$H$84:$KV$86,1,MATCH('Inputs (values)'!$H$10,'Inputs (values)'!$H$83:$KV$83,0)))*(INDEX('Inputs (values)'!$H$62:$KV$62,1,MATCH('Inputs (values)'!$H$12,'Inputs (values)'!$H$83:$KV$83,0))/INDEX('Inputs (values)'!$H$62:$KV$62,1,MATCH('Inputs (values)'!$H$11,'Inputs (values)'!$H$83:$KV$83,0))) -> 12.52170029 | FI22: =(INDEX('Inputs (values)'!$H$84:$KV$86,1,MATCH('Calculations (values)'!FI$21,'Inputs (values)'!$H$83:'Inputs (values)'!$KV$83,0))/INDEX('Inputs (values)'!$H$84:$KV$86,1,MATCH('Inputs (values)'!$H$10,'Inputs (values)'!$H$83:$KV$83,0)))*(INDEX('Inputs (values)'!$H$62:$KV$62,1,MATCH('Inputs (values)'!$H$12,'Inputs (values)'!$H$83:$KV$83,0))/INDEX('Inputs (values)'!$H$62:$KV$62,1,MATCH('Inputs (values)'!$H$11,'Inputs (values)'!$H$83:$KV$83,0))) -> 12.71375322 | FJ22: =(INDEX('Inputs (values)'!$H$84:$KV$86,1,MATCH('Calculations (values)'!FJ$21,'Inputs (values)'!$H$83:'Inputs (values)'!$KV$83,0))/INDEX('Inputs (values)'!$H$84:$KV$86,1,MATCH('Inputs (values)'!$H$10,'Inputs (values)'!$H$83:$KV$83,0)))*(INDEX('Inputs (values)'!$H$62:$KV$62,1,MATCH('Inputs (values)'!$H$12,'Inputs (values)'!$H$83:$KV$83,0))/INDEX('Inputs (values)'!$H$62:$KV$62,1,MATCH('Inputs (values)'!$H$11,'Inputs (values)'!$H$83:$KV$83,0))) -> 12.90875177 | FK22: =(INDEX('Inputs (values)'!$H$84:$KV$86,1,MATCH('Calculations (values)'!FK$21,'Inputs (values)'!$H$83:'Inputs (values)'!$KV$83,0))/INDEX('Inputs (values)'!$H$84:$KV$86,1,MATCH('Inputs (values)'!$H$10,'Inputs (values)'!$H$83:$KV$83,0)))*(INDEX('Inputs (values)'!$H$62:$KV$62,1,MATCH('Inputs (values)'!$H$12,'Inputs (values)'!$H$83:$KV$83,0))/INDEX('Inputs (values)'!$H$62:$KV$62,1,MATCH('Inputs (values)'!$H$11,'Inputs (values)'!$H$83:$KV$83,0))) -> 13.10674114 | FL22: =(INDEX('Inputs (values)'!$H$84:$KV$86,1,MATCH('Calculations (values)'!FL$21,'Inputs (values)'!$H$83:'Inputs (values)'!$KV$83,0))/INDEX('Inputs (values)'!$H$84:$KV$86,1,MATCH('Inputs (values)'!$H$10,'Inputs (values)'!$H$83:$KV$83,0)))*(INDEX('Inputs (values)'!$H$62:$KV$62,1,MATCH('Inputs (values)'!$H$12,'Inputs (values)'!$H$83:$KV$83,0))/INDEX('Inputs (values)'!$H$62:$KV$62,1,MATCH('Inputs (values)'!$H$11,'Inputs (values)'!$H$83:$KV$83,0))) -> 13.3077672 | FM22: =(INDEX('Inputs (values)'!$H$84:$KV$86,1,MATCH('Calculations (values)'!FM$21,'Inputs (values)'!$H$83:'Inputs (values)'!$KV$83,0))/INDEX('Inputs (values)'!$H$84:$KV$86,1,MATCH('Inputs (values)'!$H$10,'Inputs (values)'!$H$83:$KV$83,0)))*(INDEX('Inputs (values)'!$H$62:$KV$62,1,MATCH('Inputs (values)'!$H$12,'Inputs (values)'!$H$83:$KV$83,0))/INDEX('Inputs (values)'!$H$62:$KV$62,1,MATCH('Inputs (values)'!$H$11,'Inputs (values)'!$H$83:$KV$83,0))) -> 13.51187651 | FN22: =(INDEX('Inputs (values)'!$H$84:$KV$86,1,MATCH('Calculations (values)'!FN$21,'Inputs (values)'!$H$83:'Inputs (values)'!$KV$83,0))/INDEX('Inputs (values)'!$H$84:$KV$86,1,MATCH('Inputs (values)'!$H$10,'Inputs (values)'!$H$83:$KV$83,0)))*(INDEX('Inputs (values)'!$H$62:$KV$62,1,MATCH('Inputs (values)'!$H$12,'Inputs (values)'!$H$83:$KV$83,0))/INDEX('Inputs (values)'!$H$62:$KV$62,1,MATCH('Inputs (values)'!$H$11,'Inputs (values)'!$H$83:$KV$83,0))) -> 13.71911637 | FO22: =(INDEX('Inputs (values)'!$H$84:$KV$86,1,MATCH('Calculations (values)'!FO$21,'Inputs (values)'!$H$83:'Inputs (values)'!$KV$83,0))/INDEX('Inputs (values)'!$H$84:$KV$86,1,MATCH('Inputs (values)'!$H$10,'Inputs (values)'!$H$83:$KV$83,0)))*(INDEX('Inputs (values)'!$H$62:$KV$62,1,MATCH('Inputs (values)'!$H$12,'Inputs (values)'!$H$83:$KV$83,0))/INDEX('Inputs (values)'!$H$62:$KV$62,1,MATCH('Inputs (values)'!$H$11,'Inputs (values)'!$H$83:$KV$83,0))) -> 13.92953479 | FP22: =(INDEX('Inputs (values)'!$H$84:$KV$86,1,MATCH('Calculations (values)'!FP$21,'Inputs (values)'!$H$83:'Inputs (values)'!$KV$83,0))/INDEX('Inputs (values)'!$H$84:$KV$86,1,MATCH('Inputs (values)'!$H$10,'Inputs (values)'!$H$83:$KV$83,0)))*(INDEX('Inputs (values)'!$H$62:$KV$62,1,MATCH('Inputs (values)'!$H$12,'Inputs (values)'!$H$83:$KV$83,0))/INDEX('Inputs (values)'!$H$62:$KV$62,1,MATCH('Inputs (values)'!$H$11,'Inputs (values)'!$H$83:$KV$83,0))) -> 14.14318053 | FQ22: =(INDEX('Inputs (values)'!$H$84:$KV$86,1,MATCH('Calculations (values)'!FQ$21,'Inputs (values)'!$H$83:'Inputs (values)'!$KV$83,0))/INDEX('Inputs (values)'!$H$84:$KV$86,1,MATCH('Inputs (values)'!$H$10,'Inputs (values)'!$H$83:$KV$83,0)))*(INDEX('Inputs (values)'!$H$62:$KV$62,1,MATCH('Inputs (values)'!$H$12,'Inputs (values)'!$H$83:$KV$83,0))/INDEX('Inputs (values)'!$H$62:$KV$62,1,MATCH('Inputs (values)'!$H$11,'Inputs (values)'!$H$83:$KV$83,0))) -> 14.36010308 | FR22: =(INDEX('Inputs (values)'!$H$84:$KV$86,1,MATCH('Calculations (values)'!FR$21,'Inputs (values)'!$H$83:'Inputs (values)'!$KV$83,0))/INDEX('Inputs (values)'!$H$84:$KV$86,1,MATCH('Inputs (values)'!$H$10,'Inputs (values)'!$H$83:$KV$83,0)))*(INDEX('Inputs (values)'!$H$62:$KV$62,1,MATCH('Inputs (values)'!$H$12,'Inputs (values)'!$H$83:$KV$83,0))/INDEX('Inputs (values)'!$H$62:$KV$62,1,MATCH('Inputs (values)'!$H$11,'Inputs (values)'!$H$83:$KV$83,0))) -> 14.58035271 | FS22: =(INDEX('Inputs (values)'!$H$84:$KV$86,1,MATCH('Calculations (values)'!FS$21,'Inputs (values)'!$H$83:'Inputs (values)'!$KV$83,0))/INDEX('Inputs (values)'!$H$84:$KV$86,1,MATCH('Inputs (values)'!$H$10,'Inputs (values)'!$H$83:$KV$83,0)))*(INDEX('Inputs (values)'!$H$62:$KV$62,1,MATCH('Inputs (values)'!$H$12,'Inputs (values)'!$H$83:$KV$83,0))/INDEX('Inputs (values)'!$H$62:$KV$62,1,MATCH('Inputs (values)'!$H$11,'Inputs (values)'!$H$83:$KV$83,0))) -> 14.80398044 | FT22: =(INDEX('Inputs (values)'!$H$84:$KV$86,1,MATCH('Calculations (values)'!FT$21,'Inputs (values)'!$H$83:'Inputs (values)'!$KV$83,0))/INDEX('Inputs (values)'!$H$84:$KV$86,1,MATCH('Inputs (values)'!$H$10,'Inputs (values)'!$H$83:$KV$83,0)))*(INDEX('Inputs (values)'!$H$62:$KV$62,1,MATCH('Inputs (values)'!$H$12,'Inputs (values)'!$H$83:$KV$83,0))/INDEX('Inputs (values)'!$H$62:$KV$62,1,MATCH('Inputs (values)'!$H$11,'Inputs (values)'!$H$83:$KV$83,0))) -> 15.03103808 | FU22: =(INDEX('Inputs (values)'!$H$84:$KV$86,1,MATCH('Calculations (values)'!FU$21,'Inputs (values)'!$H$83:'Inputs (values)'!$KV$83,0))/INDEX('Inputs (values)'!$H$84:$KV$86,1,MATCH('Inputs (values)'!$H$10,'Inputs (values)'!$H$83:$KV$83,0)))*(INDEX('Inputs (values)'!$H$62:$KV$62,1,MATCH('Inputs (values)'!$H$12,'Inputs (values)'!$H$83:$KV$83,0))/INDEX('Inputs (values)'!$H$62:$KV$62,1,MATCH('Inputs (values)'!$H$11,'Inputs (values)'!$H$83:$KV$83,0))) -> 15.26157825 | FV22: =(INDEX('Inputs (values)'!$H$84:$KV$86,1,MATCH('Calculations (values)'!FV$21,'Inputs (values)'!$H$83:'Inputs (values)'!$KV$83,0))/INDEX('Inputs (values)'!$H$84:$KV$86,1,MATCH('Inputs (values)'!$H$10,'Inputs (values)'!$H$83:$KV$83,0)))*(INDEX('Inputs (values)'!$H$62:$KV$62,1,MATCH('Inputs (values)'!$H$12,'Inputs (values)'!$H$83:$KV$83,0))/INDEX('Inputs (values)'!$H$62:$KV$62,1,MATCH('Inputs (values)'!$H$11,'Inputs (values)'!$H$83:$KV$83,0))) -> 15.49565434 | FW22: =(INDEX('Inputs (values)'!$H$84:$KV$86,1,MATCH('Calculations (values)'!FW$21,'Inputs (values)'!$H$83:'Inputs (values)'!$KV$83,0))/INDEX('Inputs (values)'!$H$84:$KV$86,1,MATCH('Inputs (values)'!$H$10,'Inputs (values)'!$H$83:$KV$83,0)))*(INDEX('Inputs (values)'!$H$62:$KV$62,1,MATCH('Inputs (values)'!$H$12,'Inputs (values)'!$H$83:$KV$83,0))/INDEX('Inputs (values)'!$H$62:$KV$62,1,MATCH('Inputs (values)'!$H$11,'Inputs (values)'!$H$83:$KV$83,0))) -> 15.73332061 | FX22: =(INDEX('Inputs (values)'!$H$84:$KV$86,1,MATCH('Calculations (values)'!FX$21,'Inputs (values)'!$H$83:'Inputs (values)'!$KV$83,0))/INDEX('Inputs (values)'!$H$84:$KV$86,1,MATCH('Inputs (values)'!$H$10,'Inputs (values)'!$H$83:$KV$83,0)))*(INDEX('Inputs (values)'!$H$62:$KV$62,1,MATCH('Inputs (values)'!$H$12,'Inputs (values)'!$H$83:$KV$83,0))/INDEX('Inputs (values)'!$H$62:$KV$62,1,MATCH('Inputs (values)'!$H$11,'Inputs (values)'!$H$83:$KV$83,0))) -> 15.97463211 | FY22: =(INDEX('Inputs (values)'!$H$84:$KV$86,1,MATCH('Calculations (values)'!FY$21,'Inputs (values)'!$H$83:'Inputs (values)'!$KV$83,0))/INDEX('Inputs (values)'!$H$84:$KV$86,1,MATCH('Inputs (values)'!$H$10,'Inputs (values)'!$H$83:$KV$83,0)))*(INDEX('Inputs (values)'!$H$62:$KV$62,1,MATCH('Inputs (values)'!$H$12,'Inputs (values)'!$H$83:$KV$83,0))/INDEX('Inputs (values)'!$H$62:$KV$62,1,MATCH('Inputs (values)'!$H$11,'Inputs (values)'!$H$83:$KV$83,0))) -> 16.21964475 | FZ22: =(INDEX('Inputs (values)'!$H$84:$KV$86,1,MATCH('Calculations (values)'!FZ$21,'Inputs (values)'!$H$83:'Inputs (values)'!$KV$83,0))/INDEX('Inputs (values)'!$H$84:$KV$86,1,MATCH('Inputs (values)'!$H$10,'Inputs (values)'!$H$83:$KV$83,0)))*(INDEX('Inputs (values)'!$H$62:$KV$62,1,MATCH('Inputs (values)'!$H$12,'Inputs (values)'!$H$83:$KV$83,0))/INDEX('Inputs (values)'!$H$62:$KV$62,1,MATCH('Inputs (values)'!$H$11,'Inputs (values)'!$H$83:$KV$83,0))) -> 16.46841529 | GA22: =(INDEX('Inputs (values)'!$H$84:$KV$86,1,MATCH('Calculations (values)'!GA$21,'Inputs (values)'!$H$83:'Inputs (values)'!$KV$83,0))/INDEX('Inputs (values)'!$H$84:$KV$86,1,MATCH('Inputs (values)'!$H$10,'Inputs (values)'!$H$83:$KV$83,0)))*(INDEX('Inputs (values)'!$H$62:$KV$62,1,MATCH('Inputs (values)'!$H$12,'Inputs (values)'!$H$83:$KV$83,0))/INDEX('Inputs (values)'!$H$62:$KV$62,1,MATCH('Inputs (values)'!$H$11,'Inputs (values)'!$H$83:$KV$83,0))) -> 16.72100138 | GB22: =(INDEX('Inputs (values)'!$H$84:$KV$86,1,MATCH('Calculations (values)'!GB$21,'Inputs (values)'!$H$83:'Inputs (values)'!$KV$83,0))/INDEX('Inputs (values)'!$H$84:$KV$86,1,MATCH('Inputs (values)'!$H$10,'Inputs (values)'!$H$83:$KV$83,0)))*(INDEX('Inputs (values)'!$H$62:$KV$62,1,MATCH('Inputs (values)'!$H$12,'Inputs (values)'!$H$83:$KV$83,0))/INDEX('Inputs (values)'!$H$62:$KV$62,1,MATCH('Inputs (values)'!$H$11,'Inputs (values)'!$H$83:$KV$83,0))) -> 16.97746154 | GC22: =(INDEX('Inputs (values)'!$H$84:$KV$86,1,MATCH('Calculations (values)'!GC$21,'Inputs (values)'!$H$83:'Inputs (values)'!$KV$83,0))/INDEX('Inputs (values)'!$H$84:$KV$86,1,MATCH('Inputs (values)'!$H$10,'Inputs (values)'!$H$83:$KV$83,0)))*(INDEX('Inputs (values)'!$H$62:$KV$62,1,MATCH('Inputs (values)'!$H$12,'Inputs (values)'!$H$83:$KV$83,0))/INDEX('Inputs (values)'!$H$62:$KV$62,1,MATCH('Inputs (values)'!$H$11,'Inputs (values)'!$H$83:$KV$83,0))) -> 17.23785519 | GD22: =(INDEX('Inputs (values)'!$H$84:$KV$86,1,MATCH('Calculations (values)'!GD$21,'Inputs (values)'!$H$83:'Inputs (values)'!$KV$83,0))/INDEX('Inputs (values)'!$H$84:$KV$86,1,MATCH('Inputs (values)'!$H$10,'Inputs (values)'!$H$83:$KV$83,0)))*(INDEX('Inputs (values)'!$H$62:$KV$62,1,MATCH('Inputs (values)'!$H$12,'Inputs (values)'!$H$83:$KV$83,0))/INDEX('Inputs (values)'!$H$62:$KV$62,1,MATCH('Inputs (values)'!$H$11,'Inputs (values)'!$H$83:$KV$83,0))) -> 17.50224264 | GE22: =(INDEX('Inputs (values)'!$H$84:$KV$86,1,MATCH('Calculations (values)'!GE$21,'Inputs (values)'!$H$83:'Inputs (values)'!$KV$83,0))/INDEX('Inputs (values)'!$H$84:$KV$86,1,MATCH('Inputs (values)'!$H$10,'Inputs (values)'!$H$83:$KV$83,0)))*(INDEX('Inputs (values)'!$H$62:$KV$62,1,MATCH('Inputs (values)'!$H$12,'Inputs (values)'!$H$83:$KV$83,0))/INDEX('Inputs (values)'!$H$62:$KV$62,1,MATCH('Inputs (values)'!$H$11,'Inputs (values)'!$H$83:$KV$83,0))) -> 17.77068517 | GF22: =(INDEX('Inputs (values)'!$H$84:$KV$86,1,MATCH('Calculations (values)'!GF$21,'Inputs (values)'!$H$83:'Inputs (values)'!$KV$83,0))/INDEX('Inputs (values)'!$H$84:$KV$86,1,MATCH('Inputs (values)'!$H$10,'Inputs (values)'!$H$83:$KV$83,0)))*(INDEX('Inputs (values)'!$H$62:$KV$62,1,MATCH('Inputs (values)'!$H$12,'Inputs (values)'!$H$83:$KV$83,0))/INDEX('Inputs (values)'!$H$62:$KV$62,1,MATCH('Inputs (values)'!$H$11,'Inputs (values)'!$H$83:$KV$83,0))) -> 18.04324497 | GG22: =(INDEX('Inputs (values)'!$H$84:$KV$86,1,MATCH('Calculations (values)'!GG$21,'Inputs (values)'!$H$83:'Inputs (values)'!$KV$83,0))/INDEX('Inputs (values)'!$H$84:$KV$86,1,MATCH('Inputs (values)'!$H$10,'Inputs (values)'!$H$83:$KV$83,0)))*(INDEX('Inputs (values)'!$H$62:$KV$62,1,MATCH('Inputs (values)'!$H$12,'Inputs (values)'!$H$83:$KV$83,0))/INDEX('Inputs (values)'!$H$62:$KV$62,1,MATCH('Inputs (values)'!$H$11,'Inputs (values)'!$H$83:$KV$83,0))) -> 18.31998518 | GH22: =(INDEX('Inputs (values)'!$H$84:$KV$86,1,MATCH('Calculations (values)'!GH$21,'Inputs (values)'!$H$83:'Inputs (values)'!$KV$83,0))/INDEX('Inputs (values)'!$H$84:$KV$86,1,MATCH('Inputs (values)'!$H$10,'Inputs (values)'!$H$83:$KV$83,0)))*(INDEX('Inputs (values)'!$H$62:$KV$62,1,MATCH('Inputs (values)'!$H$12,'Inputs (values)'!$H$83:$KV$83,0))/INDEX('Inputs (values)'!$H$62:$KV$62,1,MATCH('Inputs (values)'!$H$11,'Inputs (values)'!$H$83:$KV$83,0))) -> 18.60096993 | GI22: =(INDEX('Inputs (values)'!$H$84:$KV$86,1,MATCH('Calculations (values)'!GI$21,'Inputs (values)'!$H$83:'Inputs (values)'!$KV$83,0))/INDEX('Inputs (values)'!$H$84:$KV$86,1,MATCH('Inputs (values)'!$H$10,'Inputs (values)'!$H$83:$KV$83,0)))*(INDEX('Inputs (values)'!$H$62:$KV$62,1,MATCH('Inputs (values)'!$H$12,'Inputs (values)'!$H$83:$KV$83,0))/INDEX('Inputs (values)'!$H$62:$KV$62,1,MATCH('Inputs (values)'!$H$11,'Inputs (values)'!$H$83:$KV$83,0))) -> 18.8862643 | GJ22: =(INDEX('Inputs (values)'!$H$84:$KV$86,1,MATCH('Calculations (values)'!GJ$21,'Inputs (values)'!$H$83:'Inputs (values)'!$KV$83,0))/INDEX('Inputs (values)'!$H$84:$KV$86,1,MATCH('Inputs (values)'!$H$10,'Inputs (values)'!$H$83:$KV$83,0)))*(INDEX('Inputs (values)'!$H$62:$KV$62,1,MATCH('Inputs (values)'!$H$12,'Inputs (values)'!$H$83:$KV$83,0))/INDEX('Inputs (values)'!$H$62:$KV$62,1,MATCH('Inputs (values)'!$H$11,'Inputs (values)'!$H$83:$KV$83,0))) -> 19.17593442 | GK22: =(INDEX('Inputs (values)'!$H$84:$KV$86,1,MATCH('Calculations (values)'!GK$21,'Inputs (values)'!$H$83:'Inputs (values)'!$KV$83,0))/INDEX('Inputs (values)'!$H$84:$KV$86,1,MATCH('Inputs (values)'!$H$10,'Inputs (values)'!$H$83:$KV$83,0)))*(INDEX('Inputs (values)'!$H$62:$KV$62,1,MATCH('Inputs (values)'!$H$12,'Inputs (values)'!$H$83:$KV$83,0))/INDEX('Inputs (values)'!$H$62:$KV$62,1,MATCH('Inputs (values)'!$H$11,'Inputs (values)'!$H$83:$KV$83,0))) -> 19.47004737 | GL22: =(INDEX('Inputs (values)'!$H$84:$KV$86,1,MATCH('Calculations (values)'!GL$21,'Inputs (values)'!$H$83:'Inputs (values)'!$KV$83,0))/INDEX('Inputs (values)'!$H$84:$KV$86,1,MATCH('Inputs (values)'!$H$10,'Inputs (values)'!$H$83:$KV$83,0)))*(INDEX('Inputs (values)'!$H$62:$KV$62,1,MATCH('Inputs (values)'!$H$12,'Inputs (values)'!$H$83:$KV$83,0))/INDEX('Inputs (values)'!$H$62:$KV$62,1,MATCH('Inputs (values)'!$H$11,'Inputs (values)'!$H$83:$KV$83,0))) -> 19.76867132 | GM22: =(INDEX('Inputs (values)'!$H$84:$KV$86,1,MATCH('Calculations (values)'!GM$21,'Inputs (values)'!$H$83:'Inputs (values)'!$KV$83,0))/INDEX('Inputs (values)'!$H$84:$KV$86,1,MATCH('Inputs (values)'!$H$10,'Inputs (values)'!$H$83:$KV$83,0)))*(INDEX('Inputs (values)'!$H$62:$KV$62,1,MATCH('Inputs (values)'!$H$12,'Inputs (values)'!$H$83:$KV$83,0))/INDEX('Inputs (values)'!$H$62:$KV$62,1,MATCH('Inputs (values)'!$H$11,'Inputs (values)'!$H$83:$KV$83,0))) -> 20.07187544 | GN22: =(INDEX('Inputs (values)'!$H$84:$KV$86,1,MATCH('Calculations (values)'!GN$21,'Inputs (values)'!$H$83:'Inputs (values)'!$KV$83,0))/INDEX('Inputs (values)'!$H$84:$KV$86,1,MATCH('Inputs (values)'!$H$10,'Inputs (values)'!$H$83:$KV$83,0)))*(INDEX('Inputs (values)'!$H$62:$KV$62,1,MATCH('Inputs (values)'!$H$12,'Inputs (values)'!$H$83:$KV$83,0))/INDEX('Inputs (values)'!$H$62:$KV$62,1,MATCH('Inputs (values)'!$H$11,'Inputs (values)'!$H$83:$KV$83,0))) -> 20.37972999 | GO22: =(INDEX('Inputs (values)'!$H$84:$KV$86,1,MATCH('Calculations (values)'!GO$21,'Inputs (values)'!$H$83:'Inputs (values)'!$KV$83,0))/INDEX('Inputs (values)'!$H$84:$KV$86,1,MATCH('Inputs (values)'!$H$10,'Inputs (values)'!$H$83:$KV$83,0)))*(INDEX('Inputs (values)'!$H$62:$KV$62,1,MATCH('Inputs (values)'!$H$12,'Inputs (values)'!$H$83:$KV$83,0))/INDEX('Inputs (values)'!$H$62:$KV$62,1,MATCH('Inputs (values)'!$H$11,'Inputs (values)'!$H$83:$KV$83,0))) -> 20.69230629 | GP22: =(INDEX('Inputs (values)'!$H$84:$KV$86,1,MATCH('Calculations (values)'!GP$21,'Inputs (values)'!$H$83:'Inputs (values)'!$KV$83,0))/INDEX('Inputs (values)'!$H$84:$KV$86,1,MATCH('Inputs (values)'!$H$10,'Inputs (values)'!$H$83:$KV$83,0)))*(INDEX('Inputs (values)'!$H$62:$KV$62,1,MATCH('Inputs (values)'!$H$12,'Inputs (values)'!$H$83:$KV$83,0))/INDEX('Inputs (values)'!$H$62:$KV$62,1,MATCH('Inputs (values)'!$H$11,'Inputs (values)'!$H$83:$KV$83,0))) -> 21.00967677 | GQ22: =(INDEX('Inputs (values)'!$H$84:$KV$86,1,MATCH('Calculations (values)'!GQ$21,'Inputs (values)'!$H$83:'Inputs (values)'!$KV$83,0))/INDEX('Inputs (values)'!$H$84:$KV$86,1,MATCH('Inputs (values)'!$H$10,'Inputs (values)'!$H$83:$KV$83,0)))*(INDEX('Inputs (values)'!$H$62:$KV$62,1,MATCH('Inputs (values)'!$H$12,'Inputs (values)'!$H$83:$KV$83,0))/INDEX('Inputs (values)'!$H$62:$KV$62,1,MATCH('Inputs (values)'!$H$11,'Inputs (values)'!$H$83:$KV$83,0))) -> 21.33191495 | GR22: =(INDEX('Inputs (values)'!$H$84:$KV$86,1,MATCH('Calculations (values)'!GR$21,'Inputs (values)'!$H$83:'Inputs (values)'!$KV$83,0))/INDEX('Inputs (values)'!$H$84:$KV$86,1,MATCH('Inputs (values)'!$H$10,'Inputs (values)'!$H$83:$KV$83,0)))*(INDEX('Inputs (values)'!$H$62:$KV$62,1,MATCH('Inputs (values)'!$H$12,'Inputs (values)'!$H$83:$KV$83,0))/INDEX('Inputs (values)'!$H$62:$KV$62,1,MATCH('Inputs (values)'!$H$11,'Inputs (values)'!$H$83:$KV$83,0))) -> 21.65909549 | GS22: =(INDEX('Inputs (values)'!$H$84:$KV$86,1,MATCH('Calculations (values)'!GS$21,'Inputs (values)'!$H$83:'Inputs (values)'!$KV$83,0))/INDEX('Inputs (values)'!$H$84:$KV$86,1,MATCH('Inputs (values)'!$H$10,'Inputs (values)'!$H$83:$KV$83,0)))*(INDEX('Inputs (values)'!$H$62:$KV$62,1,MATCH('Inputs (values)'!$H$12,'Inputs (values)'!$H$83:$KV$83,0))/INDEX('Inputs (values)'!$H$62:$KV$62,1,MATCH('Inputs (values)'!$H$11,'Inputs (values)'!$H$83:$KV$83,0))) -> 21.9912942 | GT22: =(INDEX('Inputs (values)'!$H$84:$KV$86,1,MATCH('Calculations (values)'!GT$21,'Inputs (values)'!$H$83:'Inputs (values)'!$KV$83,0))/INDEX('Inputs (values)'!$H$84:$KV$86,1,MATCH('Inputs (values)'!$H$10,'Inputs (values)'!$H$83:$KV$83,0)))*(INDEX('Inputs (values)'!$H$62:$KV$62,1,MATCH('Inputs (values)'!$H$12,'Inputs (values)'!$H$83:$KV$83,0))/INDEX('Inputs (values)'!$H$62:$KV$62,1,MATCH('Inputs (values)'!$H$11,'Inputs (values)'!$H$83:$KV$83,0))) -> 22.32858804 | GU22: =(INDEX('Inputs (values)'!$H$84:$KV$86,1,MATCH('Calculations (values)'!GU$21,'Inputs (values)'!$H$83:'Inputs (values)'!$KV$83,0))/INDEX('Inputs (values)'!$H$84:$KV$86,1,MATCH('Inputs (values)'!$H$10,'Inputs (values)'!$H$83:$KV$83,0)))*(INDEX('Inputs (values)'!$H$62:$KV$62,1,MATCH('Inputs (values)'!$H$12,'Inputs (values)'!$H$83:$KV$83,0))/INDEX('Inputs (values)'!$H$62:$KV$62,1,MATCH('Inputs (values)'!$H$11,'Inputs (values)'!$H$83:$KV$83,0))) -> 22.67105516 | GV22: =(INDEX('Inputs (values)'!$H$84:$KV$86,1,MATCH('Calculations (values)'!GV$21,'Inputs (values)'!$H$83:'Inputs (values)'!$KV$83,0))/INDEX('Inputs (values)'!$H$84:$KV$86,1,MATCH('Inputs (values)'!$H$10,'Inputs (values)'!$H$83:$KV$83,0)))*(INDEX('Inputs (values)'!$H$62:$KV$62,1,MATCH('Inputs (values)'!$H$12,'Inputs (values)'!$H$83:$KV$83,0))/INDEX('Inputs (values)'!$H$62:$KV$62,1,MATCH('Inputs (values)'!$H$11,'Inputs (values)'!$H$83:$KV$83,0))) -> 23.01877491 | GW22: =(INDEX('Inputs (values)'!$H$84:$KV$86,1,MATCH('Calculations (values)'!GW$21,'Inputs (values)'!$H$83:'Inputs (values)'!$KV$83,0))/INDEX('Inputs (values)'!$H$84:$KV$86,1,MATCH('Inputs (values)'!$H$10,'Inputs (values)'!$H$83:$KV$83,0)))*(INDEX('Inputs (values)'!$H$62:$KV$62,1,MATCH('Inputs (values)'!$H$12,'Inputs (values)'!$H$83:$KV$83,0))/INDEX('Inputs (values)'!$H$62:$KV$62,1,MATCH('Inputs (values)'!$H$11,'Inputs (values)'!$H$83:$KV$83,0))) -> 23.37182784 | GX22: =(INDEX('Inputs (values)'!$H$84:$KV$86,1,MATCH('Calculations (values)'!GX$21,'Inputs (values)'!$H$83:'Inputs (values)'!$KV$83,0))/INDEX('Inputs (values)'!$H$84:$KV$86,1,MATCH('Inputs (values)'!$H$10,'Inputs (values)'!$H$83:$KV$83,0)))*(INDEX('Inputs (values)'!$H$62:$KV$62,1,MATCH('Inputs (values)'!$H$12,'Inputs (values)'!$H$83:$KV$83,0))/INDEX('Inputs (values)'!$H$62:$KV$62,1,MATCH('Inputs (values)'!$H$11,'Inputs (values)'!$H$83:$KV$83,0))) -> 23.73029577 | GY22: =(INDEX('Inputs (values)'!$H$84:$KV$86,1,MATCH('Calculations (values)'!GY$21,'Inputs (values)'!$H$83:'Inputs (values)'!$KV$83,0))/INDEX('Inputs (values)'!$H$84:$KV$86,1,MATCH('Inputs (values)'!$H$10,'Inputs (values)'!$H$83:$KV$83,0)))*(INDEX('Inputs (values)'!$H$62:$KV$62,1,MATCH('Inputs (values)'!$H$12,'Inputs (values)'!$H$83:$KV$83,0))/INDEX('Inputs (values)'!$H$62:$KV$62,1,MATCH('Inputs (values)'!$H$11,'Inputs (values)'!$H$83:$KV$83,0))) -> 24.09426173 | GZ22: =(INDEX('Inputs (values)'!$H$84:$KV$86,1,MATCH('Calculations (values)'!GZ$21,'Inputs (values)'!$H$83:'Inputs (values)'!$KV$83,0))/INDEX('Inputs (values)'!$H$84:$KV$86,1,MATCH('Inputs (values)'!$H$10,'Inputs (values)'!$H$83:$KV$83,0)))*(INDEX('Inputs (values)'!$H$62:$KV$62,1,MATCH('Inputs (values)'!$H$12,'Inputs (values)'!$H$83:$KV$83,0))/INDEX('Inputs (values)'!$H$62:$KV$62,1,MATCH('Inputs (values)'!$H$11,'Inputs (values)'!$H$83:$KV$83,0))) -> 24.46381007 | HA22: =(INDEX('Inputs (values)'!$H$84:$KV$86,1,MATCH('Calculations (values)'!HA$21,'Inputs (values)'!$H$83:'Inputs (values)'!$KV$83,0))/INDEX('Inputs (values)'!$H$84:$KV$86,1,MATCH('Inputs (values)'!$H$10,'Inputs (values)'!$H$83:$KV$83,0)))*(INDEX('Inputs (values)'!$H$62:$KV$62,1,MATCH('Inputs (values)'!$H$12,'Inputs (values)'!$H$83:$KV$83,0))/INDEX('Inputs (values)'!$H$62:$KV$62,1,MATCH('Inputs (values)'!$H$11,'Inputs (values)'!$H$83:$KV$83,0))) -> 24.83902638 | HB22: =(INDEX('Inputs (values)'!$H$84:$KV$86,1,MATCH('Calculations (values)'!HB$21,'Inputs (values)'!$H$83:'Inputs (values)'!$KV$83,0))/INDEX('Inputs (values)'!$H$84:$KV$86,1,MATCH('Inputs (values)'!$H$10,'Inputs (values)'!$H$83:$KV$83,0)))*(INDEX('Inputs (values)'!$H$62:$KV$62,1,MATCH('Inputs (values)'!$H$12,'Inputs (values)'!$H$83:$KV$83,0))/INDEX('Inputs (values)'!$H$62:$KV$62,1,MATCH('Inputs (values)'!$H$11,'Inputs (values)'!$H$83:$KV$83,0))) -> 25.21999762 | HC22: =(INDEX('Inputs (values)'!$H$84:$KV$86,1,MATCH('Calculations (values)'!HC$21,'Inputs (values)'!$H$83:'Inputs (values)'!$KV$83,0))/INDEX('Inputs (values)'!$H$84:$KV$86,1,MATCH('Inputs (values)'!$H$10,'Inputs (values)'!$H$83:$KV$83,0)))*(INDEX('Inputs (values)'!$H$62:$KV$62,1,MATCH('Inputs (values)'!$H$12,'Inputs (values)'!$H$83:$KV$83,0))/INDEX('Inputs (values)'!$H$62:$KV$62,1,MATCH('Inputs (values)'!$H$11,'Inputs (values)'!$H$83:$KV$83,0))) -> 25.60681205 | HD22: =(INDEX('Inputs (values)'!$H$84:$KV$86,1,MATCH('Calculations (values)'!HD$21,'Inputs (values)'!$H$83:'Inputs (values)'!$KV$83,0))/INDEX('Inputs (values)'!$H$84:$KV$86,1,MATCH('Inputs (values)'!$H$10,'Inputs (values)'!$H$83:$KV$83,0)))*(INDEX('Inputs (values)'!$H$62:$KV$62,1,MATCH('Inputs (values)'!$H$12,'Inputs (values)'!$H$83:$KV$83,0))/INDEX('Inputs (values)'!$H$62:$KV$62,1,MATCH('Inputs (values)'!$H$11,'Inputs (values)'!$H$83:$KV$83,0))) -> 25.99955929 | HE22: =(INDEX('Inputs (values)'!$H$84:$KV$86,1,MATCH('Calculations (values)'!HE$21,'Inputs (values)'!$H$83:'Inputs (values)'!$KV$83,0))/INDEX('Inputs (values)'!$H$84:$KV$86,1,MATCH('Inputs (values)'!$H$10,'Inputs (values)'!$H$83:$KV$83,0)))*(INDEX('Inputs (values)'!$H$62:$KV$62,1,MATCH('Inputs (values)'!$H$12,'Inputs (values)'!$H$83:$KV$83,0))/INDEX('Inputs (values)'!$H$62:$KV$62,1,MATCH('Inputs (values)'!$H$11,'Inputs (values)'!$H$83:$KV$83,0))) -> 26.39833033 | HF22: =(INDEX('Inputs (values)'!$H$84:$KV$86,1,MATCH('Calculations (values)'!HF$21,'Inputs (values)'!$H$83:'Inputs (values)'!$KV$83,0))/INDEX('Inputs (values)'!$H$84:$KV$86,1,MATCH('Inputs (values)'!$H$10,'Inputs (values)'!$H$83:$KV$83,0)))*(INDEX('Inputs (values)'!$H$62:$KV$62,1,MATCH('Inputs (values)'!$H$12,'Inputs (values)'!$H$83:$KV$83,0))/INDEX('Inputs (values)'!$H$62:$KV$62,1,MATCH('Inputs (values)'!$H$11,'Inputs (values)'!$H$83:$KV$83,0))) -> 26.80321756 | HG22: =(INDEX('Inputs (values)'!$H$84:$KV$86,1,MATCH('Calculations (values)'!HG$21,'Inputs (values)'!$H$83:'Inputs (values)'!$KV$83,0))/INDEX('Inputs (values)'!$H$84:$KV$86,1,MATCH('Inputs (values)'!$H$10,'Inputs (values)'!$H$83:$KV$83,0)))*(INDEX('Inputs (values)'!$H$62:$KV$62,1,MATCH('Inputs (values)'!$H$12,'Inputs (values)'!$H$83:$KV$83,0))/INDEX('Inputs (values)'!$H$62:$KV$62,1,MATCH('Inputs (values)'!$H$11,'Inputs (values)'!$H$83:$KV$83,0))) -> 27.21431479 | HH22: =(INDEX('Inputs (values)'!$H$84:$KV$86,1,MATCH('Calculations (values)'!HH$21,'Inputs (values)'!$H$83:'Inputs (values)'!$KV$83,0))/INDEX('Inputs (values)'!$H$84:$KV$86,1,MATCH('Inputs (values)'!$H$10,'Inputs (values)'!$H$83:$KV$83,0)))*(INDEX('Inputs (values)'!$H$62:$KV$62,1,MATCH('Inputs (values)'!$H$12,'Inputs (values)'!$H$83:$KV$83,0))/INDEX('Inputs (values)'!$H$62:$KV$62,1,MATCH('Inputs (values)'!$H$11,'Inputs (values)'!$H$83:$KV$83,0))) -> 27.63171727 | HI22: =(INDEX('Inputs (values)'!$H$84:$KV$86,1,MATCH('Calculations (values)'!HI$21,'Inputs (values)'!$H$83:'Inputs (values)'!$KV$83,0))/INDEX('Inputs (values)'!$H$84:$KV$86,1,MATCH('Inputs (values)'!$H$10,'Inputs (values)'!$H$83:$KV$83,0)))*(INDEX('Inputs (values)'!$H$62:$KV$62,1,MATCH('Inputs (values)'!$H$12,'Inputs (values)'!$H$83:$KV$83,0))/INDEX('Inputs (values)'!$H$62:$KV$62,1,MATCH('Inputs (values)'!$H$11,'Inputs (values)'!$H$83:$KV$83,0))) -> 28.05552171 | HJ22: =(INDEX('Inputs (values)'!$H$84:$KV$86,1,MATCH('Calculations (values)'!HJ$21,'Inputs (values)'!$H$83:'Inputs (values)'!$KV$83,0))/INDEX('Inputs (values)'!$H$84:$KV$86,1,MATCH('Inputs (values)'!$H$10,'Inputs (values)'!$H$83:$KV$83,0)))*(INDEX('Inputs (values)'!$H$62:$KV$62,1,MATCH('Inputs (values)'!$H$12,'Inputs (values)'!$H$83:$KV$83,0))/INDEX('Inputs (values)'!$H$62:$KV$62,1,MATCH('Inputs (values)'!$H$11,'Inputs (values)'!$H$83:$KV$83,0))) -> 28.48582629 | HK22: =(INDEX('Inputs (values)'!$H$84:$KV$86,1,MATCH('Calculations (values)'!HK$21,'Inputs (values)'!$H$83:'Inputs (values)'!$KV$83,0))/INDEX('Inputs (values)'!$H$84:$KV$86,1,MATCH('Inputs (values)'!$H$10,'Inputs (values)'!$H$83:$KV$83,0)))*(INDEX('Inputs (values)'!$H$62:$KV$62,1,MATCH('Inputs (values)'!$H$12,'Inputs (values)'!$H$83:$KV$83,0))/INDEX('Inputs (values)'!$H$62:$KV$62,1,MATCH('Inputs (values)'!$H$11,'Inputs (values)'!$H$83:$KV$83,0))) -> 28.92273072 | HL22: =(INDEX('Inputs (values)'!$H$84:$KV$86,1,MATCH('Calculations (values)'!HL$21,'Inputs (values)'!$H$83:'Inputs (values)'!$KV$83,0))/INDEX('Inputs (values)'!$H$84:$KV$86,1,MATCH('Inputs (values)'!$H$10,'Inputs (values)'!$H$83:$KV$83,0)))*(INDEX('Inputs (values)'!$H$62:$KV$62,1,MATCH('Inputs (values)'!$H$12,'Inputs (values)'!$H$83:$KV$83,0))/INDEX('Inputs (values)'!$H$62:$KV$62,1,MATCH('Inputs (values)'!$H$11,'Inputs (values)'!$H$83:$KV$83,0))) -> 29.36633621 | HM22: =(INDEX('Inputs (values)'!$H$84:$KV$86,1,MATCH('Calculations (values)'!HM$21,'Inputs (values)'!$H$83:'Inputs (values)'!$KV$83,0))/INDEX('Inputs (values)'!$H$84:$KV$86,1,MATCH('Inputs (values)'!$H$10,'Inputs (values)'!$H$83:$KV$83,0)))*(INDEX('Inputs (values)'!$H$62:$KV$62,1,MATCH('Inputs (values)'!$H$12,'Inputs (values)'!$H$83:$KV$83,0))/INDEX('Inputs (values)'!$H$62:$KV$62,1,MATCH('Inputs (values)'!$H$11,'Inputs (values)'!$H$83:$KV$83,0))) -> 29.81674556 | HN22: =(INDEX('Inputs (values)'!$H$84:$KV$86,1,MATCH('Calculations (values)'!HN$21,'Inputs (values)'!$H$83:'Inputs (values)'!$KV$83,0))/INDEX('Inputs (values)'!$H$84:$KV$86,1,MATCH('Inputs (values)'!$H$10,'Inputs (values)'!$H$83:$KV$83,0)))*(INDEX('Inputs (values)'!$H$62:$KV$62,1,MATCH('Inputs (values)'!$H$12,'Inputs (values)'!$H$83:$KV$83,0))/INDEX('Inputs (values)'!$H$62:$KV$62,1,MATCH('Inputs (values)'!$H$11,'Inputs (values)'!$H$83:$KV$83,0))) -> 30.2740631 | HO22: =(INDEX('Inputs (values)'!$H$84:$KV$86,1,MATCH('Calculations (values)'!HO$21,'Inputs (values)'!$H$83:'Inputs (values)'!$KV$83,0))/INDEX('Inputs (values)'!$H$84:$KV$86,1,MATCH('Inputs (values)'!$H$10,'Inputs (values)'!$H$83:$KV$83,0)))*(INDEX('Inputs (values)'!$H$62:$KV$62,1,MATCH('Inputs (values)'!$H$12,'Inputs (values)'!$H$83:$KV$83,0))/INDEX('Inputs (values)'!$H$62:$KV$62,1,MATCH('Inputs (values)'!$H$11,'Inputs (values)'!$H$83:$KV$83,0))) -> 30.7383948 | HP22: =(INDEX('Inputs (values)'!$H$84:$KV$86,1,MATCH('Calculations (values)'!HP$21,'Inputs (values)'!$H$83:'Inputs (values)'!$KV$83,0))/INDEX('Inputs (values)'!$H$84:$KV$86,1,MATCH('Inputs (values)'!$H$10,'Inputs (values)'!$H$83:$KV$83,0)))*(INDEX('Inputs (values)'!$H$62:$KV$62,1,MATCH('Inputs (values)'!$H$12,'Inputs (values)'!$H$83:$KV$83,0))/INDEX('Inputs (values)'!$H$62:$KV$62,1,MATCH('Inputs (values)'!$H$11,'Inputs (values)'!$H$83:$KV$83,0))) -> 31.20984824 | HQ22: =(INDEX('Inputs (values)'!$H$84:$KV$86,1,MATCH('Calculations (values)'!HQ$21,'Inputs (values)'!$H$83:'Inputs (values)'!$KV$83,0))/INDEX('Inputs (values)'!$H$84:$KV$86,1,MATCH('Inputs (values)'!$H$10,'Inputs (values)'!$H$83:$KV$83,0)))*(INDEX('Inputs (values)'!$H$62:$KV$62,1,MATCH('Inputs (values)'!$H$12,'Inputs (values)'!$H$83:$KV$83,0))/INDEX('Inputs (values)'!$H$62:$KV$62,1,MATCH('Inputs (values)'!$H$11,'Inputs (values)'!$H$83:$KV$83,0))) -> 31.68853264 | HR22: =(INDEX('Inputs (values)'!$H$84:$KV$86,1,MATCH('Calculations (values)'!HR$21,'Inputs (values)'!$H$83:'Inputs (values)'!$KV$83,0))/INDEX('Inputs (values)'!$H$84:$KV$86,1,MATCH('Inputs (values)'!$H$10,'Inputs (values)'!$H$83:$KV$83,0)))*(INDEX('Inputs (values)'!$H$62:$KV$62,1,MATCH('Inputs (values)'!$H$12,'Inputs (values)'!$H$83:$KV$83,0))/INDEX('Inputs (values)'!$H$62:$KV$62,1,MATCH('Inputs (values)'!$H$11,'Inputs (values)'!$H$83:$KV$83,0))) -> 32.17455892 | HS22: =(INDEX('Inputs (values)'!$H$84:$KV$86,1,MATCH('Calculations (values)'!HS$21,'Inputs (values)'!$H$83:'Inputs (values)'!$KV$83,0))/INDEX('Inputs (values)'!$H$84:$KV$86,1,MATCH('Inputs (values)'!$H$10,'Inputs (values)'!$H$83:$KV$83,0)))*(INDEX('Inputs (values)'!$H$62:$KV$62,1,MATCH('Inputs (values)'!$H$12,'Inputs (values)'!$H$83:$KV$83,0))/INDEX('Inputs (values)'!$H$62:$KV$62,1,MATCH('Inputs (values)'!$H$11,'Inputs (values)'!$H$83:$KV$83,0))) -> 32.66803968 | HT22: =(INDEX('Inputs (values)'!$H$84:$KV$86,1,MATCH('Calculations (values)'!HT$21,'Inputs (values)'!$H$83:'Inputs (values)'!$KV$83,0))/INDEX('Inputs (values)'!$H$84:$KV$86,1,MATCH('Inputs (values)'!$H$10,'Inputs (values)'!$H$83:$KV$83,0)))*(INDEX('Inputs (values)'!$H$62:$KV$62,1,MATCH('Inputs (values)'!$H$12,'Inputs (values)'!$H$83:$KV$83,0))/INDEX('Inputs (values)'!$H$62:$KV$62,1,MATCH('Inputs (values)'!$H$11,'Inputs (values)'!$H$83:$KV$83,0))) -> 33.16908926 | HU22: =(INDEX('Inputs (values)'!$H$84:$KV$86,1,MATCH('Calculations (values)'!HU$21,'Inputs (values)'!$H$83:'Inputs (values)'!$KV$83,0))/INDEX('Inputs (values)'!$H$84:$KV$86,1,MATCH('Inputs (values)'!$H$10,'Inputs (values)'!$H$83:$KV$83,0)))*(INDEX('Inputs (values)'!$H$62:$KV$62,1,MATCH('Inputs (values)'!$H$12,'Inputs (values)'!$H$83:$KV$83,0))/INDEX('Inputs (values)'!$H$62:$KV$62,1,MATCH('Inputs (values)'!$H$11,'Inputs (values)'!$H$83:$KV$83,0))) -> 33.67782373 | HV22: =(INDEX('Inputs (values)'!$H$84:$KV$86,1,MATCH('Calculations (values)'!HV$21,'Inputs (values)'!$H$83:'Inputs (values)'!$KV$83,0))/INDEX('Inputs (values)'!$H$84:$KV$86,1,MATCH('Inputs (values)'!$H$10,'Inputs (values)'!$H$83:$KV$83,0)))*(INDEX('Inputs (values)'!$H$62:$KV$62,1,MATCH('Inputs (values)'!$H$12,'Inputs (values)'!$H$83:$KV$83,0))/INDEX('Inputs (values)'!$H$62:$KV$62,1,MATCH('Inputs (values)'!$H$11,'Inputs (values)'!$H$83:$KV$83,0))) -> 34.19436098 | HW22: =(INDEX('Inputs (values)'!$H$84:$KV$86,1,MATCH('Calculations (values)'!HW$21,'Inputs (values)'!$H$83:'Inputs (values)'!$KV$83,0))/INDEX('Inputs (values)'!$H$84:$KV$86,1,MATCH('Inputs (values)'!$H$10,'Inputs (values)'!$H$83:$KV$83,0)))*(INDEX('Inputs (values)'!$H$62:$KV$62,1,MATCH('Inputs (values)'!$H$12,'Inputs (values)'!$H$83:$KV$83,0))/INDEX('Inputs (values)'!$H$62:$KV$62,1,MATCH('Inputs (values)'!$H$11,'Inputs (values)'!$H$83:$KV$83,0))) -> 34.71882067 | HX22: =(INDEX('Inputs (values)'!$H$84:$KV$86,1,MATCH('Calculations (values)'!HX$21,'Inputs (values)'!$H$83:'Inputs (values)'!$KV$83,0))/INDEX('Inputs (values)'!$H$84:$KV$86,1,MATCH('Inputs (values)'!$H$10,'Inputs (values)'!$H$83:$KV$83,0)))*(INDEX('Inputs (values)'!$H$62:$KV$62,1,MATCH('Inputs (values)'!$H$12,'Inputs (values)'!$H$83:$KV$83,0))/INDEX('Inputs (values)'!$H$62:$KV$62,1,MATCH('Inputs (values)'!$H$11,'Inputs (values)'!$H$83:$KV$83,0))) -> 35.25132432 | HY22: =(INDEX('Inputs (values)'!$H$84:$KV$86,1,MATCH('Calculations (values)'!HY$21,'Inputs (values)'!$H$83:'Inputs (values)'!$KV$83,0))/INDEX('Inputs (values)'!$H$84:$KV$86,1,MATCH('Inputs (values)'!$H$10,'Inputs (values)'!$H$83:$KV$83,0)))*(INDEX('Inputs (values)'!$H$62:$KV$62,1,MATCH('Inputs (values)'!$H$12,'Inputs (values)'!$H$83:$KV$83,0))/INDEX('Inputs (values)'!$H$62:$KV$62,1,MATCH('Inputs (values)'!$H$11,'Inputs (values)'!$H$83:$KV$83,0))) -> 35.7919953 | HZ22: =(INDEX('Inputs (values)'!$H$84:$KV$86,1,MATCH('Calculations (values)'!HZ$21,'Inputs (values)'!$H$83:'Inputs (values)'!$KV$83,0))/INDEX('Inputs (values)'!$H$84:$KV$86,1,MATCH('Inputs (values)'!$H$10,'Inputs (values)'!$H$83:$KV$83,0)))*(INDEX('Inputs (values)'!$H$62:$KV$62,1,MATCH('Inputs (values)'!$H$12,'Inputs (values)'!$H$83:$KV$83,0))/INDEX('Inputs (values)'!$H$62:$KV$62,1,MATCH('Inputs (values)'!$H$11,'Inputs (values)'!$H$83:$KV$83,0))) -> 36.34095888 | IA22: =(INDEX('Inputs (values)'!$H$84:$KV$86,1,MATCH('Calculations (values)'!IA$21,'Inputs (values)'!$H$83:'Inputs (values)'!$KV$83,0))/INDEX('Inputs (values)'!$H$84:$KV$86,1,MATCH('Inputs (values)'!$H$10,'Inputs (values)'!$H$83:$KV$83,0)))*(INDEX('Inputs (values)'!$H$62:$KV$62,1,MATCH('Inputs (values)'!$H$12,'Inputs (values)'!$H$83:$KV$83,0))/INDEX('Inputs (values)'!$H$62:$KV$62,1,MATCH('Inputs (values)'!$H$11,'Inputs (values)'!$H$83:$KV$83,0))) -> 36.89834224 | IB22: =(INDEX('Inputs (values)'!$H$84:$KV$86,1,MATCH('Calculations (values)'!IB$21,'Inputs (values)'!$H$83:'Inputs (values)'!$KV$83,0))/INDEX('Inputs (values)'!$H$84:$KV$86,1,MATCH('Inputs (values)'!$H$10,'Inputs (values)'!$H$83:$KV$83,0)))*(INDEX('Inputs (values)'!$H$62:$KV$62,1,MATCH('Inputs (values)'!$H$12,'Inputs (values)'!$H$83:$KV$83,0))/INDEX('Inputs (values)'!$H$62:$KV$62,1,MATCH('Inputs (values)'!$H$11,'Inputs (values)'!$H$83:$KV$83,0))) -> 37.46427454 | IC22: =(INDEX('Inputs (values)'!$H$84:$KV$86,1,MATCH('Calculations (values)'!IC$21,'Inputs (values)'!$H$83:'Inputs (values)'!$KV$83,0))/INDEX('Inputs (values)'!$H$84:$KV$86,1,MATCH('Inputs (values)'!$H$10,'Inputs (values)'!$H$83:$KV$83,0)))*(INDEX('Inputs (values)'!$H$62:$KV$62,1,MATCH('Inputs (values)'!$H$12,'Inputs (values)'!$H$83:$KV$83,0))/INDEX('Inputs (values)'!$H$62:$KV$62,1,MATCH('Inputs (values)'!$H$11,'Inputs (values)'!$H$83:$KV$83,0))) -> 38.03888688 | ID22: =(INDEX('Inputs (values)'!$H$84:$KV$86,1,MATCH('Calculations (values)'!ID$21,'Inputs (values)'!$H$83:'Inputs (values)'!$KV$83,0))/INDEX('Inputs (values)'!$H$84:$KV$86,1,MATCH('Inputs (values)'!$H$10,'Inputs (values)'!$H$83:$KV$83,0)))*(INDEX('Inputs (values)'!$H$62:$KV$62,1,MATCH('Inputs (values)'!$H$12,'Inputs (values)'!$H$83:$KV$83,0))/INDEX('Inputs (values)'!$H$62:$KV$62,1,MATCH('Inputs (values)'!$H$11,'Inputs (values)'!$H$83:$KV$83,0))) -> 38.6223124 | IE22: =(INDEX('Inputs (values)'!$H$84:$KV$86,1,MATCH('Calculations (values)'!IE$21,'Inputs (values)'!$H$83:'Inputs (values)'!$KV$83,0))/INDEX('Inputs (values)'!$H$84:$KV$86,1,MATCH('Inputs (values)'!$H$10,'Inputs (values)'!$H$83:$KV$83,0)))*(INDEX('Inputs (values)'!$H$62:$KV$62,1,MATCH('Inputs (values)'!$H$12,'Inputs (values)'!$H$83:$KV$83,0))/INDEX('Inputs (values)'!$H$62:$KV$62,1,MATCH('Inputs (values)'!$H$11,'Inputs (values)'!$H$83:$KV$83,0))) -> 39.21468627 | IF22: =(INDEX('Inputs (values)'!$H$84:$KV$86,1,MATCH('Calculations (values)'!IF$21,'Inputs (values)'!$H$83:'Inputs (values)'!$KV$83,0))/INDEX('Inputs (values)'!$H$84:$KV$86,1,MATCH('Inputs (values)'!$H$10,'Inputs (values)'!$H$83:$KV$83,0)))*(INDEX('Inputs (values)'!$H$62:$KV$62,1,MATCH('Inputs (values)'!$H$12,'Inputs (values)'!$H$83:$KV$83,0))/INDEX('Inputs (values)'!$H$62:$KV$62,1,MATCH('Inputs (values)'!$H$11,'Inputs (values)'!$H$83:$KV$83,0))) -> 39.81614574 | IG22: =(INDEX('Inputs (values)'!$H$84:$KV$86,1,MATCH('Calculations (values)'!IG$21,'Inputs (values)'!$H$83:'Inputs (values)'!$KV$83,0))/INDEX('Inputs (values)'!$H$84:$KV$86,1,MATCH('Inputs (values)'!$H$10,'Inputs (values)'!$H$83:$KV$83,0)))*(INDEX('Inputs (values)'!$H$62:$KV$62,1,MATCH('Inputs (values)'!$H$12,'Inputs (values)'!$H$83:$KV$83,0))/INDEX('Inputs (values)'!$H$62:$KV$62,1,MATCH('Inputs (values)'!$H$11,'Inputs (values)'!$H$83:$KV$83,0))) -> 40.42683016 | IH22: =(INDEX('Inputs (values)'!$H$84:$KV$86,1,MATCH('Calculations (values)'!IH$21,'Inputs (values)'!$H$83:'Inputs (values)'!$KV$83,0))/INDEX('Inputs (values)'!$H$84:$KV$86,1,MATCH('Inputs (values)'!$H$10,'Inputs (values)'!$H$83:$KV$83,0)))*(INDEX('Inputs (values)'!$H$62:$KV$62,1,MATCH('Inputs (values)'!$H$12,'Inputs (values)'!$H$83:$KV$83,0))/INDEX('Inputs (values)'!$H$62:$KV$62,1,MATCH('Inputs (values)'!$H$11,'Inputs (values)'!$H$83:$KV$83,0))) -> 41.04688102 | II22: =(INDEX('Inputs (values)'!$H$84:$KV$86,1,MATCH('Calculations (values)'!II$21,'Inputs (values)'!$H$83:'Inputs (values)'!$KV$83,0))/INDEX('Inputs (values)'!$H$84:$KV$86,1,MATCH('Inputs (values)'!$H$10,'Inputs (values)'!$H$83:$KV$83,0)))*(INDEX('Inputs (values)'!$H$62:$KV$62,1,MATCH('Inputs (values)'!$H$12,'Inputs (values)'!$H$83:$KV$83,0))/INDEX('Inputs (values)'!$H$62:$KV$62,1,MATCH('Inputs (values)'!$H$11,'Inputs (values)'!$H$83:$KV$83,0))) -> 41.67644198 | IJ22: =(INDEX('Inputs (values)'!$H$84:$KV$86,1,MATCH('Calculations (values)'!IJ$21,'Inputs (values)'!$H$83:'Inputs (values)'!$KV$83,0))/INDEX('Inputs (values)'!$H$84:$KV$86,1,MATCH('Inputs (values)'!$H$10,'Inputs (values)'!$H$83:$KV$83,0)))*(INDEX('Inputs (values)'!$H$62:$KV$62,1,MATCH('Inputs (values)'!$H$12,'Inputs (values)'!$H$83:$KV$83,0))/INDEX('Inputs (values)'!$H$62:$KV$62,1,MATCH('Inputs (values)'!$H$11,'Inputs (values)'!$H$83:$KV$83,0))) -> 42.31565889 | IK22: =(INDEX('Inputs (values)'!$H$84:$KV$86,1,MATCH('Calculations (values)'!IK$21,'Inputs (values)'!$H$83:'Inputs (values)'!$KV$83,0))/INDEX('Inputs (values)'!$H$84:$KV$86,1,MATCH('Inputs (values)'!$H$10,'Inputs (values)'!$H$83:$KV$83,0)))*(INDEX('Inputs (values)'!$H$62:$KV$62,1,MATCH('Inputs (values)'!$H$12,'Inputs (values)'!$H$83:$KV$83,0))/INDEX('Inputs (values)'!$H$62:$KV$62,1,MATCH('Inputs (values)'!$H$11,'Inputs (values)'!$H$83:$KV$83,0))) -> 42.96467986 | IL22: =(INDEX('Inputs (values)'!$H$84:$KV$86,1,MATCH('Calculations (values)'!IL$21,'Inputs (values)'!$H$83:'Inputs (values)'!$KV$83,0))/INDEX('Inputs (values)'!$H$84:$KV$86,1,MATCH('Inputs (values)'!$H$10,'Inputs (values)'!$H$83:$KV$83,0)))*(INDEX('Inputs (values)'!$H$62:$KV$62,1,MATCH('Inputs (values)'!$H$12,'Inputs (values)'!$H$83:$KV$83,0))/INDEX('Inputs (values)'!$H$62:$KV$62,1,MATCH('Inputs (values)'!$H$11,'Inputs (values)'!$H$83:$KV$83,0))) -> 43.62365526 | IM22: =(INDEX('Inputs (values)'!$H$84:$KV$86,1,MATCH('Calculations (values)'!IM$21,'Inputs (values)'!$H$83:'Inputs (values)'!$KV$83,0))/INDEX('Inputs (values)'!$H$84:$KV$86,1,MATCH('Inputs (values)'!$H$10,'Inputs (values)'!$H$83:$KV$83,0)))*(INDEX('Inputs (values)'!$H$62:$KV$62,1,MATCH('Inputs (values)'!$H$12,'Inputs (values)'!$H$83:$KV$83,0))/INDEX('Inputs (values)'!$H$62:$KV$62,1,MATCH('Inputs (values)'!$H$11,'Inputs (values)'!$H$83:$KV$83,0))) -> 44.29273777 | IN22: =(INDEX('Inputs (values)'!$H$84:$KV$86,1,MATCH('Calculations (values)'!IN$21,'Inputs (values)'!$H$83:'Inputs (values)'!$KV$83,0))/INDEX('Inputs (values)'!$H$84:$KV$86,1,MATCH('Inputs (values)'!$H$10,'Inputs (values)'!$H$83:$KV$83,0)))*(INDEX('Inputs (values)'!$H$62:$KV$62,1,MATCH('Inputs (values)'!$H$12,'Inputs (values)'!$H$83:$KV$83,0))/INDEX('Inputs (values)'!$H$62:$KV$62,1,MATCH('Inputs (values)'!$H$11,'Inputs (values)'!$H$83:$KV$83,0))) -> 44.9720824 | IO22: =(INDEX('Inputs (values)'!$H$84:$KV$86,1,MATCH('Calculations (values)'!IO$21,'Inputs (values)'!$H$83:'Inputs (values)'!$KV$83,0))/INDEX('Inputs (values)'!$H$84:$KV$86,1,MATCH('Inputs (values)'!$H$10,'Inputs (values)'!$H$83:$KV$83,0)))*(INDEX('Inputs (values)'!$H$62:$KV$62,1,MATCH('Inputs (values)'!$H$12,'Inputs (values)'!$H$83:$KV$83,0))/INDEX('Inputs (values)'!$H$62:$KV$62,1,MATCH('Inputs (values)'!$H$11,'Inputs (values)'!$H$83:$KV$83,0))) -> 45.66184655 | IP22: =(INDEX('Inputs (values)'!$H$84:$KV$86,1,MATCH('Calculations (values)'!IP$21,'Inputs (values)'!$H$83:'Inputs (values)'!$KV$83,0))/INDEX('Inputs (values)'!$H$84:$KV$86,1,MATCH('Inputs (values)'!$H$10,'Inputs (values)'!$H$83:$KV$83,0)))*(INDEX('Inputs (values)'!$H$62:$KV$62,1,MATCH('Inputs (values)'!$H$12,'Inputs (values)'!$H$83:$KV$83,0))/INDEX('Inputs (values)'!$H$62:$KV$62,1,MATCH('Inputs (values)'!$H$11,'Inputs (values)'!$H$83:$KV$83,0))) -> 46.36219004 | IQ22: =(INDEX('Inputs (values)'!$H$84:$KV$86,1,MATCH('Calculations (values)'!IQ$21,'Inputs (values)'!$H$83:'Inputs (values)'!$KV$83,0))/INDEX('Inputs (values)'!$H$84:$KV$86,1,MATCH('Inputs (values)'!$H$10,'Inputs (values)'!$H$83:$KV$83,0)))*(INDEX('Inputs (values)'!$H$62:$KV$62,1,MATCH('Inputs (values)'!$H$12,'Inputs (values)'!$H$83:$KV$83,0))/INDEX('Inputs (values)'!$H$62:$KV$62,1,MATCH('Inputs (values)'!$H$11,'Inputs (values)'!$H$83:$KV$83,0))) -> 47.07327512 | IR22: =(INDEX('Inputs (values)'!$H$84:$KV$86,1,MATCH('Calculations (values)'!IR$21,'Inputs (values)'!$H$83:'Inputs (values)'!$KV$83,0))/INDEX('Inputs (values)'!$H$84:$KV$86,1,MATCH('Inputs (values)'!$H$10,'Inputs (values)'!$H$83:$KV$83,0)))*(INDEX('Inputs (values)'!$H$62:$KV$62,1,MATCH('Inputs (values)'!$H$12,'Inputs (values)'!$H$83:$KV$83,0))/INDEX('Inputs (values)'!$H$62:$KV$62,1,MATCH('Inputs (values)'!$H$11,'Inputs (values)'!$H$83:$KV$83,0))) -> 47.79526654 | IS22: =(INDEX('Inputs (values)'!$H$84:$KV$86,1,MATCH('Calculations (values)'!IS$21,'Inputs (values)'!$H$83:'Inputs (values)'!$KV$83,0))/INDEX('Inputs (values)'!$H$84:$KV$86,1,MATCH('Inputs (values)'!$H$10,'Inputs (values)'!$H$83:$KV$83,0)))*(INDEX('Inputs (values)'!$H$62:$KV$62,1,MATCH('Inputs (values)'!$H$12,'Inputs (values)'!$H$83:$KV$83,0))/INDEX('Inputs (values)'!$H$62:$KV$62,1,MATCH('Inputs (values)'!$H$11,'Inputs (values)'!$H$83:$KV$83,0))) -> 48.52833158 | IT22: =(INDEX('Inputs (values)'!$H$84:$KV$86,1,MATCH('Calculations (values)'!IT$21,'Inputs (values)'!$H$83:'Inputs (values)'!$KV$83,0))/INDEX('Inputs (values)'!$H$84:$KV$86,1,MATCH('Inputs (values)'!$H$10,'Inputs (values)'!$H$83:$KV$83,0)))*(INDEX('Inputs (values)'!$H$62:$KV$62,1,MATCH('Inputs (values)'!$H$12,'Inputs (values)'!$H$83:$KV$83,0))/INDEX('Inputs (values)'!$H$62:$KV$62,1,MATCH('Inputs (values)'!$H$11,'Inputs (values)'!$H$83:$KV$83,0))) -> 49.27264009 | IU22: =(INDEX('Inputs (values)'!$H$84:$KV$86,1,MATCH('Calculations (values)'!IU$21,'Inputs (values)'!$H$83:'Inputs (values)'!$KV$83,0))/INDEX('Inputs (values)'!$H$84:$KV$86,1,MATCH('Inputs (values)'!$H$10,'Inputs (values)'!$H$83:$KV$83,0)))*(INDEX('Inputs (values)'!$H$62:$KV$62,1,MATCH('Inputs (values)'!$H$12,'Inputs (values)'!$H$83:$KV$83,0))/INDEX('Inputs (values)'!$H$62:$KV$62,1,MATCH('Inputs (values)'!$H$11,'Inputs (values)'!$H$83:$KV$83,0))) -> 50.02836451 | IV22: =(INDEX('Inputs (values)'!$H$84:$KV$86,1,MATCH('Calculations (values)'!IV$21,'Inputs (values)'!$H$83:'Inputs (values)'!$KV$83,0))/INDEX('Inputs (values)'!$H$84:$KV$86,1,MATCH('Inputs (values)'!$H$10,'Inputs (values)'!$H$83:$KV$83,0)))*(INDEX('Inputs (values)'!$H$62:$KV$62,1,MATCH('Inputs (values)'!$H$12,'Inputs (values)'!$H$83:$KV$83,0))/INDEX('Inputs (values)'!$H$62:$KV$62,1,MATCH('Inputs (values)'!$H$11,'Inputs (values)'!$H$83:$KV$83,0))) -> 50.79567994 | IW22: =(INDEX('Inputs (values)'!$H$84:$KV$86,1,MATCH('Calculations (values)'!IW$21,'Inputs (values)'!$H$83:'Inputs (values)'!$KV$83,0))/INDEX('Inputs (values)'!$H$84:$KV$86,1,MATCH('Inputs (values)'!$H$10,'Inputs (values)'!$H$83:$KV$83,0)))*(INDEX('Inputs (values)'!$H$62:$KV$62,1,MATCH('Inputs (values)'!$H$12,'Inputs (values)'!$H$83:$KV$83,0))/INDEX('Inputs (values)'!$H$62:$KV$62,1,MATCH('Inputs (values)'!$H$11,'Inputs (values)'!$H$83:$KV$83,0))) -> 51.57476414 | IX22: =(INDEX('Inputs (values)'!$H$84:$KV$86,1,MATCH('Calculations (values)'!IX$21,'Inputs (values)'!$H$83:'Inputs (values)'!$KV$83,0))/INDEX('Inputs (values)'!$H$84:$KV$86,1,MATCH('Inputs (values)'!$H$10,'Inputs (values)'!$H$83:$KV$83,0)))*(INDEX('Inputs (values)'!$H$62:$KV$62,1,MATCH('Inputs (values)'!$H$12,'Inputs (values)'!$H$83:$KV$83,0))/INDEX('Inputs (values)'!$H$62:$KV$62,1,MATCH('Inputs (values)'!$H$11,'Inputs (values)'!$H$83:$KV$83,0))) -> 52.36579764 | IY22: =(INDEX('Inputs (values)'!$H$84:$KV$86,1,MATCH('Calculations (values)'!IY$21,'Inputs (values)'!$H$83:'Inputs (values)'!$KV$83,0))/INDEX('Inputs (values)'!$H$84:$KV$86,1,MATCH('Inputs (values)'!$H$10,'Inputs (values)'!$H$83:$KV$83,0)))*(INDEX('Inputs (values)'!$H$62:$KV$62,1,MATCH('Inputs (values)'!$H$12,'Inputs (values)'!$H$83:$KV$83,0))/INDEX('Inputs (values)'!$H$62:$KV$62,1,MATCH('Inputs (values)'!$H$11,'Inputs (values)'!$H$83:$KV$83,0))) -> 53.16896369 | IZ22: =(INDEX('Inputs (values)'!$H$84:$KV$86,1,MATCH('Calculations (values)'!IZ$21,'Inputs (values)'!$H$83:'Inputs (values)'!$KV$83,0))/INDEX('Inputs (values)'!$H$84:$KV$86,1,MATCH('Inputs (values)'!$H$10,'Inputs (values)'!$H$83:$KV$83,0)))*(INDEX('Inputs (values)'!$H$62:$KV$62,1,MATCH('Inputs (values)'!$H$12,'Inputs (values)'!$H$83:$KV$83,0))/INDEX('Inputs (values)'!$H$62:$KV$62,1,MATCH('Inputs (values)'!$H$11,'Inputs (values)'!$H$83:$KV$83,0))) -> 53.9844484 | JA22: =(INDEX('Inputs (values)'!$H$84:$KV$86,1,MATCH('Calculations (values)'!JA$21,'Inputs (values)'!$H$83:'Inputs (values)'!$KV$83,0))/INDEX('Inputs (values)'!$H$84:$KV$86,1,MATCH('Inputs (values)'!$H$10,'Inputs (values)'!$H$83:$KV$83,0)))*(INDEX('Inputs (values)'!$H$62:$KV$62,1,MATCH('Inputs (values)'!$H$12,'Inputs (values)'!$H$83:$KV$83,0))/INDEX('Inputs (values)'!$H$62:$KV$62,1,MATCH('Inputs (values)'!$H$11,'Inputs (values)'!$H$83:$KV$83,0))) -> 54.81244068 | JB22: =(INDEX('Inputs (values)'!$H$84:$KV$86,1,MATCH('Calculations (values)'!JB$21,'Inputs (values)'!$H$83:'Inputs (values)'!$KV$83,0))/INDEX('Inputs (values)'!$H$84:$KV$86,1,MATCH('Inputs (values)'!$H$10,'Inputs (values)'!$H$83:$KV$83,0)))*(INDEX('Inputs (values)'!$H$62:$KV$62,1,MATCH('Inputs (values)'!$H$12,'Inputs (values)'!$H$83:$KV$83,0))/INDEX('Inputs (values)'!$H$62:$KV$62,1,MATCH('Inputs (values)'!$H$11,'Inputs (values)'!$H$83:$KV$83,0))) -> 55.65313239 | JC22: =(INDEX('Inputs (values)'!$H$84:$KV$86,1,MATCH('Calculations (values)'!JC$21,'Inputs (values)'!$H$83:'Inputs (values)'!$KV$83,0))/INDEX('Inputs (values)'!$H$84:$KV$86,1,MATCH('Inputs (values)'!$H$10,'Inputs (values)'!$H$83:$KV$83,0)))*(INDEX('Inputs (values)'!$H$62:$KV$62,1,MATCH('Inputs (values)'!$H$12,'Inputs (values)'!$H$83:$KV$83,0))/INDEX('Inputs (values)'!$H$62:$KV$62,1,MATCH('Inputs (values)'!$H$11,'Inputs (values)'!$H$83:$KV$83,0))) -> 56.5067183 | JD22: =(INDEX('Inputs (values)'!$H$84:$KV$86,1,MATCH('Calculations (values)'!JD$21,'Inputs (values)'!$H$83:'Inputs (values)'!$KV$83,0))/INDEX('Inputs (values)'!$H$84:$KV$86,1,MATCH('Inputs (values)'!$H$10,'Inputs (values)'!$H$83:$KV$83,0)))*(INDEX('Inputs (values)'!$H$62:$KV$62,1,MATCH('Inputs (values)'!$H$12,'Inputs (values)'!$H$83:$KV$83,0))/INDEX('Inputs (values)'!$H$62:$KV$62,1,MATCH('Inputs (values)'!$H$11,'Inputs (values)'!$H$83:$KV$83,0))) -> 57.37339617 | JE22: =(INDEX('Inputs (values)'!$H$84:$KV$86,1,MATCH('Calculations (values)'!JE$21,'Inputs (values)'!$H$83:'Inputs (values)'!$KV$83,0))/INDEX('Inputs (values)'!$H$84:$KV$86,1,MATCH('Inputs (values)'!$H$10,'Inputs (values)'!$H$83:$KV$83,0)))*(INDEX('Inputs (values)'!$H$62:$KV$62,1,MATCH('Inputs (values)'!$H$12,'Inputs (values)'!$H$83:$KV$83,0))/INDEX('Inputs (values)'!$H$62:$KV$62,1,MATCH('Inputs (values)'!$H$11,'Inputs (values)'!$H$83:$KV$83,0))) -> 58.25336681 | JF22: =(INDEX('Inputs (values)'!$H$84:$KV$86,1,MATCH('Calculations (values)'!JF$21,'Inputs (values)'!$H$83:'Inputs (values)'!$KV$83,0))/INDEX('Inputs (values)'!$H$84:$KV$86,1,MATCH('Inputs (values)'!$H$10,'Inputs (values)'!$H$83:$KV$83,0)))*(INDEX('Inputs (values)'!$H$62:$KV$62,1,MATCH('Inputs (values)'!$H$12,'Inputs (values)'!$H$83:$KV$83,0))/INDEX('Inputs (values)'!$H$62:$KV$62,1,MATCH('Inputs (values)'!$H$11,'Inputs (values)'!$H$83:$KV$83,0))) -> 59.14683409 | JG22: =(INDEX('Inputs (values)'!$H$84:$KV$86,1,MATCH('Calculations (values)'!JG$21,'Inputs (values)'!$H$83:'Inputs (values)'!$KV$83,0))/INDEX('Inputs (values)'!$H$84:$KV$86,1,MATCH('Inputs (values)'!$H$10,'Inputs (values)'!$H$83:$KV$83,0)))*(INDEX('Inputs (values)'!$H$62:$KV$62,1,MATCH('Inputs (values)'!$H$12,'Inputs (values)'!$H$83:$KV$83,0))/INDEX('Inputs (values)'!$H$62:$KV$62,1,MATCH('Inputs (values)'!$H$11,'Inputs (values)'!$H$83:$KV$83,0))) -> 60.05400502 | JH22: =(INDEX('Inputs (values)'!$H$84:$KV$86,1,MATCH('Calculations (values)'!JH$21,'Inputs (values)'!$H$83:'Inputs (values)'!$KV$83,0))/INDEX('Inputs (values)'!$H$84:$KV$86,1,MATCH('Inputs (values)'!$H$10,'Inputs (values)'!$H$83:$KV$83,0)))*(INDEX('Inputs (values)'!$H$62:$KV$62,1,MATCH('Inputs (values)'!$H$12,'Inputs (values)'!$H$83:$KV$83,0))/INDEX('Inputs (values)'!$H$62:$KV$62,1,MATCH('Inputs (values)'!$H$11,'Inputs (values)'!$H$83:$KV$83,0))) -> 60.97508978 | JI22: =(INDEX('Inputs (values)'!$H$84:$KV$86,1,MATCH('Calculations (values)'!JI$21,'Inputs (values)'!$H$83:'Inputs (values)'!$KV$83,0))/INDEX('Inputs (values)'!$H$84:$KV$86,1,MATCH('Inputs (values)'!$H$10,'Inputs (values)'!$H$83:$KV$83,0)))*(INDEX('Inputs (values)'!$H$62:$KV$62,1,MATCH('Inputs (values)'!$H$12,'Inputs (values)'!$H$83:$KV$83,0))/INDEX('Inputs (values)'!$H$62:$KV$62,1,MATCH('Inputs (values)'!$H$11,'Inputs (values)'!$H$83:$KV$83,0))) -> 61.91030179 | JJ22: =(INDEX('Inputs (values)'!$H$84:$KV$86,1,MATCH('Calculations (values)'!JJ$21,'Inputs (values)'!$H$83:'Inputs (values)'!$KV$83,0))/INDEX('Inputs (values)'!$H$84:$KV$86,1,MATCH('Inputs (values)'!$H$10,'Inputs (values)'!$H$83:$KV$83,0)))*(INDEX('Inputs (values)'!$H$62:$KV$62,1,MATCH('Inputs (values)'!$H$12,'Inputs (values)'!$H$83:$KV$83,0))/INDEX('Inputs (values)'!$H$62:$KV$62,1,MATCH('Inputs (values)'!$H$11,'Inputs (values)'!$H$83:$KV$83,0))) -> 62.8598577 | JK22: =(INDEX('Inputs (values)'!$H$84:$KV$86,1,MATCH('Calculations (values)'!JK$21,'Inputs (values)'!$H$83:'Inputs (values)'!$KV$83,0))/INDEX('Inputs (values)'!$H$84:$KV$86,1,MATCH('Inputs (values)'!$H$10,'Inputs (values)'!$H$83:$KV$83,0)))*(INDEX('Inputs (values)'!$H$62:$KV$62,1,MATCH('Inputs (values)'!$H$12,'Inputs (values)'!$H$83:$KV$83,0))/INDEX('Inputs (values)'!$H$62:$KV$62,1,MATCH('Inputs (values)'!$H$11,'Inputs (values)'!$H$83:$KV$83,0))) -> 63.82397753 | JL22: =(INDEX('Inputs (values)'!$H$84:$KV$86,1,MATCH('Calculations (values)'!JL$21,'Inputs (values)'!$H$83:'Inputs (values)'!$KV$83,0))/INDEX('Inputs (values)'!$H$84:$KV$86,1,MATCH('Inputs (values)'!$H$10,'Inputs (values)'!$H$83:$KV$83,0)))*(INDEX('Inputs (values)'!$H$62:$KV$62,1,MATCH('Inputs (values)'!$H$12,'Inputs (values)'!$H$83:$KV$83,0))/INDEX('Inputs (values)'!$H$62:$KV$62,1,MATCH('Inputs (values)'!$H$11,'Inputs (values)'!$H$83:$KV$83,0))) -> 64.80288466 | JM22: =(INDEX('Inputs (values)'!$H$84:$KV$86,1,MATCH('Calculations (values)'!JM$21,'Inputs (values)'!$H$83:'Inputs (values)'!$KV$83,0))/INDEX('Inputs (values)'!$H$84:$KV$86,1,MATCH('Inputs (values)'!$H$10,'Inputs (values)'!$H$83:$KV$83,0)))*(INDEX('Inputs (values)'!$H$62:$KV$62,1,MATCH('Inputs (values)'!$H$12,'Inputs (values)'!$H$83:$KV$83,0))/INDEX('Inputs (values)'!$H$62:$KV$62,1,MATCH('Inputs (values)'!$H$11,'Inputs (values)'!$H$83:$KV$83,0))) -> 65.79680587 | JN22: =(INDEX('Inputs (values)'!$H$84:$KV$86,1,MATCH('Calculations (values)'!JN$21,'Inputs (values)'!$H$83:'Inputs (values)'!$KV$83,0))/INDEX('Inputs (values)'!$H$84:$KV$86,1,MATCH('Inputs (values)'!$H$10,'Inputs (values)'!$H$83:$KV$83,0)))*(INDEX('Inputs (values)'!$H$62:$KV$62,1,MATCH('Inputs (values)'!$H$12,'Inputs (values)'!$H$83:$KV$83,0))/INDEX('Inputs (values)'!$H$62:$KV$62,1,MATCH('Inputs (values)'!$H$11,'Inputs (values)'!$H$83:$KV$83,0))) -> 66.80597146 | JO22: =(INDEX('Inputs (values)'!$H$84:$KV$86,1,MATCH('Calculations (values)'!JO$21,'Inputs (values)'!$H$83:'Inputs (values)'!$KV$83,0))/INDEX('Inputs (values)'!$H$84:$KV$86,1,MATCH('Inputs (values)'!$H$10,'Inputs (values)'!$H$83:$KV$83,0)))*(INDEX('Inputs (values)'!$H$62:$KV$62,1,MATCH('Inputs (values)'!$H$12,'Inputs (values)'!$H$83:$KV$83,0))/INDEX('Inputs (values)'!$H$62:$KV$62,1,MATCH('Inputs (values)'!$H$11,'Inputs (values)'!$H$83:$KV$83,0))) -> 67.83061524 | JP22: =(INDEX('Inputs (values)'!$H$84:$KV$86,1,MATCH('Calculations (values)'!JP$21,'Inputs (values)'!$H$83:'Inputs (values)'!$KV$83,0))/INDEX('Inputs (values)'!$H$84:$KV$86,1,MATCH('Inputs (values)'!$H$10,'Inputs (values)'!$H$83:$KV$83,0)))*(INDEX('Inputs (values)'!$H$62:$KV$62,1,MATCH('Inputs (values)'!$H$12,'Inputs (values)'!$H$83:$KV$83,0))/INDEX('Inputs (values)'!$H$62:$KV$62,1,MATCH('Inputs (values)'!$H$11,'Inputs (values)'!$H$83:$KV$83,0))) -> 68.8709746 | JQ22: =(INDEX('Inputs (values)'!$H$84:$KV$86,1,MATCH('Calculations (values)'!JQ$21,'Inputs (values)'!$H$83:'Inputs (values)'!$KV$83,0))/INDEX('Inputs (values)'!$H$84:$KV$86,1,MATCH('Inputs (values)'!$H$10,'Inputs (values)'!$H$83:$KV$83,0)))*(INDEX('Inputs (values)'!$H$62:$KV$62,1,MATCH('Inputs (values)'!$H$12,'Inputs (values)'!$H$83:$KV$83,0))/INDEX('Inputs (values)'!$H$62:$KV$62,1,MATCH('Inputs (values)'!$H$11,'Inputs (values)'!$H$83:$KV$83,0))) -> 69.92729058 | JR22: =(INDEX('Inputs (values)'!$H$84:$KV$86,1,MATCH('Calculations (values)'!JR$21,'Inputs (values)'!$H$83:'Inputs (values)'!$KV$83,0))/INDEX('Inputs (values)'!$H$84:$KV$86,1,MATCH('Inputs (values)'!$H$10,'Inputs (values)'!$H$83:$KV$83,0)))*(INDEX('Inputs (values)'!$H$62:$KV$62,1,MATCH('Inputs (values)'!$H$12,'Inputs (values)'!$H$83:$KV$83,0))/INDEX('Inputs (values)'!$H$62:$KV$62,1,MATCH('Inputs (values)'!$H$11,'Inputs (values)'!$H$83:$KV$83,0))) -> 70.99980793 | JS22: =(INDEX('Inputs (values)'!$H$84:$KV$86,1,MATCH('Calculations (values)'!JS$21,'Inputs (values)'!$H$83:'Inputs (values)'!$KV$83,0))/INDEX('Inputs (values)'!$H$84:$KV$86,1,MATCH('Inputs (values)'!$H$10,'Inputs (values)'!$H$83:$KV$83,0)))*(INDEX('Inputs (values)'!$H$62:$KV$62,1,MATCH('Inputs (values)'!$H$12,'Inputs (values)'!$H$83:$KV$83,0))/INDEX('Inputs (values)'!$H$62:$KV$62,1,MATCH('Inputs (values)'!$H$11,'Inputs (values)'!$H$83:$KV$83,0))) -> 72.08877512 | JT22: =(INDEX('Inputs (values)'!$H$84:$KV$86,1,MATCH('Calculations (values)'!JT$21,'Inputs (values)'!$H$83:'Inputs (values)'!$KV$83,0))/INDEX('Inputs (values)'!$H$84:$KV$86,1,MATCH('Inputs (values)'!$H$10,'Inputs (values)'!$H$83:$KV$83,0)))*(INDEX('Inputs (values)'!$H$62:$KV$62,1,MATCH('Inputs (values)'!$H$12,'Inputs (values)'!$H$83:$KV$83,0))/INDEX('Inputs (values)'!$H$62:$KV$62,1,MATCH('Inputs (values)'!$H$11,'Inputs (values)'!$H$83:$KV$83,0))) -> 73.19444447 | JU22: =(INDEX('Inputs (values)'!$H$84:$KV$86,1,MATCH('Calculations (values)'!JU$21,'Inputs (values)'!$H$83:'Inputs (values)'!$KV$83,0))/INDEX('Inputs (values)'!$H$84:$KV$86,1,MATCH('Inputs (values)'!$H$10,'Inputs (values)'!$H$83:$KV$83,0)))*(INDEX('Inputs (values)'!$H$62:$KV$62,1,MATCH('Inputs (values)'!$H$12,'Inputs (values)'!$H$83:$KV$83,0))/INDEX('Inputs (values)'!$H$62:$KV$62,1,MATCH('Inputs (values)'!$H$11,'Inputs (values)'!$H$83:$KV$83,0))) -> 74.31707214 | JV22: =(INDEX('Inputs (values)'!$H$84:$KV$86,1,MATCH('Calculations (values)'!JV$21,'Inputs (values)'!$H$83:'Inputs (values)'!$KV$83,0))/INDEX('Inputs (values)'!$H$84:$KV$86,1,MATCH('Inputs (values)'!$H$10,'Inputs (values)'!$H$83:$KV$83,0)))*(INDEX('Inputs (values)'!$H$62:$KV$62,1,MATCH('Inputs (values)'!$H$12,'Inputs (values)'!$H$83:$KV$83,0))/INDEX('Inputs (values)'!$H$62:$KV$62,1,MATCH('Inputs (values)'!$H$11,'Inputs (values)'!$H$83:$KV$83,0))) -> 75.45691823 | JW22: =(INDEX('Inputs (values)'!$H$84:$KV$86,1,MATCH('Calculations (values)'!JW$21,'Inputs (values)'!$H$83:'Inputs (values)'!$KV$83,0))/INDEX('Inputs (values)'!$H$84:$KV$86,1,MATCH('Inputs (values)'!$H$10,'Inputs (values)'!$H$83:$KV$83,0)))*(INDEX('Inputs (values)'!$H$62:$KV$62,1,MATCH('Inputs (values)'!$H$12,'Inputs (values)'!$H$83:$KV$83,0))/INDEX('Inputs (values)'!$H$62:$KV$62,1,MATCH('Inputs (values)'!$H$11,'Inputs (values)'!$H$83:$KV$83,0))) -> 76.61424683 | JX22: =(INDEX('Inputs (values)'!$H$84:$KV$86,1,MATCH('Calculations (values)'!JX$21,'Inputs (values)'!$H$83:'Inputs (values)'!$KV$83,0))/INDEX('Inputs (values)'!$H$84:$KV$86,1,MATCH('Inputs (values)'!$H$10,'Inputs (values)'!$H$83:$KV$83,0)))*(INDEX('Inputs (values)'!$H$62:$KV$62,1,MATCH('Inputs (values)'!$H$12,'Inputs (values)'!$H$83:$KV$83,0))/INDEX('Inputs (values)'!$H$62:$KV$62,1,MATCH('Inputs (values)'!$H$11,'Inputs (values)'!$H$83:$KV$83,0))) -> 77.78932608 | JY22: =(INDEX('Inputs (values)'!$H$84:$KV$86,1,MATCH('Calculations (values)'!JY$21,'Inputs (values)'!$H$83:'Inputs (values)'!$KV$83,0))/INDEX('Inputs (values)'!$H$84:$KV$86,1,MATCH('Inputs (values)'!$H$10,'Inputs (values)'!$H$83:$KV$83,0)))*(INDEX('Inputs (values)'!$H$62:$KV$62,1,MATCH('Inputs (values)'!$H$12,'Inputs (values)'!$H$83:$KV$83,0))/INDEX('Inputs (values)'!$H$62:$KV$62,1,MATCH('Inputs (values)'!$H$11,'Inputs (values)'!$H$83:$KV$83,0))) -> 78.98242824 | JZ22: =(INDEX('Inputs (values)'!$H$84:$KV$86,1,MATCH('Calculations (values)'!JZ$21,'Inputs (values)'!$H$83:'Inputs (values)'!$KV$83,0))/INDEX('Inputs (values)'!$H$84:$KV$86,1,MATCH('Inputs (values)'!$H$10,'Inputs (values)'!$H$83:$KV$83,0)))*(INDEX('Inputs (values)'!$H$62:$KV$62,1,MATCH('Inputs (values)'!$H$12,'Inputs (values)'!$H$83:$KV$83,0))/INDEX('Inputs (values)'!$H$62:$KV$62,1,MATCH('Inputs (values)'!$H$11,'Inputs (values)'!$H$83:$KV$83,0))) -> 80.19382974 | KA22: =(INDEX('Inputs (values)'!$H$84:$KV$86,1,MATCH('Calculations (values)'!KA$21,'Inputs (values)'!$H$83:'Inputs (values)'!$KV$83,0))/INDEX('Inputs (values)'!$H$84:$KV$86,1,MATCH('Inputs (values)'!$H$10,'Inputs (values)'!$H$83:$KV$83,0)))*(INDEX('Inputs (values)'!$H$62:$KV$62,1,MATCH('Inputs (values)'!$H$12,'Inputs (values)'!$H$83:$KV$83,0))/INDEX('Inputs (values)'!$H$62:$KV$62,1,MATCH('Inputs (values)'!$H$11,'Inputs (values)'!$H$83:$KV$83,0))) -> 81.42381123
